Workbook

Sheet Hepak_v3.4
A5: HeUnit(index;Unit) | F5: HeProperty(index)
A6: HeCalc(Output;Phase;Input1;Value1;Input2;Value2;Unit) | F6: HeConst(index)
B8: Parameter | D8: Value | E8: Unit | F8: Unit system | G8: 1
A9: Input1 | B9: =VLOOKUP(C9,J13:K27,2,FALSE) -> 1 | C9: Pressure | D9: =1.6*10^5 -> 160000 | E9: =IF(B9=12,[1]!HeUnit(43,$G$8),[1]!HeUnit(VLOOKUP(C9,$A$13:$B$57,2,FALSE),$G$8)) -> [Pa]
A10: Input2 | B10: =VLOOKUP(C10,J13:K27,2,FALSE) -> 2 | C10: Temperature | D10: 4.8 | E10: =IF(B10=12,[1]!HeUnit(43,$G$8),[1]!HeUnit(VLOOKUP(C10,$A$13:$B$57,2,FALSE),$G$8)) -> [K]
A12: Output Parameters | B12: Index | C12: Value | D12: Unit | F12: Constants | G12: Index | H12: Value | J12: Input Parameters
A13: =[1]!HeProperty(B13) -> Quality | B13: 0 | C13: =[1]!HeCalc(B13,0,$B$9,$D$9,$B$10,$D$10,$G$8) -> 2 | D13: =[1]!HeUnit(B13,$G$8) -> [-] | F13: Pressure upper limit | G13: 1 | H13: =[1]!HeConst(G13) -> 2028000000 | J13: Pressure | K13: 1
A14: Pressure | B14: 1 | C14: 159999.999 | D14: [Pa] | F14: Temperature upper limit | G14: 2 | H14: =[1]!HeConst(G14) -> 1500 | J14: Temperature | K14: 2
A15: Temperature | B15: 2 | C15: 4.8 | D15: [K] | F15: Temperature lower limit | G15: 3 | H15: =[1]!HeConst(G15) -> 0.8 | J15: Density | K15: 3
A16: Density | B16: 3 | C16: 26.99000022 | D16: [kg/m3] | F16: Gas constant "R" | G16: 4 | H16: 2077.23476 | J16: Specific Volume | K16: 4
A17: Specific Volume | B17: 4 | C17: 0.03705075924 | D17: [m3/kg] | F17: Critical pressure | G17: 5 | H17: 227462.3 | J17: Entropy | K17: 5
A18: Z = PV/RT | B18: 5 | C18: 0.594552587 | D18: [-] | F18: Critical temperature | G18: 6 | H18: 5.1953 | J18: Enthalpy | K18: 6
A19: DPTSat | B19: 6 | C19: 0 | D19: [Pa/K] | F19: Critical density | G19: 7 | H19: 69.6412374 | J19: Internal Energy | K19: 7
A20: Latent Heat | B20: 7 | C20: 0 | D20: [J/kg] | F20: Lambda point pressure | G20: 8 | H20: 5041.8 | J20: Gibbs Energy | K20: 8
A21: Entropy | B21: 8 | C21: 7817.295244 | D21: [J/kg-K] | F21: Lambda point temperature | G21: 9 | H21: 2.1768 | J21: Quality | K21: 9
A22: Enthalpy | B22: 9 | C22: 30520.98616 | D22: [J/kg] | F22: Lambda point vapor density | G22: 10 | H22: 1.1923727 | J22: (T-Tlambda) | K22: 10
A23: Helmholtz | B23: 10 | C23: -12930.15245 | D23: [J/kg] | F23: Lambda point liquid density | G23: 11 | H23: 146.15 | J23: Melting line | K23: 11
A24: Internal Energy | B24: 11 | C24: 24592.86472 | D24: [J/kg] | F24: Molecular weight | G24: 12 | H24: 4.0026 | J24: Saturation | K24: 12
A25: Gibbs Energy | B25: 12 | C25: -7002.031012 | D25: [J/kg] | F25: Pressure of the standard state | G25: 13 | H25: 0.101325 | J25: Saturated liquid | K25: 13
A26: Res. for Fugacity | B26: 13 | C26: 0 | D26: [T/Tc] | G26: 14 | H26: 0 | J26: Saturated vapor | K26: 14
A27: Cp | B27: 14 | C27: 13268.47007 | D27: [J/kg-K] | F27: Hepack version | G27: 15 | H27: 3.4 | J27: Lambda line | K27: 15
A28: Cv | B28: 15 | C28: 3125.887913 | D28: [J/kg-K]
A29: Gamma | B29: 16 | C29: 4.244704364 | D29: [-] | J29: Phase
A30: Expansivity | B30: 17 | C30: 4.415206515 | D30: [TdV/VdT] | J30: one single phase | K30: 0
A31: Gruneisen | B31: 18 | C31: 0.7348930005 | D31: [-] | J31: Liquid | K31: 1
A32: Compressibility | B32: 19 | C32: 1.483574583e-05 | D32: [1/Pa] | J32: vapor | K32: 2
A33: Sound Velocity | B33: 20 | C33: 102.9597757 | D33: [m/s]
A34: JT Coefficient | B34: 21 | C34: 9.536592669e-06 | D34: [K/Pa]
A35: dPdD|T | B35: 22 | C35: 2497.397816 | D35: [Pa-m3/kg]
A36: dPdT|D | B36: 23 | C36: 62001.24356 | D36: [Pa/K]
A37: V*dHdV|P | B37: 24 | C37: 14424.84198 | D37: [J/kg]
A38: Viscosity | B38: 25 | C38: 1.508850006e-06 | D38: [Pa-s]
A39: Conductivity | B39: 26 | C39: 0.0112787055 | D39: [W/m-K]
A40: Prandtl # | B40: 27 | C40: 1.775038025 | D40: [-]
A41: Thermal Diff | B41: 28 | C41: 3.149455816e-08 | D41: [m2/s]
A42: Surface Tension | B42: 29 | C42: 0 | D42: [N/m]
A43: Dielectric - 1 | B43: 30 | C43: 0.01048749306 | D43: [-]
A44: Refraction - 1 | B44: 31 | C44: 0.005233253968 | D44: [-]
A45: dT(P) | B45: 32 | C45: 0 | D45: [K]
A46: dT(V) | B46: 33 | C46: 0 | D46: [K]
A47: RhoS/Rho | B47: 34 | C47: 0 | D47: [-]
A48: 2nd Sound Vel. | B48: 35 | C48: 0 | D48: [m/s]
A49: 4th Sound Vel. | B49: 36 | C49: 0 | D49: [m/s]
A50: Gorter-Mellink | B50: 37 | C50: 0 | D50: [m-s/kg]
A51: SFTC | B51: 38 | C51: 0 | D51: [W3/m5-K]
A52: (T-Tlambda) | B52: 39 | C52: 0 | D52: [K]
B53: 40 | C53: NUM | D53: [-]
A54: Lambda line | B54: 41 | C54: NUM | D54: [-]
A55: Melting line | B55: 42 | C55: NUM | D55: [-]
A56: Saturated liquid | B56: 43 | C56: NUM | D56: [-]
A57: Saturated vapor | B57: 44 | C57: NUM | D57: [-]

Sheet Gaspak_v3.3
A5: FluidProperties(Fluid;Input1;Value1;Input2;Value2;Output;Phase;Unit)
A6: FConstant(Fluid;Parameter)
A7: =VLOOKUP(B7,K10:L47,2,FALSE) -> 27 | B7: Water
A9: Index | B9: Output Parameters | C9: Value | D9: Unit | F9: Constants | H9: Value | I9: Unit | K9: Fluids | N9: Input Parameters
A10: 1 | B10: Pressure | C10: =3*10^5 -> 300000 | D10: Pa | F10: 1 | G10: Pressure upper limit | H10: =FConstant($A$7,F10) -> 100000 | I10: Pa | K10: Ammonia | L10: 1 | N10: 1 | O10: Pressure
A11: 2 | B11: Temperature | C11: 80.5 | D11: K | F11: 2 | G11: Temperature upper limit | H11: =FConstant($A$7,F11) -> 1273 | I11: K | K11: Argon | L11: 2 | N11: 2 | O11: Temperature
A12: 3 | B12: Density | C12: =FluidProperties($A$7,$A$10,$C$10,$A$11,$C$11,A12,0,1) -> 0 | D12: kg/m3 | F12: 3 | G12: Temperature lower limit | H12: =FConstant($A$7,F12) -> 273.16 | I12: K | K12: Butane, Iso | L12: 3 | N12: 3 | O12: Density
A13: 4 | B13: Entropy | C13: =FluidProperties($A$7,$A$10,$C$10,$A$11,$C$11,A13,0,1) -> 0 | D13: J/(kg.K) | F13: 4 | G13: Gas constant "R" | H13: 8.314404 | I13: J/(kg.K) | K13: Butane, Normal | L13: 4 | N13: 4 | O13: Entropy
A14: 5 | B14: Enthalpy | C14: 0 | D14: J/kg | F14: 5 | G14: Critical pressure | H14: 22064 | I14: kPa | K14: Carbon Dioxide | L14: 5 | N14: 5 | O14: Enthalpy
A15: 6 | B15: Internal energy | C15: 0 | D15: J/kg | F15: 6 | G15: Critical temperature | H15: 647.14 | I15: K | K15: Carbon Monoxide | L15: 6 | N15: 6 | O15: Internal energy
A16: 7 | B16: dP/dρ | C16: 0 | D16: Pa.m3/kg | F16: 7 | G16: Critical density | H16: 17.873657 | I16: kg/m3 | K16: Deuterium | L16: 7 | N16: 7 | O16: Vapor mass fraction
A17: 8 | B17: dP/dT | C17: 0 | D17: Pa/K | F17: 8 | G17: Triple point pressure | H17: 0.61174 | I17: Pa | K17: Ethane | L17: 8 | N17: 8 | O17: "Ligne de mélange"
A18: 9 | B18: Cv | C18: 0 | D18: J/(kg.K) | F18: 9 | G18: Triple point temperature | H18: 273.16 | I18: K | K18: Ethylene 81 | L18: 9 | N18: 9 | O18: "Diphasique"
A19: 10 | B19: Cp | C19: 0 | D19: J/(kg.K) | F19: 10 | G19: Triple point vapor density | H19: 0.00026948 | I19: kg/m3 | K19: Ethylene 86 | L19: 10 | N19: 10 | O19: Saturation
A20: 11 | B20: Gamma | C20: 0 | D20: - | F20: 11 | G20: Triple point liquid density | H20: 55.496 | I20: kg/m3 | K20: Helium | L20: 11
A21: 12 | B21: Alpha | C21: 0 | D21: - | F21: 12 | G21: Molecular weight | H21: 18.01534 | I21: g/mol | K21: Hydrogen, Equilibrium | L21: 12 | N21: Phase
A22: 13 | B22: Gruneisen | C22: 0 | D22: - | F22: 13 | G22: Pressure of the standard state | H22: 101.325 | I22: Pa | K22: Hydrogen, Normal | L22: 13 | N22: 0 | O22: one single phase
A23: 14 | B23: Kt | C23: 0 | D23: - | F23: 14 | G23: Accentric factor | H23: 0.3444772516 | I23: … | K23: Hydrogen, Ortho | L23: 14 | N23: 1 | O23: Liquid
A24: 15 | B24: Sound velocity | C24: 0 | D24: m/s | K24: Hydrogen, Para | L24: 15 | N24: 2 | O24: vapor
A25: 16 | B25: JT coefficient | C25: 0 | D25: K/Pa | H25: =H10/10^5 -> 1 | K25: Hydrogen Sulfide | L25: 16
A26: 17 | B26: (dH/dV)*V @ P=cst | C26: 0 | D26: J/kg | K26: Krypton | L26: 17
A27: 18 | B27: dH/dT @ ρ=cst | C27: 0 | D27: - | K27: Methane 86 | L27: 18
A28: 19 | B28: dS/dT @ ρ=cst | C28: 0 | D28: - | K28: Methane 89 | L28: 19
A29: 20 | B29: Compressibility factor Z | C29: 0 | D29: 1/Pa | K29: Neon 91 | L29: 20
A30: 21 | B30: Viscosity | C30: 0 | D30: Pa.s | K30: Nitrogen 73 | L30: 21
A31: 22 | B31: Conductivity | C31: 0 | D31: W/(m.K) | K31: Nitrogen 86 | L31: 22
A32: 23 | B32: Thermal diffusivity | C32: 0 | D32: m2/s | K32: Nitrogen Trifluoride | L32: 23
A33: 24 | B33: Prandtl number | C33: 0 | D33: - | K33: Oxygen 78 | L33: 24
A34: 25 | B34: Surface Tension | C34: 0 | D34: N/m | K34: Oxygen 85 | L34: 25
A35: 26 | B35: Dielectric cst | C35: 0 | D35: - | K35: Propane | L35: 26
A36: 27 | B36: PV/RT | C36: 0 | D36: - | K36: Water | L36: 27
A37: 28 | B37: dP/dT @ sat=cst | C37: 0 | D37: K/Pa | K37: Xenon | L37: 28
A38: 29 | B38: Latent Heat | C38: 0 | D38: J/kg | K38: R-11 | L38: 29
A39: 30 | B39: Fugacity / Pressure | C39: 0 | D39: - | K39: R-12 | L39: 30
K40: R-22 | L40: 31
K41: R-32 | L41: 32
K42: R-123 | L42: 33
K43: R-124 | L43: 34
K44: R-125 | L44: 35
K45: R-134a 92 | L45: 36
K46: R-134a 93 | L46: 37
K47: R-152a | L47: 38

Sheet Helium_critique
B5: HeUnit(index;Unit) | H5: HeProperty(index)
B6: HeCalc(Output;Phase;Input1;Value1;Input2;Value2;Unit) | H6: HeConst(index)
B9: Density in kg/m3 | D9: 3
P10: Pc = 2,28 bar
B11: Pression | C11: 1 | D11: 1.1 | E11: 1.2 | F11: 1.3 | G11: 1.4 | H11: 1.5 | I11: 1.6 | J11: 1.7 | K11: 1.8 | L11: 1.9 | M11: 2 | N11: 2.1 | O11: 2.2 | P11: 2.3 | Q11: 2.4 | R11: 2.5 | S11: 2.6 | T11: 2.7 | U11: 2.8 | V11: 2.9 | W11: 3 | X11: 3.1 | Y11: 3.2 | Z11: 3.3 | AA11: 3.4 | AB11: 3.5 | AC11: 3.6 | AD11: 3.7 | AE11: 3.8 | AF11: 3.9 | AG11: 4 | AH11: 4.1 | AI11: 4.2 | AJ11: 4.3 | AK11: 4.4 | AL11: 4.5 | AM11: 4.6 | AN11: 4.7 | AO11: 4.8 | AP11: 4.9 | AQ11: 5
B12: Temperature | C12: bar | D12: bar | E12: bar | F12: bar | G12: bar | H12: bar | I12: bar | J12: bar | K12: bar | L12: bar | M12: bar | N12: bar | O12: bar | P12: bar | Q12: bar | R12: bar | S12: bar | T12: bar | U12: bar | V12: bar | W12: bar | X12: bar | Y12: bar | Z12: bar | AA12: bar | AB12: bar | AC12: bar | AD12: bar | AE12: bar | AF12: bar | AG12: bar | AH12: bar | AI12: bar | AJ12: bar | AK12: bar | AL12: bar | AM12: bar | AN12: bar | AO12: bar | AP12: bar | AQ12: bar
B13: 3.7 | C13: =[1]!HeCalc($D$9,0,1,C$11*10^5,2,$B13,1) -> 135.0523222 | D13: =[1]!HeCalc($D$9,0,1,D$11*10^5,2,$B13,1) -> 135.4185753 | E13: 135.7769522 | F13: 136.1278662 | G13: 136.4716969 | H13: 136.8087938 | I13: 137.1394796 | J13: 137.4640527 | K13: 137.7827902 | L13: 138.0959492 | M13: 138.4037694 | N13: 138.7064741 | O13: 139.0042724 | P13: 139.2973596 | Q13: 139.5859191 | R13: 139.870123 | S13: 140.1501332 | T13: 140.4261022 | U13: 140.6981738 | V13: 140.9664835 | W13: 141.2311598 | X13: 141.492324 | Y13: 141.7500912 | Z13: 142.0045705 | AA13: 142.2558655 | AB13: 142.5040748 | AC13: 142.7492918 | AD13: 142.991606 | AE13: 143.2311022 | AF13: 143.4678615 | AG13: 143.7019613 | AH13: 143.9334756 | AI13: 144.1624751 | AJ13: 144.3890274 | AK13: 144.6131973 | AL13: 144.8350469 | AM13: 145.0546357 | AN13: 145.2720207 | AO13: 145.4872568 | AP13: 145.7003966 | AQ13: 145.9114909
B14: 3.8 | C14: =[1]!HeCalc($D$9,0,1,C$11*10^5,2,$B14,1) -> 133.4697467 | D14: 133.8670437 | E14: 134.2548087 | F14: 134.6335967 | G14: 135.0039126 | H14: 135.3662173 | I14: 135.7209327 | J14: 136.0684463 | K14: 136.4091147 | L14: 136.7432672 | M14: 137.0712081 | N14: 137.39322 | O14: 137.7095649 | P14: 138.0204871 | Q14: 138.3262145 | R14: 138.6269598 | S14: 138.9229222 | T14: 139.2142885 | U14: 139.5012338 | V14: 139.7839231 | W14: 140.0625116 | X14: 140.3371455 | Y14: 140.607963 | Z14: 140.8750948 | AA14: 141.1386642 | AB14: 141.3987884 | AC14: 141.6555784 | AD14: 141.9091395 | AE14: 142.1595719 | AF14: 142.4069708 | AG14: 142.6514269 | AH14: 142.8930267 | AI14: 143.1318525 | AJ14: 143.3679829 | AK14: 143.6014933 | AL14: 143.8324553 | AM14: 144.0609378 | AN14: 144.2870066 | AO14: 144.5107246 | AP14: 144.7321524 | AQ14: 144.9513479
B15: 3.9 | C15: 131.7471712 | D15: 132.1822941 | E15: 132.6056241 | F15: 133.0179321 | G15: 133.4199109 | H15: 133.8121861 | I15: 134.1953247 | J15: 134.5698426 | K15: 134.9362103 | L15: 135.2948585 | M15: 135.6461828 | N15: 135.9905471 | O15: 136.3282871 | P15: 136.6597135 | Q15: 136.9851142 | R15: 137.3047567 | S15: 137.6188899 | T15: 137.9277459 | U15: 138.2315416 | V15: 138.5304801 | W15: 138.8247513 | X15: 139.1145341 | Y15: 139.3999961 | Z15: 139.6812955 | AA15: 139.9585812 | AB15: 140.2319939 | AC15: 140.5016665 | AD15: 140.7677246 | AE15: 141.0302874 | AF15: 141.2894679 | AG15: 141.5453732 | AH15: 141.7981052 | AI15: 142.0477607 | AJ15: 142.2944321 | AK15: 142.5382072 | AL15: 142.7791698 | AM15: 143.0173998 | AN15: 143.2529737 | AO15: 143.4859646 | AP15: 143.7164421 | AQ15: 143.9444734
B16: 4 | C16: 129.8588597 | D16: 130.3411447 | E16: 130.8084355 | F16: 131.2618473 | G16: 131.702368 | H16: 132.1308773 | I16: 132.5481627 | J16: 132.9549321 | K16: 133.3518243 | L16: 133.7394184 | M16: 134.1182409 | N16: 134.4887722 | O16: 134.8514518 | P16: 135.2066831 | Q16: 135.5548374 | R16: 135.8962573 | S16: 136.2312594 | T16: 136.5601373 | U16: 136.8831637 | V16: 137.2005922 | W16: 137.5126595 | X16: 137.8195865 | Y16: 138.1215799 | Z16: 138.4188336 | AA16: 138.7115294 | AB16: 138.9998383 | AC16: 139.2839212 | AD16: 139.5639297 | AE16: 139.8400071 | AF16: 140.1122885 | AG16: 140.380902 | AH16: 140.6459688 | AI16: 140.9076037 | AJ16: 141.165916 | AK16: 141.4210091 | AL16: 141.6729816 | AM16: 141.9219274 | AN16: 142.1679358 | AO16: 142.4110921 | AP16: 142.6514775 | AQ16: 142.8891697
B17: 4.1 | C17: 127.7683233 | D17: 128.3111956 | E17: 128.8343222 | F17: 129.3394044 | G17: 129.8279202 | H17: 130.3011626 | I17: 130.7602702 | J17: 131.2062517 | K17: 131.6400052 | L17: 132.0623342 | M17: 132.4739611 | N17: 132.8755378 | O17: 133.267655 | P17: 133.6508497 | Q17: 134.0256118 | R17: 134.3923895 | S17: 134.7515941 | T17: 135.1036041 | U17: 135.4487687 | V17: 135.7874107 | W17: 136.119829 | X17: 136.4463016 | Y17: 136.7670869 | Z17: 137.0824259 | AA17: 137.3925437 | AB17: 137.6976509 | AC17: 137.9979446 | AD17: 138.2936102 | AE17: 138.5848217 | AF17: 138.8717429 | AG17: 139.1545281 | AH17: 139.4333231 | AI17: 139.7082655 | AJ17: 139.9794856 | AK17: 140.2471066 | AL17: 140.5112455 | AM17: 140.7720132 | AN17: 141.0295152 | AO17: 141.2838516 | AP17: 141.5351179 | AQ17: 141.783405
B18: 4.2 | C18: 125.4212867 | D18: 126.0451833 | E18: 126.6418275 | F18: 127.2140041 | G18: 127.7640682 | H18: 128.2940313 | I18: 128.8056273 | J18: 129.3003624 | K18: 129.7795546 | L18: 130.2443642 | M18: 130.6958192 | N18: 131.1348347 | O18: 131.5622296 | P18: 131.9787401 | Q18: 132.3850302 | R18: 132.7817019 | S18: 133.1693021 | T18: 133.5483299 | U18: 133.919242 | V18: 134.2824571 | W18: 134.6383609 | X18: 134.9873088 | Y18: 135.3296295 | Z18: 135.6656276 | AA18: 135.9955858 | AB18: 136.3197674 | AC18: 136.6384176 | AD18: 136.9517656 | AE18: 137.2600256 | AF18: 137.5633985 | AG18: 137.8620726 | AH18: 138.1562252 | AI18: 138.4460227 | AJ18: 138.7316224 | AK18: 139.0131725 | AL18: 139.2908128 | AM18: 139.5646761 | AN18: 139.8348875 | AO18: 140.1015661 | AP18: 140.3648247 | AQ18: 140.6247704
B19: 4.3 | C19: 15.74572309 | D19: 123.4699218 | E19: 124.1683033 | F19: 124.8315219 | G19: 125.4636694 | H19: 126.0681248 | I19: 126.6477147 | J19: 127.2048307 | K19: 127.7415164 | L19: 128.2595337 | M19: 128.7604135 | N19: 129.2454955 | O19: 129.7159595 | P19: 130.1728508 | Q19: 130.6171001 | R19: 131.0495403 | S19: =[1]!HeCalc($D$9,0,1,S$11*10^5,2,$B19,1) -> 131.4709199 | T19: 131.8819147 | U19: 132.2831366 | V19: 132.6751423 | W19: 133.0584393 | X19: 133.433492 | Y19: 133.8007267 | Z19: 134.1605354 | AA19: 134.5132797 | AB19: 134.8592939 | AC19: 135.1988877 | AD19: 135.532349 | AE19: 135.8599452 | AF19: 136.1819259 | AG19: 136.498524 | AH19: 136.8099576 | AI19: =[1]!HeCalc($D$9,0,1,AI$11*10^5,2,$B19,1) -> 137.1164307 | AJ19: 137.418135 | AK19: 137.7152505 | AL19: 138.0079467 | AM19: 138.2963834 | AN19: 138.580711 | AO19: 138.8610722 | AP19: 139.1376014 | AQ19: 139.4104261
B20: 4.4 | C20: 14.94262008 | D20: 17.3614372 | E20: 121.3116848 | F20: 122.106483 | G20: 122.8542738 | H20: 123.5613879 | I20: 124.2328927 | J20: 124.8729154 | K20: 125.484868 | L20: 126.0716074 | M20: 126.6355524 | N20: 127.1787714 | O20: 127.7030489 | P20: 128.2099358 | Q20: 128.7007899 | R20: 129.1768077 | S20: 129.639049 | T20: 130.0884582 | U20: 130.5258804 | V20: 130.9520752 | W20: 131.3677286 | X20: 131.7734619 | Y20: 132.1698401 | Z20: 132.5573788 | AA20: 132.9365496 | AB20: 133.3077851 | AC20: 133.6714837 | AD20: 134.0280126 | AE20: 134.3777114 | AF20: 134.7208948 | AG20: 135.057855 | AH20: 135.3888638 | AI20: 135.7141747 | AJ20: 136.0340243 | AK20: 136.3486341 | AL20: 136.6582114 | AM20: 136.9629509 | AN20: 137.2630355 | AO20: 137.5586373 | AP20: 137.8499187 | AQ20: 138.1370325
B21: 4.5 | C21: 14.25112822 | D21: 16.4325205 | E21: 18.957707 | F21: 22.03264043 | G21: 119.8149013 | H21: 120.6737665 | I21: 121.4772604 | J21: 122.2334217 | K21: 122.9485714 | L21: 123.6277813 | M21: 124.2751902 | N21: 124.8942251 | O21: 125.4877594 | P21: 126.0582287 | Q21: 126.6077178 | R21: 127.138027 | S21: 127.6507217 | T21: 128.1471737 | U21: 128.6285921 | V21: 129.0960489 | W21: 129.5504993 | X21: 129.9927983 | Y21: 130.4237155 | Z21: 130.8439451 | AA21: 131.2541167 | AB21: 131.6548027 | AC21: 132.0465253 | AD21: 132.4297627 | AE21: 132.8049535 | AF21: 133.1725015 | AG21: 133.5327791 | AH21: 133.8861307 | AI21: 134.2328754 | AJ21: 134.5733096 | AK21: 134.907709 | AL21: 135.2363308 | AM21: 135.5594151 | AN21: 135.8771864 | AO21: 136.1898553 | AP21: 136.4976191 | AQ21: 136.8006636
B22: 4.6 | C22: 13.6447766 | D22: 15.64254576 | E22: 17.89692962 | F22: 20.52292475 | G22: 23.75572277 | H22: 117.2256184 | I22: 118.2370393 | J22: 119.1690606 | K22: 120.0354135 | L22: 120.8463883 | M22: 121.6099199 | N22: 122.3322717 | O22: 123.0184846 | P22: 123.6726828 | Q22: 124.2982884 | R22: 124.898176 | S22: 125.4747861 | T22: 126.0302103 | U22: 126.566257 | V22: 127.0845002 | W22: 127.5863205 | X22: 128.0729357 | Y22: 128.545426 | Z22: 129.0047549 | AA22: 129.4517853 | AB22: 129.8872938 | AC22: 130.3119817 | AD22: 130.7264849 | AE22: 131.1313822 | AF22: 131.5272015 | AG22: 131.9144263 | AH22: 132.2935004 | AI22: 132.6648324 | AJ22: 133.0287991 | AK22: 133.3857491 | AL22: 133.7360056 | AM22: 134.0798685 | AN22: 134.4176173 | AO22: 134.7495123 | AP22: 135.0757967 | AQ22: 135.3966981
B23: 4.7 | C23: 13.10567384 | D23: 14.95593734 | E23: 17.00602587 | F23: 19.32704437 | G23: 22.04393684 | H23: 25.41654529 | I23: 114.2275107 | J23: 115.4621554 | K23: 116.574295 | L23: 117.5899155 | M23: 118.527183 | N23: 119.3993562 | O23: 120.2164438 | P23: 120.9862082 | Q23: 121.7148052 | R23: 122.4072079 | S23: 123.0674982 | T23: 123.6990723 | U23: 124.3047894 | V23: 124.8870817 | W23: 125.4480378 | X23: 125.9894652 | Y23: 126.5129399 | Z23: 127.0198457 | AA23: 127.5114043 | AB23: 127.9887007 | AC23: 128.4527031 | AD23: 128.9042794 | AE23: 129.3442111 | AF23: 129.7732045 | AG23: 130.1919003 | AH23: 130.6008819 | AI23: 131.0006818 | AJ23: 131.3917877 | AK23: 131.7746475 | AL23: 132.1496738 | AM23: 132.5172469 | AN23: 132.8777192 | AO23: 133.2314171 | AP23: 133.5786438 | AQ23: 133.9196817
B24: 4.8 | C24: 12.62110762 | D24: 14.34950819 | E24: 16.2383736 | F24: 18.33477941 | G24: 20.71356887 | H24: 23.5067212 | I24: 26.99000022 | J24: 110.616648 | K24: 112.2111793 | L24: 113.5943648 | M24: 114.8235079 | N24: 115.9345338 | O24: 116.9516293 | P24: 117.891947 | Q24: 118.7681427 | R24: 119.5898509 | S24: 120.3645949 | T24: 121.0983732 | U24: 121.7960545 | V24: 122.46165 | W24: 123.098508 | X24: 123.709455 | Y24: 124.2969019 | Z24: 124.8629223 | AA24: 125.4093144 | AB24: 125.9376491 | AC24: 126.449307 | AD24: 126.945509 | AE24: 127.4273402 | AF24: 127.8957702 | AG24: 128.3516689 | AH24: 128.7958201 | AI24: 129.2289329 | AJ24: 129.6516509 | AK24: 130.0645603 | AL24: 130.4681968 | AM24: 130.8630511 | AN24: 131.2495741 | AO24: 131.6281812 | AP24: 131.9992558 | AQ24: 132.3631529
B25: 4.9 | C25: 12.18169476 | D25: 13.80721731 | E25: 15.56465278 | F25: 17.4867456 | G25: 19.62196023 | H25: 22.04718998 | I25: 24.89745887 | J25: 28.45227633 | K25: 33.51637331 | L25: 108.2196466 | M25: 110.0587539 | N25: 111.6183964 | O25: 112.982957 | P25: 114.2023582 | Q25: 115.3088667 | R25: 116.3246765 | S25: 117.2657779 | T25: 118.1441124 | U25: 118.9688587 | V25: 119.7472386 | W25: 120.4850476 | X25: 121.1870137 | Y25: 121.8570498 | Z25: 122.4984349 | AA25: 123.1139454 | AB25: 123.7059561 | AC25: 124.2765149 | AD25: 124.8274018 | AE25: 125.3601744 | AF25: 125.8762039 | AG25: 126.376705 | AH25: 126.8627587 | AI25: 127.335332 | AJ25: 127.7952936 | AK25: 128.2434266 | AL25: 128.6804407 | AM25: 129.1069803 | AN25: 129.5236327 | AO25: 129.930935 | AP25: 130.3293796 | AQ25: 130.7194192
B26: 5 | C26: 11.78029773 | D26: 13.3174644 | E26: 14.9650945 | F26: 16.74683437 | G26: 18.69584611 | H26: 20.86098275 | I26: 23.31918145 | J26: 26.20385963 | K26: 29.78465685 | L26: 34.79214167 | M26: 102.8490854 | N26: 105.6273935 | O26: 107.76656 | P26: 109.5338468 | Q26: 111.0535899 | R26: 112.3949206 | S26: 113.6006714 | T26: 114.6994043 | U26: 115.7112132 | V26: 116.6508221 | W26: 117.5293732 | X26: 118.3555202 | Y26: 119.1361309 | Z26: 119.8767551 | AA26: 120.5819481 | AB26: 121.2554979 | AC26: 121.9005924 | AD26: 122.5199418 | AE26: 123.1158711 | AF26: 123.6903912 | AG26: 124.2452543 | AH26: 124.7819969 | AI26: 125.3019746 | AJ26: 125.8063903 | AK26: 126.2963161 | AL26: 126.7727125 | AM26: 127.2364434 | AN26: 127.688289 | AO26: 128.1289563 | AP26: 128.5590884 | AQ26: 128.979272
B27: 5.1 | C27: 11.41135374 | D27: 12.87156677 | E27: 14.42567562 | F27: 16.0912678 | G27: 17.89199057 | H27: 19.86081002 | I27: 22.04587529 | J27: 24.52204358 | K27: 27.41644747 | L27: 30.97652566 | M27: 35.81717082 | N27: 44.93483436 | O27: 99.42384146 | P27: 102.8427056 | Q27: 105.340537 | R27: 107.346664 | S27: 109.0407887 | T27: 110.5169893 | U27: 111.8312664 | V27: 113.019893 | W27: 114.1078279 | X27: 115.1130394 | Y27: 116.0489296 | Z27: 116.9257822 | AA27: 117.7516759 | AB27: 118.5330802 | AC27: 119.2752645 | AD27: 119.982581 | AE27: 120.65867 | AF27: 121.3066097 | AG27: 121.9290267 | AH27: 122.528184 | AI27: 123.1060445 | AJ27: 123.6643232 | AK27: 124.2045281 | AL27: 124.7279926 | AM27: 125.2359021 | AN27: 125.7293151 | AO27: 126.2091818 | AP27: 126.6763578 | AQ27: 127.131617
A28: Tc = 5,2K | B28: 5.2 | C28: 11.07043806 | D28: 12.46284468 | E28: 13.9360574 | F28: 15.50347332 | G28: 17.18250517 | H28: 18.99641222 | I28: 20.97733267 | J28: 23.17162579 | K28: 25.65006311 | L28: 28.52947211 | M28: 32.02635534 | N28: 36.62666678 | O28: 43.96383862 | P28: 86.95844828 | Q28: 95.73280768 | R28: 99.90334454 | S28: 102.8042394 | T28: 105.0731437 | U28: 106.9566338 | V28: 108.57797 | W28: 110.0082457 | X28: 111.2924499 | Y28: 112.4609792 | Z28: 113.5353983 | AA28: 114.5315972 | AB28: 115.4616445 | AC28: 116.3349363 | AD28: 117.158941 | AE28: 117.9396996 | AF28: 118.6821721 | AG28: 119.3904846 | AH28: 120.0681089 | AI28: 120.7179956 | AJ28: 121.3426751 | AK28: 121.9443349 | AL28: 122.5248797 | AM28: 123.085979 | AN28: 123.6291047 | AO28: 124.1555617 | AP28: 124.6665127 | AQ28: 125.1629982
B29: 5.3 | C29: 10.75397172 | D29: 12.08604242 | E29: 13.48838155 | F29: 14.97139714 | G29: 16.54824545 | H29: 18.23591084 | I29: 20.05688128 | J29: 22.04186659 | K29: 24.23445731 | L29: 26.6996825 | M29: 29.54121608 | N29: 32.94051004 | O29: 37.26331094 | P29: 43.44754454 | Q29: 55.46784951 | R29: 82.1179309 | S29: 92.0446582 | T29: 96.90644138 | U29: 100.2079085 | V29: 102.7442239 | W29: 104.8222594 | X29: 106.5933304 | Y29: 108.143503 | Z29: 109.5265639 | AA29: 110.7784582 | AB29: 111.9244446 | AC29: 112.9829801 | AD29: 113.9679796 | AE29: 114.8902062 | AF29: 115.758165 | AG29: 116.5786982 | AH29: 117.3573978 | AI29: 118.0988954 | AJ29: 118.8070721 | AK29: 119.4852149 | AL29: 120.1361329 | AM29: 120.762247 | AN29: 121.3656591 | AO29: 121.9482064 | AP29: 122.5115048 | AQ29: 123.0569833
B30: 5.4 | C30: 10.45901634 | D30: 11.7369464 | E30: 13.07652589 | F30: 14.48597577 | G30: 15.97544835 | H30: 17.55768981 | I30: 19.24901491 | J30: 21.07078922 | K30: 23.05177261 | L30: 25.23200289 | M30: 27.66961135 | N30: 30.45366927 | O30: 33.73070619 | P30: 37.766284 | Q30: 43.11098847 | R30: 51.11058711 | S30: 64.57737339 | T30: 79.85885244 | U30: 88.78599065 | V30: 94.01232762 | W30: 97.63204849 | X30: 100.4077452 | Y30: 102.6692889 | Z30: 104.5855529 | AA30: 106.2538863 | AB30: 107.7353744 | AC30: 109.0708363 | AD30: 110.2888991 | AE30: 111.4104212 | AF30: 112.4510775 | AG30: 113.4229517 | AH30: 114.3355604 | AI30: 115.196536 | AJ30: 116.0120965 | AK30: 116.7873761 | AL30: 117.5266662 | AM30: 118.2335908 | AN30: 118.9112398 | AO30: 119.5622695 | AP30: 120.1889812 | AQ30: 120.793382
B31: 5.5 | C31: 10.18312985 | D31: 11.41212441 | E31: 12.69562237 | F31: 14.04020978 | G31: 15.45386011 | H31: 16.94635459 | I31: 18.52987303 | J31: 20.21984639 | K31: 22.03622219 | L31: 24.00540477 | M31: 26.1633454 | N31: 28.56068444 | O31: 31.27175657 | P31: 34.41129578 | Q31: 38.16730487 | R31: 42.86799619 | S31: 49.10192721 | T31: 57.70779441 | U31: 68.50538243 | V31: 78.73503971 | W31: 86.22260965 | X31: 91.39344471 | Y31: 95.17556929 | Z31: 98.12504829 | AA31: 100.5387806 | AB31: 102.5838365 | AC31: 104.3611678 | AD31: 105.9357333 | AE31: 107.3515555 | AF31: 108.6397507 | AG31: 109.8230899 | AH31: 110.918722 | AI31: 111.9398782 | AJ31: 112.8969785 | AK31: 113.7983749 | AL31: 114.6508653 | AM31: 115.4600567 | AN31: 116.2306291 | AO31: 116.9665298 | AP31: 117.6711191 | AQ31: 118.3472824
B32: 5.6 | C32: 9.924259609 | D32: 11.10874174 | E32: 12.34173302 | F32: 13.62857392 | G32: 14.97562107 | H32: 16.39052083 | I32: 17.88257975 | J32: 19.46327626 | K32: 21.14698225 | L32: 22.95200397 | M32: 24.90212213 | N32: 27.02893436 | O32: 29.3755239 | P32: 32.00237404 | Q32: 34.99711864 | R32: 38.49059041 | S32: 42.68103034 | T32: 47.85553912 | U32: 54.33018563 | V32: 62.10369024 | W32: 70.40709419 | X32: 78.06258827 | Y32: 84.31535829 | Z32: 89.1548159 | AA32: 92.92753183 | AB32: 95.96002527 | AC32: 98.4764977 | AD32: 100.621866 | AE32: 102.4909155 | AF32: 104.1476093 | AG32: 105.6366034 | AH32: 106.9900767 | AI32: 108.2318824 | AJ32: 109.3801384 | AK32: 110.4489057 | AL32: 111.4493013 | AM32: 112.3902597 | AN32: 113.2790647 | AO32: 114.1217309 | AP32: 114.9232808 | AQ32: 115.6879511
B33: 5.7 | C33: 9.68066355 | D33: 10.82442993 | E33: 12.01162529 | F33: 13.24662586 | G33: 14.5345651 | H33: 15.8815146 | I33: 17.29472355 | J33: 18.78293656 | K33: 20.35682328 | L33: 22.02956826 | M33: 23.81769427 | N33: 25.74223148 | O33: 27.8304043 | P33: 30.1180966 | Q33: 32.65346758 | R33: 35.50215556 | S33: 38.75418725 | T33: 42.53069828 | U33: 46.98086055 | V33: 52.23953552 | W33: 58.30378109 | X33: 64.89012501 | Y33: 71.49121702 | Z33: 77.60261167 | AA33: 82.89824454 | AB33: 87.30674537 | AC33: 90.9403544 | AD33: 93.96442358 | AE33: 96.52520598 | AF33: 98.73365065 | AG33: 100.6701495 | AH33: 102.3927039 | AI33: 103.9436645 | AJ33: 105.3545072 | AK33: 106.6490748 | AL33: 107.8457629 | AM33: 108.9590124 | AN33: 110.0003365 | AO33: 110.9790459 | AP33: 111.9027673 | AQ33: 112.7778202
B34: 5.8 | C34: 9.450850361 | D34: 10.55718873 | E34: 11.70261121 | F34: 12.89073802 | G34: 14.12576027 | H34: 15.41256473 | I34: 16.75689003 | J34: 18.16553074 | K34: 19.64660213 | L34: 21.20988915 | M34: 22.86731099 | N34: 24.63354561 | O34: 26.52687518 | P34: 28.57033382 | Q34: 30.79325421 | R34: 33.23329052 | S34: 35.93886282 | T34: 38.97146482 | U34: 42.40583651 | V34: 46.32260691 | W34: 50.78298748 | X34: 55.77785117 | Y34: 61.17588828 | Z34: 66.73383687 | AA34: 72.17465633 | AB34: 77.25796139 | AC34: 81.82040881 | AD34: 85.79981743 | AE34: 89.22371166 | AF34: 92.16761227 | AG34: 94.71707816 | AH34: =[1]!HeCalc($D$9,0,1,AH$11*10^5,2,$B34,1) -> 96.94857447 | AI34: 98.92418431 | AJ34: 100.6924257 | AK34: 102.2907968 | AL34: 103.7483358 | AM34: 105.0877125 | AN34: 106.3268167 | AO34: 107.4799322 | AP34: 108.5585977 | AQ34: 109.5722382
B35: 5.9 | C35: 9.233533438 | D35: 10.30531333 | E35: 11.41243152 | F35: 12.55790733 | G35: 13.74519665 | H35: 14.97827786 | I35: 16.26175713 | J35: 17.60100201 | K35: 19.00230947 | L35: =[1]!HeCalc($D$9,0,1,L$11*10^5,2,$B35,1) -> 20.47311963 | M35: 22.02228936 | N35: 23.6604436 | O35: 25.40042731 | P35: 27.25788394 | Q35: 29.25198563 | R35: 31.4063195 | S35: 33.74988204 | T35: 36.31796701 | U35: 39.15236451 | V35: 42.29951387 | W35: 45.80400987 | X35: 49.69403939 | Y35: 53.95833597 | Z35: 58.52524602 | AA35: 63.26463947 | AB35: =[1]!HeCalc($D$9,0,1,AB$11*10^5,2,$B35,1) -> 68.01809382 | AC35: 72.63318167 | AD35: 76.98274439 | AE35: 80.97603567 | AF35: 84.56770188 | AG35: 87.75717196 | AH35: 90.57572835 | AI35: 93.06964012 | AJ35: 95.28749409 | AK35: 97.27359402 | AL35: 99.06567444 | AM35: 100.6948421 | AN35: 102.1863862 | AO35: 103.5607956 | AP35: 104.83471 | AQ35: 106.0217134
B36: 6 | C36: =[1]!HeCalc($D$9,0,1,C$11*10^5,2,$B36,1) -> 9.027595005 | D36: 10.06733873 | E36: 11.13916805 | F36: 12.24561971 | G36: 13.38956807 | H36: 14.57428445 | I36: 15.80351081 | J36: 17.08154747 | K36: 18.41336304 | L36: 19.80472902 | M36: 21.26238645 | N36: 22.79425181 | O36: 24.4096708 | P36: 26.11972769 | Q36: 27.93761544 | R36: 29.87905781 | S36: 31.9627538 | T36: 34.21074827 | U36: 36.64851861 | V36: 39.30434296 | W36: 42.20717284 | X36: 45.38187407 | Y36: 48.84087269 | Z36: 52.5730116 | AA36: 56.53439703 | AB36: 60.64882441 | AC36: 64.8205016 | AD36: 68.95138995 | AE36: 72.95317979 | AF36: 76.75267986 | AG36: 80.29549139 | AH36: 83.54971729 | AI36: 86.50686037 | AJ36: 89.17790911 | AK36: 91.58634246 | AL36: 93.76121999 | AM36: 95.73225238 | AN36: 97.52704508 | AO36: 99.16994951 | AP36: 100.6818465 | AQ36: 102.0803758
B37: 6.1 | C37: 8.832057794 | D37: 9.841996588 | E37: 10.88117816 | F37: 11.95174785 | G37: 13.05611451 | H37: 14.1969928 | I37: 15.37745325 | J37: 16.600984 | K37: 17.87156159 | L37: 19.19373888 | M37: 20.5727491 | N37: 22.01463062 | O37: 23.52637493 | P37: 25.11609969 | Q37: 26.79324646 | R37: 28.56879398 | S37: 30.45546995 | T37: 32.4679134 | U37: 34.62270018 | V37: 36.93806642 | W37: 39.43305495 | X37: 42.12568374 | Y37: 45.02969099 | Z37: 48.14969913 | AA37: 51.47555329 | AB37: 54.97807527 | AC37: 58.60925632 | AD37: 62.30811446 | AE37: 66.00963154 | AF37: 69.65228856 | AG37: 73.1820106 | AH37: 76.55377862 | AI37: 79.73302491 | AJ37: 82.69728315 | AK37: 85.43696455 | AL37: 87.95423476 | AM37: 90.26019177 | AN37: 92.37141376 | AO37: 94.30690378 | AP37: 96.08589711 | AQ37: 97.726555
B38: 6.2 | C38: 8.646062446 | D38: 9.628181511 | E38: 10.63704417 | F38: 11.67447555 | G38: 12.74250818 | H38: 13.84341239 | I38: 14.97973152 | J38: 16.1543243 | K38: 17.37041281 | L38: 18.63164013 | M38: 19.94213705 | N38: 21.30659958 | O38: 22.73037788 | P38: 24.21957648 | Q38: 25.78116395 | R38: 27.42308542 | S38: 29.15436753 | T38: 30.98519073 | U38: 32.92688808 | V38: 34.9917996 | W38: 37.19287117 | X38: 39.5428399 | Y38: 42.05281874 | Z38: 44.7301353 | AA38: 47.57549683 | AB38: 50.57999994 | AC38: 53.72307493 | AD38: 56.97265197 | AE38: 60.28809507 | AF38: 63.62495766 | AG38: 66.9395912 | AH38: 70.19213674 | AI38: 73.34781282 | AJ38: 76.37743333 | AK38: 79.2579947 | AL38: 81.97345257 | AM38: 84.51521839 | AN38: 86.88188562 | AO38: 89.07810258 | AP38: 91.11291842 | AQ38: 92.99804741
B39: 6.3 | C39: 8.468849289 | D39: 9.42492423 | E39: 10.40553397 | F39: 11.41223952 | G39: 12.44676649 | H39: 13.51102696 | I39: 14.60714479 | J39: 15.73748431 | K39: 16.90468462 | L39: 18.11169671 | M39: 19.36182759 | N39: 20.65878934 | O39: 22.00675384 | P39: 23.41041225 | Q39: 24.87503763 | R39: 26.40654586 | S39: 28.01154875 | T39: 29.69738518 | U39: 31.47210987 | V39: 33.34440606 | W39: 35.32337244 | X39: 37.41811603 | Y39: 39.63706788 | Z39: 41.98694497 | AA39: 44.47133329 | AB39: 47.08900316 | AC39: 49.83228107 | AD39: 52.68602496 | AE39: 55.62778208 | AF39: 58.62937586 | AG39: 61.65953718 | AH39: 64.6867022 | AI39: 67.68114915 | AJ39: 70.61614428 | AK39: 73.46836309 | AL39: 76.21806466 | AM39: 78.84935672 | AN39: 81.35057742 | AO39: 83.71458864 | AP39: 85.93874648 | AQ39: 88.02445466
B40: 6.4 | C40: 8.299743525 | D40: 9.231370128 | E40: 10.18556987 | F40: 11.16368439 | G40: 12.16718682 | H40: 13.19769775 | I40: 14.25700332 | J40: 15.34707571 | K40: 16.47009586 | L40: 17.62848037 | M40: 18.82490901 | N40: 20.06235713 | O40: 21.34412976 | P40: 22.67389762 | Q40: 24.05573342 | R40: 25.49414543 | S40: 26.99410414 | T40: 28.56105415 | U40: 30.2009001 | V40: 31.91994957 | W40: 33.72478883 | X40: 35.62205922 | Y40: 37.61809486 | Z40: 39.71838664 | AA40: 41.92683586 | AB40: 44.24483531 | AC40: 46.67025203 | AD40: 49.19652024 | AE40: 51.81212261 | AF40: 54.50073314 | AG40: 57.24213248 | AH40: 60.01372768 | AI40: 62.79226753 | AJ40: 65.5553041 | AK40: 68.2821372 | AL40: 70.9542514 | AM40: 73.55544716 | AN40: 76.07189962 | AO40: 78.49228356 | AP40: 80.80796745 | AQ40: 83.01318211
B41: 6.5 | C41: 8.138143064 | D41: 9.046761851 | E41: 9.976203833 | F41: 10.92762722 | G41: 11.90229594 | H41: 12.90159133 | I41: 13.92702523 | J41: 14.98025453 | K41: 16.06309719 | L41: 17.17754969 | M41: 18.32580732 | N41: 19.51028343 | O41: 20.73363195 | P41: 21.9987693 | Q41: 23.30889555 | R41: 24.66751291 | S41: 26.07843867 | T41: 27.54580783 | U41: 29.07405932 | V41: 30.66789642 | W41: 32.33220882 | X41: 34.07194035 | Y41: 35.89188284 | Z41: 37.79637594 | AA41: 39.78889956 | AB41: 41.87155063 | AC41: 44.04444288 | AD41: 46.30508732 | AE41: 48.64787772 | AF41: 51.06382796 | AG41: 53.54069487 | AH41: 56.06353714 | AI41: 58.61562929 | AJ41: 61.17953215 | AK41: 63.73807659 | AL41: 66.2750902 | AM41: 68.77580849 | AN41: 71.22703765 | AO41: 73.61718877 | AP41: 75.93629527 | AQ41: 78.17607309
B42: 6.6 | C42: 7.98350848 | D42: 8.870425108 | E42: 9.776597449 | F42: 10.70302942 | G42: 11.65081039 | H42: 12.62112387 | I42: 13.61525692 | J42: 14.63461061 | K42: 15.68071131 | L42: 16.75522285 | M42: 17.85995915 | N42: 18.99689898 | O42: 20.16819826 | P42: 21.37620452 | Q42: 22.62346905 | R42: 23.9127569 | S42: 25.24705239 | T42: 26.62955764 | U42: 28.06368003 | V42: 29.55300364 | W42: 31.10123767 | X42: 32.71213324 | Y42: 34.38935851 | Z42: 36.13632152 | AA42: 37.95593128 | AB42: 39.85029504 | AC42: 41.8203545 | AD42: 43.86549307 | AE42: 45.98315482 | AF42: 48.1685493 | AG42: 50.41452143 | AH42: 52.71165378 | AI42: 55.04862421 | AJ42: 57.412777 | AK42: 59.79080487 | AL42: 62.16941232 | AM42: 64.53585073 | AN42: 66.87827065 | AO42: 69.18589985 | AP42: 71.4491001 | AQ42: 73.65936939
B43: 6.7 | C43: 7.835354637 | D43: 8.701756978 | E43: 9.586005667 | F43: 10.48897411 | G43: 11.41160517 | H43: 12.35491756 | I43: 13.32001274 | J43: 14.30808242 | K43: 15.32041653 | L43: 16.35841164 | M43: 17.42357971 | N43: 18.51755679 | O43: 19.64211292 | P43: 20.79915894 | Q43: 21.99075449 | R43: 23.21911288 | S43: 24.48660273 | T43: 25.79574464 | U43: 27.14920037 | V43: 28.54975157 | W43: 30.00026408 | X43: 31.5036331 | Y43: 33.06270353 | Z43: 34.68015974 | AA43: 36.35837959 | AB43: 38.09924927 | AC43: 39.90394163 | AD43: 41.77266452 | AE43: 43.704403 | AF43: 45.69668331 | AG43: 47.74540264 | AH43: 49.84476851 | AI43: 51.98738229 | AJ43: 54.16447724 | AK43: 56.36628734 | AL43: 58.58249379 | AM43: 60.80267435 | AN43: 63.01668785 | AO43: 65.21496241 | AP43: 67.38866228 | AQ43: 69.52976411
B44: 6.8 | C44: 7.693243679 | D44: 8.540216204 | E44: 9.403763445 | F44: 10.28464786 | G44: 11.1836886 | H44: 12.10176627 | I44: 13.03982797 | J44: 13.9988927 | K44: 14.98005698 | L44: 15.98450073 | M44: 17.01349317 | N44: 18.06839877 | O44: 19.1506825 | P44: 20.26191594 | Q44: 21.4037797 | R44: 22.57806659 | S44: 23.78668101 | T44: 25.03163497 | U44: 26.31503892 | V44: 27.63908558 | W44: 29.00602434 | X44: 30.4181237 | Y44: 31.87761823 | Z44: 33.38663699 | AA44: 34.94711033 | AB44: 36.56065235 | AC44: 38.22842214 | AD44: 39.95095874 | AE44: 41.7280117 | AF44: 43.55836932 | AG44: 45.4397122 | AH44: 47.36851537 | AI44: 49.34002405 | AJ44: 51.34832128 | AK44: 53.38649151 | AL44: 55.44686672 | AM44: 57.5213239 | AN44: 59.60159439 | AO44: 61.6795409 | AP44: 63.74737943 | AQ44: 65.79782686
B45: 6.9 | C45: 7.556779108 | D45: 8.385315096 | E45: 9.229274707 | F45: 10.08932563 | G45: 10.96618203 | H45: 11.86060807 | I45: 12.77342164 | J45: 13.70549824 | K45: 14.65777492 | L45: 15.6312544 | M45: 16.62700907 | N45: 17.64618481 | O45: 18.69000451 | P45: 19.75977075 | Q45: 20.85686864 | R45: 21.98276525 | S45: 23.13900892 | T45: 24.32722511 | U45: 25.54910865 | V45: 26.8064112 | W45: 28.10092251 | X45: 29.43444369 | Y45: 30.80875071 | Z45: 32.22554617 | AA45: 33.68639752 | AB45: 35.19266034 | AC45: 36.7453861 | AD45: 38.34521741 | AE45: 39.99226973 | AF45: 41.68601405 | AG45: 43.42516395 | AH45: 45.20758416 | AI45: 47.03023522 | AJ45: 48.88916804 | AK45: 50.7795783 | AL45: 52.6959221 | AM45: 54.6320845 | AN45: 56.58158289 | AO45: 58.53778176 | AP45: 60.49409322 | AQ45: 62.44414511
B46: 7 | C46: 7.425600772 | D46: 8.23661272 | E46: 9.062003155 | F46: 9.902358464 | G46: 10.75830328 | H46: 11.63050309 | I46: 12.51966697 | J46: 13.42655037 | K46: 14.35195794 | L46: 15.29674631 | M46: 16.26182682 | N46: 17.24816793 | O46: 18.25679741 | P46: 19.28880374 | Q46: 20.34533745 | R46: 21.4276101 | S46: 22.53689287 | T46: 23.67451268 | U46: 24.84184571 | V46: 26.04030757 | W46: 27.27133916 | X46: 28.53638722 | Y46: 29.83687844 | Z46: 31.1741859 | AA46: 32.54958684 | AB46: 33.9642107 | AC46: 35.41897681 | AD46: 36.91452574 | AE46: 38.45113543 | AF46: 40.02864222 | AG46: 41.64635703 | AH46: 43.30299153 | AI46: 44.99660134 | AJ46: 46.72455558 | AK46: 48.48354093 | AL46: 50.26960532 | AM46: 52.07824152 | AN46: 53.90450539 | AO46: 55.74315789 | AP46: 57.58881596 | AQ46: 59.43610077
B47: 7.1 | C47: 7.299380583 | D47: 8.093709132 | E47: 8.901464556 | F47: 9.723163216 | G47: 10.55935304 | H47: 11.41061547 | I47: 12.27756746 | J47: 13.16086346 | K47: 14.06119741 | L47: 14.97930464 | M47: 15.91596367 | N47: 16.87199771 | O47: 17.84827593 | P47: 18.84571407 | Q47: 19.8652749 | R47: 20.90796693 | S47: 21.97484276 | T47: 23.0669955 | U47: 24.18555342 | V47: 25.33167212 | W47: 26.50652366 | X47: 27.71128208 | Y47: 28.94710459 | Z47: 30.21510755 | AA47: 31.51633679 | AB47: 32.8517315 | AC47: 34.2220816 | AD47: 35.62797828 | AE47: 37.06976096 | AF47: 38.54745586 | AG47: 40.06071907 | AH47: 41.608779 | AI47: 43.19038779 | AJ47: 44.80378633 | AK47: 46.44668859 | AL47: 48.11628997 | AM47: 49.80930239 | AN47: 51.522016 | AO47: 53.25038389 | AP47: 54.9901231 | AQ47: 56.73682291
B48: 7.2 | C48: 7.177818851 | D48: 7.956240484 | E48: 8.747220246 | F48: 9.551213953 | G48: 10.36870356 | H48: 11.20019859 | I48: 12.0462376 | J48: 12.9073896 | K48: 13.78425541 | L48: 14.67746898 | M48: 15.5876985 | N48: 16.51564732 | O48: 17.4620546 | P48: 18.42769542 | Q48: 19.41338071 | R48: 20.41995591 | S48: 21.44829919 | T48: 22.49931834 | U48: 23.57394621 | V48: 24.67313451 | W48: 25.79784525 | X48: 26.94903986 | Y48: 28.12766508 | Z48: 29.33463548 | AA48: 30.57081204 | AB48: 31.83697644 | AC48: 33.13380092 | AD48: 34.4618131 | AE48: 35.82136029 | AF48: 37.2125628 | AG48: 38.63527518 | AH48: 40.08904226 | AI48: 41.57306036 | AJ48: 43.08614546 | AK48: 44.62671204 | AL48: 46.19276606 | AM48: 47.7819149 | AN48: 49.39139562 | AO48: 51.01812129 | AP48: 52.65874278 | AQ48: 54.3097219
B49: 7.3 | C49: 7.060641129 | D49: 7.823874835 | E49: 8.598871612 | F49: 9.386034744 | G49: 10.18578921 | H49: 10.99858275 | I49: 11.8248869 | J49: 12.66519801 | K49: 13.52003816 | L49: 14.38995602 | M49: 15.27552756 | N49: 16.17735651 | O49: 17.09607461 | P49: 18.03234146 | Q49: 18.98684412 | R49: 19.96029576 | S49: 20.95343393 | T49: 21.96701788 | U49: 23.00182469 | V49: 24.05864423 | W49: 25.13827248 | X49: 26.24150302 | Y49: 27.36911643 | Z49: 28.52186722 | AA49: 29.70046804 | AB49: 30.90557103 | AC49: 32.13774599 | AD49: 33.39745558 | AE49: 34.68502732 | AF49: 36.00062524 | AG49: 37.34421549 | AH49: 38.71553723 | AI49: 40.11407163 | AJ49: 41.53901528 | AK49: 42.98925956 | AL49: 44.46337818 | AM49: 45.95962527 | AN49: 47.47594537 | AO49: 49.00999639 | AP49: 50.55918477 | AQ49: 52.12071141
B50: 7.4 | C50: 6.94759548 | D50: 7.696308556 | E50: 8.456055389 | F50: 9.227193537 | G50: 10.01009861 | H50: 10.80516503 | I50: 11.61280682 | J50: 12.43345823 | K50: 13.26757442 | L50: 14.11563196 | M50: 14.97812924 | N50: 15.85558665 | O50: 16.74854658 | P50: 17.65757311 | Q50: 18.58325137 | R50: 19.52618634 | S50: 20.48700118 | T50: 21.46633491 | U50: 22.46483913 | V50: 23.48317395 | W50: 24.52200258 | X50: 25.58198475 | Y50: 26.66376849 | Z50: 27.76798024 | AA50: 28.89521298 | AB50: 30.04601243 | AC50: 31.22086096 | AD50: 32.42015945 | AE50: 33.64420655 | AF50: 34.89317927 | AG50: 36.16710532 | AH50: 37.46584323 | AI50: 38.78905795 | AJ50: 40.13619959 | AK50: 41.50648531 | AL50: 42.89888611 | AM50: 44.31211995 | AN50: 45.74465264 | AO50: 47.19470731 | AP50: 48.66028301 | AQ50: =[1]!HeCalc($D$9,0,1,AQ$11*10^5,2,$B50,1) -> 50.13918184
B51: 7.5 | C51: 6.838450106 | D51: 7.573263223 | E51: 8.318439628 | F51: 9.074296954 | G51: 9.841167876 | H51: 10.61940068 | I51: 11.40935977 | J51: 12.21142615 | K51: 13.02599783 | L51: 13.85349008 | M51: 14.6943357 | N51: 15.54898493 | O51: 16.41790538 | P51: 17.30158153 | Q51: 18.20051408 | R51: 19.1152188 | S51: 20.04622501 | T51: 20.99407354 | U51: 21.95931403 | V51: 22.94250149 | W51: 23.94419201 | X51: 24.96493749 | Y51: 26.00527925 | Z51: 27.06574039 | AA51: 28.14681678 | AB51: 29.24896659 | AC51: 30.37259829 | AD51: 31.51805714 | AE51: 32.68561016 | AF51: 33.87542961 | AG51: 35.08757719 | AH51: 36.32198358 | AI51: 37.57843303 | AJ51: 38.85654573 | AK51: 40.15576245 | AL51: 41.47533437 | AM51: 42.81431071 | AN51: 44.17153946 | AO51: 45.54566769 | AP51: 46.93515062 | AQ51: 48.33826675
B52: 7.6 | C52: 6.732991285 | D52: 7.45448293 | E52: 8.185720223 | F52: 8.926985831 | G52: 9.678574987 | H52: 10.44079588 | I52: 11.21397001 | J52: 11.99843251 | K52: 12.79453233 | L52: 13.60263246 | M52: 14.42310989 | N52: 15.25635555 | O52: 16.10277406 | P52: 16.96278318 | Q52: 17.83681318 | R52: 18.72530575 | S52: 19.62871266 | T52: 20.54749396 | U52: 21.48211567 | V52: 22.433047 | W52: 23.40075681 | X52: 24.3857094 | Y52: 25.38835946 | Z52: 26.40914605 | AA52: 27.44848574 | AB52: 28.50676449 | AC52: 29.58432856 | AD52: 30.68147433 | AE52: 31.79843692 | AF52: 32.9353776 | AG52: 34.09237285 | AH52: 35.26939713 | AI52: 36.46631239 | AJ52: 37.6828539 | AK52: 38.91861803 | AL52: 40.17305177 | AM52: 41.44544488 | AN52: 42.73492429 | AO52: 44.04045352 | AP52: 45.3608355 | AQ52: 46.69472026
B53: 7.7 | C53: 6.631021554 | D53: 7.339731949 | E53: 8.057617905 | F53: 8.784931394 | G53: 9.521934889 | H53: 10.26890164 | I53: 11.0261159 | J53: 11.79387312 | K53: 12.57248005 | L53: 13.36225478 | M53: 14.16352669 | N53: 14.97663627 | O53: 15.80193479 | P53: 16.63978378 | Q53: 17.49055441 | R53: 18.35462646 | S53: 19.23238714 | T53: 20.12422954 | U53: 21.03055068 | V53: 21.95174913 | W53: 22.88822217 | X53: 23.84036235 | Y53: 24.80855347 | Z53: 25.79316581 | AA53: 26.79455074 | AB53: 27.81303446 | AC53: 28.84891095 | AD53: 29.90243417 | AE53: 30.97380943 | AF53: 32.06318406 | AG53: 33.17063722 | AH53: 34.29617091 | AI53: 35.43969715 | AJ53: 36.60102961 | AK53: 37.77987315 | AL53: 38.97581514 | AM53: 40.18831807 | AN53: 41.41671457 | AO53: 42.66020405 | AP53: 43.91785335 | AQ53: 45.18859985
B54: 7.8 | C54: 6.532358131 | D54: 7.228792682 | E54: 7.933875637 | F54: 8.647831943 | G54: 9.37089534 | H54: 10.10330854 | I54: 10.84532335 | J54: 11.59720079 | K54: 12.35921113 | L54: 13.13163382 | M54: 13.91475739 | N54: 14.70887923 | O54: 15.51430524 | P54: 16.33134931 | Q54: 17.16033271 | R54: 18.00158319 | S54: 18.8554339 | T54: 19.72222207 | U54: 20.60228733 | V54: 21.49596974 | W54: 22.4036074 | X54: 23.32553369 | Y54: 24.26207397 | Z54: 25.21354184 | AA54: 26.18023479 | AB54: 27.16242932 | AC54: 28.16037548 | AD54: 29.17429071 | AE54: 30.20435327 | AF54: 31.25069498 | AG54: 32.31339327 | AH54: 33.39246486 | AI54: 34.48785467 | AJ54: 35.59943014 | AK54: 36.72697262 | AL54: 37.87017023 | AM54: 39.02861157 | AN54: 40.20178074 | AO54: 41.38905404 | AP54: 42.58969856 | AQ54: 43.80287308
B55: 7.9 | C55: 6.436831506 | D55: 7.121463875 | E55: 7.814256333 | F55: 8.515409987 | G55: 9.225133303 | H55: 9.943642217 | I55: 10.67116021 | J55: 11.40791833 | K55: 12.15415519 | L55: 12.91011685 | M55: 13.67605668 | N55: 14.45223509 | O55: 15.23891919 | P55: 16.03638231 | Q55: 16.8449034 | R55: 17.66476624 | S55: 18.49625844 | T55: 19.33967037 | U55: 20.19529363 | V55: 21.06341949 | W55: 21.94433682 | X55: 22.83832986 | Y55: 23.74567552 | Z55: 24.66664035 | AA55: 25.60147711 | AB55: 26.55042082 | AC55: 27.51368448 | AD55: 28.49145426 | AE55: 29.48388434 | AF55: 30.49109124 | AG55: 31.51314744 | AH55: 32.55007731 | AI55: 33.60184701 | AJ55: 34.66836108 | AK55: 35.74945524 | AL55: 36.84489061 | AM55: 37.9543484 | AN55: 39.07742548 | AO55: 40.21363106 | AP55: 41.36238467 | AQ55: 42.52301577
B56: 8 | C56: 6.344284209 | D56: 7.017559035 | E56: 7.698540873 | F56: 8.387409741 | G56: 9.084351826 | H56: 9.789559539 | I56: 10.50323154 | J56: 11.22557271 | K56: 11.95679411 | L56: 12.69711285 | M56: 13.4467519 | N56: 14.20593983 | O56: 14.97491048 | P56: 15.75390246 | Q56: 16.54315868 | R56: 17.34292553 | S56: 18.15345212 | T56: 18.97498923 | U56: 19.80778811 | V56: 20.65209906 | W56: 21.50816976 | X56: 22.3762434 | Y56: 23.25655647 | Z56: 24.14933629 | AA56: 25.05479823 | AB56: 25.97314255 | AC56: 26.904551 | AD56: 27.84918298 | AE56: 28.80717145 | AF56: 29.77861852 | AG56: 30.76359077 | AH56: 31.76211403 | AI56: 32.77416973 | AJ56: 33.79968753 | AK56: 34.83854217 | AL56: 35.89054811 | AM56: 36.95545518 | AN56: 38.03294475 | AO56: 39.1226264 | AP56: 40.22403698 | AQ56: 41.33663702
B57: 8.1 | C57: 6.254569712 | D57: 6.916905046 | E57: 7.586526345 | F57: 8.263594941 | G57: 8.948277335 | H57: 9.64074521 | I57: 10.34117542 | J57: 11.04974995 | K57: 11.76665581 | L57: 12.49208492 | M57: 13.22623388 | N57: 13.96930374 | O57: 14.72149967 | P57: 15.48303049 | Q57: 16.25410822 | R57: =[1]!HeCalc($D$9,0,1,R$11*10^5,2,$B57,1) -> 17.03494739 | S57: 17.82576433 | T57: 18.62677628 | U57: 19.43820034 | V57: 20.26025226 | W57: 21.09314507 | X57: 21.93708749 | Y57: 22.79228209 | Z57: 23.65892329 | AA57: 24.53719509 | AB57: 25.4272685 | AC57: 26.3292988 | AD57: 27.24342251 | AE57: 28.16975406 | AF57: 29.10838231 | AG57: 30.05936686 | AH57: =[1]!HeCalc($D$9,0,1,AH$11*10^5,2,$B57,1) -> 31.02273377 | AI57: 31.99847315 | AJ57: 32.98653246 | AK57: 33.98681461 | AL57: 34.9991734 | AM57: 36.02340998 | AN57: 37.05926957 | AO57: 38.10643868 | AP57: 39.16454306 | AQ57: 40.23314633
B58: 8.2 | C58: 6.167551456 | D58: 6.819340933 | E58: 7.47802451 | F58: 8.14374693 | G58: 8.816657259 | H58: 9.496908878 | I58: 10.18465945 | J58: 10.88007084 | K58: =[1]!HeCalc($D$9,0,1,K$11*10^5,2,$B58,1) -> 11.58330902 | L58: 12.29454391 | M58: 13.0139492 | N58: 13.74170207 | O58: 14.47798287 | P58: 15.22297475 | Q58: 15.9768632 | R58: 16.73983543 | S58: 17.51207978 | T58: 18.29378492 | U58: 19.08513891 | V58: 19.88632826 | W58: 20.69753668 | X58: 21.51894377 | Y58: 22.35072352 | Z58: 23.19304264 | AA58: 24.04605865 | AB58: 24.90991788 | AC58: 25.78475315 | AD58: 26.67068137 | AE58: 27.56780087 | AF58: 28.47618856 | AG58: 29.39589701 | AH58: 30.32695089 | AI58: 31.26934564 | AJ58: 32.22304107 | AK58: 33.1879606 | AL58: 34.16398732 | AM58: 35.15096108 | AN58: 36.14867573 | AO58: 37.15687673 | AP58: 38.17525921 | AQ58: 39.20346625
B59: 8.3 | C59: =[1]!HeCalc($D$9,0,1,C$11*10^5,2,$B59,1) -> 6.083101978 | D59: 6.724716768 | E59: 7.372860438 | F59: 8.027662968 | G59: 8.689257957 | H59: 9.357782589 | I59: 10.03337759 | J59: 10.71618712 | K59: 11.40635868 | L59: 12.10404298 | M59: 12.80939366 | N59: 13.52256714 | O59: 14.24372227 | P59: 14.97301998 | Q59: 15.71062286 | R59: 16.45669465 | S59: 17.21139966 | T59: 17.97490211 | U59: 18.74736532 | V59: 19.52895087 | W59: 20.31981755 | X59: 21.1201203 | Y59: 21.93000889 | Z59: 22.74962656 | AA59: 23.57910845 | AB59: 24.41857992 | AC59: 25.26815472 | AD59: 26.12793293 | AE59: 26.99799889 | AF59: 27.87841888 | AG59: 28.76923873 | AH59: 29.6704813 | AI59: 30.58214367 | AJ59: 31.50419565 | AK59: 32.43657522 | AL59: 33.37918749 | AM59: 34.33190174 | AN59: 35.29454921 | AO59: 36.26692098 | AP59: 37.2487663 | AQ59: 38.23979079
B60: 8.4 | C60: 6.001102139 | D60: 6.632892702 | E60: 7.270871295 | F60: 7.915154742 | G60: 8.56586289 | H60: 9.223118563 | I60: 9.887047499 | J60: 10.55777825 | K60: 11.23544209 | L60: 11.9201728 | M60: 12.61210656 | N60: 13.31138164 | O60: 14.01813817 | P60: 14.73251779 | Q60: 15.45466331 | R60: 16.18471816 | S60: 16.922826 | T60: 17.66913003 | U60: 18.42377237 | V60: 19.18689329 | W60: 19.95863035 | X60: 20.73911746 | Y60: 21.52848378 | Z60: 22.32685263 | AA60: 23.1343401 | AB60: 23.95105374 | AC60: 24.77709099 | AD60: 25.61253752 | AE60: 26.45746556 | AF60: 27.31193193 | AG60: 28.1759762 | AH60: 29.04961855 | AI60: 29.93285749 | AJ60: 30.82566892 | AK60: 31.7280019 | AL60: 32.63977817 | AM60: 33.56088967 | AN60: 34.49119657 | AO60: 35.43052559 | AP60: 36.37866847 | AQ60: 37.33538071
B61: 8.5 | C61: 5.921440424 | D61: 6.543738093 | E61: 7.171905274 | F61: 7.806047046 | G61: 8.446271011 | H61: 9.092687234 | I61: 9.745408175 | J61: 10.40454859 | K61: 11.07022541 | L61: 11.74255758 | M61: 12.42166592 | N61: 13.10767283 | O61: 13.80070212 | P61: 14.50087863 | Q61: 15.20832797 | R61: 15.92317602 | S61: 16.64554855 | T61: 17.37557069 | U61: 18.11336631 | V61: 18.85905739 | W61: 19.6127633 | X61: 20.37459998 | Y61: 21.144679 | Z61: 21.92310666 | AA61: 22.70998283 | AB61: 23.50539984 | AC61: 24.30944116 | AD61: 25.12218013 | AE61: 25.94367842 | AF61: 26.77398457 | AG61: 27.61313239 | AH61: 28.46113925 | AI61: 29.31800409 | AJ61: 30.18370709 | AK61: 31.05820552 | AL61: 31.94143385 | AM61: 32.83330153 | AN61: 33.7336914 | AO61: 34.64245822 | AP61: 35.55942733 | AQ61: 36.48439359
B62: 8.6 | C62: 5.844012321 | D62: 6.457130727 | E62: 7.07582063 | F62: 7.700176609 | G62: 8.330295339 | H62: 8.96627553 | I62: 9.608217852 | J62: 10.25622483 | K62: 10.91040074 | L62: 11.57085145 | M62: 12.23768424 | N62: 12.91100763 | O62: 13.59093111 | P62: 14.27756488 | Q62: 14.97101955 | R62: 15.67140576 | S62: 16.3788338 | T62: 17.09341313 | U62: 17.81525189 | V62: 18.54445633 | W62: 19.28113017 | X62: 20.02537391 | Y62: 20.77728408 | Z62: 21.53695239 | AA62: 22.30446482 | AB62: 23.07990067 | AC62: 23.86333147 | AD62: 24.65481987 | AE62: 25.45441846 | AF62: 26.26216849 | AG62: 27.07809856 | AH62: 27.90222323 | AI62: 28.73454131 | AJ62: 29.57503589 | AK62: 30.42367044 | AL62: 31.28038923 | AM62: 32.1451154 | AN62: 33.01774965 | AO62: 33.89816899 | AP62: 34.78622556 | AQ62: 35.68174576
B63: 8.7 | C63: 5.768719752 | D63: 6.372956125 | E63: 6.982484832 | F63: 7.59739105 | G63: 8.217761692 | H63: 8.843685345 | I63: 9.475252188 | J63: 10.1125539 | K63: 10.75568354 | L63: 11.40473542 | M63: 12.0598049 | N63: 12.72098828 | O63: 13.3883825 | P63: 14.06208493 | Q63: 14.74219311 | R63: 15.42880437 | S63: 16.12201556 | T63: 16.82192254 | U63: 17.52861985 | V63: 18.24220012 | W63: 18.96275358 | X63: 19.69036747 | Y63: 20.42512535 | Z63: 21.16710641 | AA63: 21.91638471 | AB63: 22.67302836 | AC63: 23.43709862 | AD63: 24.20864895 | AE63: 24.98772404 | AF63: 25.77435876 | AG63: 26.56857704 | AH63: 27.37039077 | AI63: 28.17979825 | AJ63: 28.99678459 | AK63: 29.82131791 | AL63: 30.6533501 | AM63: 31.49281512 | AN63: 32.33962788 | AO63: 33.19368315 | AP63: 34.05485466 | AQ63: 34.92299419
B64: 8.8 | C64: 5.695470575 | D64: 6.291106911 | E64: 6.891773786 | F64: 7.497547943 | G64: 8.10850756 | H64: 8.724732183 | I64: 9.346302648 | J64: 9.973300985 | K64: 10.60581031 | L64: 11.24391468 | M64: 11.88769896 | N64: 12.53724866 | O64: 13.19264968 | P64: 13.85398815 | Q64: 14.52135015 | R64: 15.19482142 | S64: 15.87448703 | T64: 16.56043106 | U64: 17.25273621 | V64: 17.95148334 | W64: 18.65675101 | X64: 19.36861497 | Y64: 20.08714762 | Z64: 20.81241737 | AA64: 21.54448801 | AB64: 22.28341802 | AC64: 23.02925978 | AD64: 23.78205886 | AE64: 24.54185308 | AF64: 25.30867173 | AG64: 26.0825346 | AH64: 26.86345106 | AI64: 27.65141872 | AJ64: 28.44642404 | AK64: 29.2484387 | AL64: 30.05742058 | AM64: 30.87331224 | AN64: 31.69603997 | AO64: 32.5255129 | AP64: 33.36162219 | AQ64: 34.20424029
B65: 8.9 | C65: 5.624178115 | D65: 6.211482253 | E65: 6.803571151 | F65: 7.400513984 | G65: 8.002381101 | H65: 8.609243963 | I65: 9.221175065 | J65: 9.838247843 | K65: 10.46053657 | L65: 11.08811623 | M65: 11.72106239 | N65: 12.35945101 | O65: 13.00335829 | P65: 13.65286046 | Q65: 14.30803354 | R65: 14.9689531 | S65: 15.63569397 | T65: 16.30832992 | U65: 16.98693335 | V65: 17.67157488 | W65: 18.36232294 | X65: 19.05924337 | Y65: 19.76239889 | Z65: 20.4718486 | AA65: 21.18764743 | AB65: 21.90984553 | AC65: 22.63848765 | AD65: 23.37361249 | AE65: 24.11525194 | AF65: 24.86343042 | AG65: 25.61816404 | AH65: 26.37945986 | AI65: 27.14731471 | AJ65: 27.92171595 | AK65: 28.70263799 | AL65: 29.49004347 | AM65: 30.28388184 | AN65: 31.0840886 | AO65: 31.89058457 | AP65: 32.70327512 | AQ65: 33.5220496
B66: 9 | C66: 5.554760757 | D66: 6.133987345 | E66: 6.717767718 | F66: 7.306164241 | G66: 7.89924024 | H66: 8.497059935 | I66: 9.099688366 | J66: 9.707191303 | K66: 10.31963515 | L66: 10.93708683 | M66: 11.55961364 | N66: 12.18728312 | O66: 12.8201629 | P66: 13.45832047 | Q66: 14.10182302 | R66: 14.75073719 | S66: 15.40512883 | T66: 16.0650627 | U66: 16.7306022 | V66: 17.40180905 | W66: 18.07874287 | X66: 18.76146088 | Y66: 19.4500174 | Z66: 20.14446348 | AA66: 20.84484637 | AB66: 21.55120904 | AC66: 22.26358963 | AD66: 22.98202088 | AE66: 23.70652955 | AF66: 24.43713578 | AG66: 25.17385246 | AH66: 25.91668456 | AI66: 26.66562809 | AJ66: 27.42067099 | AK66: 28.18178982 | AL66: 28.948951 | AM66: 29.72210958 | AN66: 30.5012086 | AO66: 31.2861784 | AP66: 32.07693607 | AQ66: 32.87338487
B67: 9.1 | C67: 5.487141563 | D67: 6.058532954 | E67: 6.634260845 | F67: 7.214381476 | G67: 7.79895186 | H67: 8.388029725 | I67: 8.981673437 | J67: 9.57994192 | K67: 10.18289456 | L67: 10.79059109 | M67: 11.40309149 | N67: 12.02045584 | O67: 12.64274414 | P67: 13.27001621 | Q67: 13.90233143 | R67: 14.5397486 | S67: 15.18232567 | T67: 15.83011952 | U67: 16.48318569 | V67: 17.14157809 | W67: 17.80534869 | X67: 18.47454718 | Y67: 19.14922062 | Z67: 19.82941304 | AA67: 20.51516504 | AB67: 21.20651337 | AC67: 21.90349041 | AD67: 22.60612378 | AE67: 23.31443574 | AF67: 24.02844274 | AG67: 24.74815482 | AH67: 25.47357508 | AI67: 26.20469872 | AJ67: 26.94151405 | AK67: 27.68399931 | AL67: 28.43212401 | AM67: 29.18584777 | AN67: 29.9451198 | AO67: 30.70987836 | AP67: 31.4800502 | AQ67: 32.25555013
B68: 9.2 | C68: 5.421247932 | D68: 5.985034994 | E68: 6.552953957 | F68: 7.12505554 | G68: 7.70139108 | H68: 8.282012474 | I68: 8.866972107 | J68: 9.456322776 | K68: 10.0501176 | L68: 10.64840992 | M68: 11.25125318 | N68: 11.85870083 | O68: 12.47080616 | P68: 13.08762214 | Q68: 13.70920131 | R68: 14.33559551 | S68: 14.96685578 | T68: 15.60303205 | U68: 16.24417298 | V68: 16.89032566 | W68: 17.54153535 | X68: 18.1978452 | Y68: 18.85929592 | Z68: 19.52592545 | AA68: 20.19776861 | AB68: 20.87485672 | AC68: 21.55721721 | AD68: 22.24487322 | AE68: 22.93784313 | AF68: 23.63614014 | AG68: 24.3397718 | AH68: 25.04873955 | AI68: 25.76303783 | AJ68: 26.48265517 | AK68: 27.20757118 | AL68: 27.93775786 | AM68: 28.67317861 | AN68: 29.4137878 | AO68: 30.15953022 | AP68: 30.91034072 | AQ68: 31.66614374
B69: 9.3 | C69: 5.357011288 | D69: 5.913414149 | E69: 6.473756081 | F69: 7.038082822 | G69: 7.606440597 | H69: 8.178876062 | I69: 8.755436234 | J69: 9.336168422 | K69: 9.921120141 | L69: 10.51033902 | M69: 11.1038727 | N69: 11.70176872 | O69: 12.30407438 | P69: 12.91083665 | Q69: 13.52210195 | R69: 14.13791604 | S69: 14.7583238 | T69: 15.38336911 | U69: 16.01309454 | V69: 16.64754122 | W69: 17.28674854 | X69: 17.93075392 | Y69: 18.57959253 | Z69: 19.23329701 | AA69: 19.89189714 | AB69: 20.55541953 | AC69: 21.2238873 | AD69: 21.89731969 | AE69: 22.5757317 | AF69: 23.25913372 | AG69: 23.94753112 | AH69: 24.64092385 | AI69: 25.33930568 | AJ69: 26.04266527 | AK69: 26.75098331 | AL69: 27.46423388 | AM69: 28.18238355 | AN69: 28.90539096 | AO69: 29.63320642 | AP69: 30.36577156 | AQ69: 31.10301893
B70: 9.4 | C70: 5.294366794 | D70: 5.843595528 | E70: 6.396581433 | F70: 6.953365751 | G70: 7.513990098 | H70: 8.078496411 | I70: 8.646926889 | J70: 9.219323914 | K70: 9.795729987 | L70: 10.37618763 | M70: 10.9607393 | N70: 11.54942727 | O70: 12.14229356 | P70: 12.73937974 | Q70: 13.34072685 | R70: 13.94637525 | S70: 14.55636444 | T70: 15.17073288 | U70: 15.78951785 | V70: 16.4127552 | W70: 17.0404792 | X70: 17.67272224 | Y70: 18.30951466 | Z70: 18.95088444 | AA70: 19.596857 | AB70: 20.24745483 | AC70: 20.9026973 | AD70: 21.56260026 | AE70: 22.22717577 | AF70: 22.89643178 | AG70: 23.57037175 | AH70: 24.24899433 | AI70: 24.93229268 | AJ70: 25.62025552 | AK70: 26.31286445 | AL70: 27.0100953 | AM70: 27.71191728 | AN70: 28.41829265 | AO70: 29.12917639 | AP70: 29.84451585 | AQ70: 30.56425045
B71: 9.5 | C71: 5.233253092 | D71: 5.775508348 | E71: 6.321349039 | F71: 6.870812345 | G71: 7.423935722 | H71: 7.98075686 | I71: 8.541313617 | J71: 9.105643959 | K71: 9.673785885 | L71: 10.24577735 | M71: 10.82165618 | N71: 11.40145996 | O71: 11.98522597 | P71: 12.57299103 | Q71: 13.16479139 | R71: 13.76066262 | S71: 14.36063944 | T71: 14.96475557 | U71: 15.57304359 | V71: 16.18553475 | W71: 16.80225876 | X71: 17.42324364 | Y71: 18.04851547 | Z71: 18.67809821 | AA71: 19.3120134 | AB71: 19.95027999 | AC71: 20.59291406 | AD71: 21.23992851 | AE71: 21.89133286 | AF71: 22.54713292 | AG71: 23.20733049 | AH71: 23.87192309 | AI71: 24.54090333 | AJ71: 25.21425997 | AK71: 25.89197538 | AL71: 26.57402685 | AM71: 27.26038585 | AN71: 27.95101774 | AO71: 28.64588143 | AP71: 29.34492917 | AQ71: 30.04810623
B72: 9.6 | C72: 5.173612064 | D72: 5.709085643 | E72: 6.247982388 | F72: 6.7903358 | G72: 7.336179581 | H72: 7.885547589 | I72: 8.438473776 | J72: 8.994992136 | K72: 9.555136631 | L72: 10.11894112 | M72: 10.68643929 | N72: 11.25766454 | O72: 11.83264992 | P72: 12.41142802 | Q72: 12.99403084 | R72: 13.5804897 | S72: 14.17083508 | T72: 14.76509651 | U72: 15.36330243 | V72: 15.96548001 | W72: 16.57165499 | X72: 17.18185152 | Y72: 17.79609197 | Z72: 18.41439672 | AA72: 19.036784 | AB72: 19.66326962 | AC72: 20.29386678 | AD72: 20.92858586 | AE72: 21.56743412 | AF72: 22.21041552 | AG72: 22.85753045 | AH72: 23.50877542 | AI72: 24.16414258 | AJ72: 24.82362069 | AK72: 25.4871928 | AL72: 26.15483745 | AM72: 26.82652805 | AN72: 27.50223259 | AO72: 28.1819134 | AP72: 28.86552689 | AQ72: 29.55302336
B73: 9.7 | C73: 5.115388615 | D73: 5.644264009 | E73: 6.176409119 | F73: 6.711854118 | G73: 7.250629316 | H73: 7.79276511 | I73: 8.338291934 | J73: 8.887240206 | K73: 9.439640263 | L73: 9.995522292 | M73: 10.55491626 | N73: 11.11785184 | O73: 11.68435831 | P73: 12.25446447 | Q73: 12.82819855 | R73: 13.40558808 | S73: 13.98665981 | T73: 14.57143955 | U73: 15.15995206 | V73: 15.75222092 | W73: 16.34826838 | X73: 16.94811517 | Y73: 17.55178041 | Z73: 18.15928138 | AA73: 18.77063334 | AB73: 19.38584938 | AC73: 20.00494023 | AD73: 20.62791402 | AE73: 21.25477608 | AF73: 21.88552876 | AG73: 22.52017119 | AH73: 23.15869906 | AI73: 23.80110409 | AJ73: 24.44737507 | AK73: 25.09749561 | AL73: 25.75144537 | AM73: 26.40919941 | AN73: 27.07072802 | AO73: 27.73599645 | AP73: 28.40496475 | AQ73: 29.07758752
B74: 9.8 | C74: 5.058530474 | D74: 5.580983353 | E74: 6.10656073 | F74: 6.635289766 | G74: 7.167197696 | H74: 7.702311794 | I74: 8.240659322 | J74: 8.782267476 | K74: 9.327163332 | L74: 9.875373782 | M74: 10.42692547 | N74: 10.9818447 | O74: 11.54015741 | P74: 12.10188901 | Q74: 12.66706436 | R74: =[1]!HeCalc($D$9,0,1,R$11*10^5,2,$B74,1) -> 13.23570765 | S74: 13.80784228 | T74: 14.38349077 | U74: 14.96267465 | V74: 15.54541432 | W74: 16.13172892 | X74: 16.72163621 | Y74: 17.31515242 | Z74: 17.9122921 | AA74: 18.51306795 | AB74: 19.11749068 | AC74: 19.72556882 | AD74: 20.33730855 | AE74: 20.95271355 | AF74: 21.57178476 | AG74: 22.19452023 | AH74: 22.82091492 | AI74: 23.45096022 | AJ74: 24.08464492 | AK74: 24.72195316 | AL74: 25.36286556 | AM74: 26.00735864 | AN74: 26.65540468 | AO74: 27.30697149 | AP74: 27.96202224 | AQ74: 28.62051529
B75: 9.9 | C75: =[1]!HeCalc($D$9,0,1,C$11*10^5,2,$B75,1) -> 5.002988005 | D75: 5.519186677 | E75: 6.038372321 | F75: 6.560569361 | G75: 7.085802254 | H75: 7.614095449 | I75: 8.145473343 | J75: 8.679960229 | K75: 9.217580249 | L75: 9.758357331 | M75: 10.30231513 | N75: 10.84947696 | O75: 11.39986574 | P75: 11.95350386 | Q75: 12.51041319 | R75: 13.07061493 | S75: 13.6341295 | T75: 14.20097652 | U75: 14.77117463 | V75: 15.34474142 | W75: 15.92169332 | X75: 16.50204543 | Y75: 17.08581146 | Z75: 17.67300356 | AA75: 18.26363218 | AB75: 18.85770592 | AC75: 19.45523143 | AD75: 20.05621321 | AE75: 20.66065344 | AF75: 21.26855188 | AG75: 21.87990564 | AH75: 22.49470905 | AI75: 23.11295325 | AJ75: 23.73462704 | AK75: 24.35971502 | AL75: 24.98819867 | AM75: 25.62005581 | AN75: 26.25526045 | AO75: 26.89378264 | AP75: 27.53558831 | AQ75: 28.18063907
B76: 10 | C76: 4.948713981 | D76: 5.458819875 | E76: 5.971782344 | F76: 6.487623391 | G76: 7.006364954 | H76: 7.528028928 | I76: 8.052637121 | J76: 8.580211208 | K76: 9.110772686 | L76: 9.64434282 | M76: 10.18094258 | N76: 10.7205926 | O76: 11.26331308 | P76: 11.80912374 | Q76: 12.35804376 | R76: 12.91009166 | S76: 13.46528526 | T76: 14.02364154 | U76: 14.58517663 | V76: 15.14990561 | W76: 15.7178425 | X76: 16.28900008 | Y76: 16.86338983 | Z76: 17.44102177 | AA76: 18.0219044 | AB76: 18.60604448 | AC76: 19.193447 | AD76: 19.78411498 | AE76: 20.37804934 | AF76: 20.97524878 | AG76: 21.57570964 | AH76: 22.17942571 | AI76: 22.78638791 | AJ76: 23.39658506 | AK76: 24.01000222 | AL76: 24.62662161 | AM76: 25.24642222 | AN76: 25.86937959 | AO76: 26.49546575 | AP76: 27.12464903 | AQ76: 27.75689392
B77: 10.1 | C77: 4.895663677 | D77: 5.399831545 | E77: 5.906732389 | F77: 6.416385951 | G77: 6.928811887 | H77: 7.444029778 | I77: 7.962059091 | J77: 8.48291914 | K77: 9.006629039 | L77: 9.53320765 | M77: 10.06267354 | N77: 10.59504491 | O77: 11.13033957 | P77: 11.66857482 | Q77: 12.20976743 | R77: 12.75393356 | S77: 13.30108866 | T77: 13.85124744 | U77: 14.40442373 | V77: 14.96063043 | W77: 15.51987941 | X77: 16.0821814 | Y77: 16.64754591 | Z77: 17.21598112 | AA77: 17.78749378 | AB77: 18.36208905 | AC77: 18.93977048 | AD77: 19.52053979 | AE77: 20.10439681 | AF77: 20.69133935 | AG77: 21.28136306 | AH77: 21.87446099 | AI77: 22.47062476 | AJ77: 23.06984239 | AK77: 23.6720996 | AL77: 24.27737935 | AM77: 24.88566161 | AN77: 25.49692333 | AO77: 26.11113827 | AP77: 26.7282769 | AQ77: 27.34830624
B78: 10.2 | C78: 4.843794332 | D78: 5.342172813 | E78: 5.843166974 | F78: 6.346794504 | G78: 6.853072988 | H78: 7.362019912 | I78: 7.873652627 | J78: 8.387988313 | K78: 8.905043932 | L78: 9.424836187 | M78: 9.947381476 | N78: 10.47269584 | O78: 11.00079489 | P78: 11.5316938 | Q78: 12.0654072 | R78: 12.6019491 | S78: 13.14133289 | T78: 13.6835712 | U78: 14.22867586 | V78: 14.77665782 | W78: 15.32752704 | X78: 15.88129246 | Y78: 16.43796184 | Z78: 16.99754174 | AA78: 17.56003737 | AB78: 18.12545251 | AC78: 18.69378942 | AD78: 19.26504872 | AE78: 19.83922928 | AF78: 20.41632814 | AG78: 20.99634037 | AH78: 21.57925869 | AI78: 22.1650745 | AJ78: 22.75377596 | AK78: 23.34534917 | AL78: 23.9397777 | AM78: 24.53704246 | AN78: 25.13712164 | AO78: 25.73999055 | AP78: 26.34562154 | AQ78: 26.9539839
B79: 10.3 | C79: 4.793065294 | D79: 5.285797125 | E79: 5.78103336 | F79: 6.278789659 | G79: 6.779081782 | H79: 7.281925317 | I79: 7.787335699 | J79: 8.295328178 | K79: 8.805917777 | L79: 9.31911925 | M79: 9.834947044 | N79: 10.35341525 | O79: 10.87453754 | P79: 11.39832714 | Q79: 11.92479677 | R79: 12.45395856 | S79: 12.98582401 | T79: 13.52040393 | U79: 14.05770837 | V79: 14.59774653 | W79: 15.14052671 | X79: 15.68605623 | Y79: 16.23434135 | Z79: 16.78538716 | AA79: 17.33919755 | AB79: 17.89577507 | AC79: 18.45512087 | AD79: 19.01723462 | AE79: 19.58211435 | AF79: 20.14975644 | AG79: 20.72015546 | AH79: 21.29330387 | AI79: 21.86919292 | AJ79: 22.4478109 | AK79: 23.02914426 | AL79: 23.61317715 | AM79: 24.19989134 | AN79: 24.78926611 | AO79: 25.38127818 | AP79: 25.97590161 | AQ79: 26.57310768
B80: 10.4 | C80: 4.743437819 | D80: 5.230660327 | E80: 5.720281381 | F80: 6.212314973 | G80: 6.70677515 | H80: 7.203675779 | I80: 7.703030559 | J80: 8.204852996 | K80: 8.70915636 | L80: 9.21595365 | M80: 9.725257554 | N80: 10.23708041 | O80: 10.75143414 | P80: 11.26833025 | Q80: 11.78777973 | R80: 12.30979301 | S80: 12.83437994 | T80: 13.3615497 | U80: 13.89131074 | V80: 14.42367072 | W80: 14.95863647 | X80: 15.49621388 | Y80: 16.03640786 | Z80: 16.57922224 | AA80: 17.12465974 | AB80: 17.67272183 | AC80: 18.22340871 | AD80: 18.77671917 | AE80: 19.33265058 | AF80: 19.89119874 | AG80: 20.4523578 | AH80: 21.01612001 | AI80: 21.58247649 | AJ80: 22.1514157 | AK80: 22.72292442 | AL80: 23.29698733 | AM80: 23.87358699 | AN80: 24.45270369 | AO80: 25.0343154 | AP80: 25.6183977 | AQ80: 26.20492368
B81: 10.5 | C81: 4.694874962 | D81: 5.176720169 | E81: 5.660863215 | F81: 6.14731676 | G81: 6.636093111 | H81: 7.127204633 | I81: 7.620663457 | J81: 8.116481508 | K81: 8.614670472 | L81: 9.115241765 | M81: 9.618206492 | N81: 10.12357541 | O81: 10.63135888 | P81: 11.14156684 | Q81: 11.65420875 | R81: 12.16929353 | S81: 12.68682954 | T81: 13.2068245 | U81: 13.72928546 | V81: 14.2542187 | W81: 14.78162974 | X81: 15.31152321 | Y81: 15.84390283 | Z81: 16.37877133 | AA81: 16.91613039 | AB81: 17.45598054 | AC81: 17.99832115 | AD81: 18.54315029 | AE81: 19.0904647 | AF81: 19.6402597 | AG81: 20.19252887 | AH81: 20.74726503 | AI81: 21.30445847 | AJ81: 21.86409807 | AK81: 22.42617091 | AL81: 22.99066222 | AM81: 23.55755522 | AN81: 24.12683116 | AO81: 24.69846914 | AP81: 25.27244612 | AQ81: 25.8487368
B82: 10.6 | C82: 4.647341465 | D82: 5.123936429 | E82: 5.602733499 | F82: 6.08374392 | G82: 6.566978621 | H82: 7.052448537 | I82: 7.540164375 | J82: 8.030136633 | K82: 8.522375565 | L82: 9.016891157 | M82: 9.513693086 | N82: 10.01279069 | O82: 10.51419292 | P82: 11.01790832 | Q82: 11.52394497 | R82: 12.03231044 | S82: 12.54301175 | T82: 13.05605533 | U82: 13.57144697 | V82: 14.08919175 | W82: 14.609294 | X82: 15.13175727 | Y82: 15.65658421 | Z82: 16.18377658 | AA82: 16.71333515 | AB82: 17.24525964 | AC82: 17.77954868 | AD82: 18.31619972 | AE82: 18.85520898 | AF82: 19.39657138 | AG82: 19.94028023 | AH82: 20.48632815 | AI82: 21.03470547 | AJ82: 21.58540122 | AK82: 22.13840278 | AL82: 22.69369586 | AM82: =[1]!HeCalc($D$9,0,1,AM$11*10^5,2,$B82,1) -> 23.25126435 | AN82: 23.81109033 | AO82: 24.37315396 | AP82: 24.93743343 | AQ82: 25.5039049
B83: 10.7 | C83: 4.600803666 | D83: 5.072270735 | E83: 5.545848787 | F83: 6.021547721 | G83: 6.49937739 | H83: 6.979347253 | I83: 7.461466787 | J83: 7.945745196 | K83: 8.432191441 | L83: 8.920814215 | M83: 9.411621911 | N83: 9.904622585 | O83: 10.39982393 | P83: 10.89723322 | Q83: 11.39685731 | R83: 11.89870255 | S83: 12.4027748 | T83: 12.90907931 | U83: 13.41762075 | V83: 13.92840313 | W83: 14.44142975 | X83: 14.95670316 | Y83: 15.47422512 | Z83: 15.9939965 | AA83: 16.51601728 | AB83: 17.04028648 | AC83: 17.56680209 | AD83: 18.09556103 | AE83: 18.62655906 | AF83: 19.15979076 | AG83: 19.69524926 | AH83: =[1]!HeCalc($D$9,0,1,AH$11*10^5,2,$B83,1) -> 20.23292702 | AI83: 20.77281439 | AJ83: 21.31490059 | AK83: 21.85917329 | AL83: 22.40561865 | AM83: 22.95422118 | AN83: 23.50496374 | AO83: 24.05782743 | AP83: 24.61279159 | AQ83: 25.16983371
B84: 10.8 | C84: 4.555229399 | D84: 5.021686455 | E84: 5.490167708 | F84: 5.960681904 | G84: 6.433237643 | H84: 6.90784346 | I84: 7.384507435 | J84: 7.863237672 | K84: 8.344041964 | L84: 8.826927836 | M84: 9.311902519 | N84: 9.798972921 | O84: 10.28814559 | P84: 10.77942669 | Q84: 11.27282194 | R84: 11.76833664 | S84: 12.26597556 | T84: 12.76574294 | U84: 13.26764245 | V84: 13.77167713 | W84: 14.27784938 | X84: 14.78616089 | Y84: 15.29661257 | Z84: 15.80920456 | AA84: 16.32393616 | AB84: 16.84080574 | AC84: 17.35981077 | AD84: 17.88094768 | AE84: 18.40421188 | AF84: 18.92959742 | AG84: 19.45709798 | AH84: 19.98670519 | AI84: 20.51840972 | AJ84: 21.05220094 | AK84: 21.58806684 | AL84: 22.12599398 | AM84: 22.66596746 | AN84: 23.20797085 | AO84: 23.75198615 | AP84: 24.29799372 | AQ84: 24.84597227
B85: 10.9 | C85: 4.510587918 | D85: 4.972148593 | E85: 5.435650771 | F85: 5.901102145 | G85: 6.368510259 | H85: 6.837882488 | I85: 7.309226123 | J85: 7.782547954 | K85: 8.257854795 | L85: 8.73515312 | M85: 9.214449111 | N85: 9.695748639 | O85: 10.17905723 | P85: 10.66438003 | Q85: 11.15172178 | R85: 11.64108679 | S85: 12.1324789 | T85: 12.62590142 | U85: 13.12135714 | V85: 13.61884825 | W85: 14.11837634 | X85: 14.61994233 | Y85: 15.12354641 | Z85: 15.62918808 | AA85: 16.136866 | AB85: 16.64657804 | AC85: 17.15832116 | AD85: 17.67209142 | AE85: 18.1878839 | AF85: 18.70569247 | AG85: 19.22551058 | AH85: 19.74732987 | AI85: 20.27114109 | AJ85: 20.79693375 | AK85: 21.32469615 | AL85: 21.85441525 | AM85: 22.3860767 | AN85: 22.91966473 | AO85: 23.45516215 | AP85: 23.99255029 | AQ85: 24.53180894
B86: 11 | C86: 4.466849812 | D86: 4.923623701 | E86: 5.382260256 | F86: 5.842766213 | G86: 6.305148153 | H86: 6.769412489 | I86: 7.235565444 | J86: 7.703613135 | K86: 8.173561154 | L86: 8.645415103 | M86: 9.119180225 | N86: 9.594861453 | O86: 10.07246339 | P86: 10.55199028 | Q86: 11.03344597 | R86: 11.51683391 | S86: 12.00215708 | T86: 12.48941798 | U86: 12.97861861 | V86: 13.46976042 | W86: 13.96284425 | X86: 14.45787036 | Y86: 14.95483834 | Z86: 15.45374706 | AA86: 15.95459469 | AB86: 16.45737861 | AC86: 16.96209539 | AD86: 17.46874074 | AE86: 17.97730927 | AF86: 18.48779535 | AG86: 19.00019161 | AH86: 19.51448993 | AI86: 20.03068112 | AJ86: 20.5487549 | AK86: 21.06869983 | AL86: 21.59050328 | AM86: 22.11415138 | AN86: 22.63962901 | AO86: 23.16691973 | AP86: 23.69600573 | AQ86: 24.22686783
B87: 11.1 | C87: 4.42398693 | D87: 4.87607979 | E87: 5.329960118 | F87: 5.785633777 | G87: 6.243106475 | H87: 6.702383753 | I87: 7.163470958 | J87: 7.626373233 | K87: 8.09109549 | L87: 8.557642505 | M87: 9.026018457 | N87: 9.496227535 | O87: 9.96827341 | P87: 10.44215982 | Q87: 10.91788951 | R87: 11.39546525 | S87: 11.87488926 | T87: 12.35616333 | U87: 12.83928875 | V87: 13.32426628 | W87: 13.81109616 | X87: 14.29977804 | Y87: 14.79031094 | Z87: 15.28269325 | AA87: 15.77692267 | AB87: 16.27299618 | AC87: 16.77091 | AD87: 17.27065956 | AE87: 17.77223928 | AF87: 18.27564332 | AG87: 18.78086428 | AH87: 19.28789404 | AI87: 19.79672352 | AJ87: 20.30734261 | AK87: 20.81974014 | AL87: 21.33390388 | AM87: 21.84982043 | AN87: 22.36747525 | AO87: 22.88685258 | AP87: 23.40793546 | AQ87: 23.93070564
B88: 11.2 | C88: 4.381972323 | D88: 4.829486256 | E88: 5.278715897 | F88: 5.729666315 | G88: 6.182342424 | H88: 6.636748971 | I88: 7.092890513 | J88: 7.550771402 | K88: 8.010395767 | L88: 8.471767493 | M88: 8.934890124 | N88: 9.399767159 | O88: 9.866401558 | P88: 10.33479601 | Q88: 10.80495282 | R88: 11.27687397 | S88: 11.75056103 | T88: 12.22601513 | U88: 12.70323693 | V88: 13.18222662 | W88: 13.66298387 | X88: 14.1455078 | Y88: 14.62979695 | Z88: 15.11584926 | AA88: 15.60366204 | AB88: 16.09323193 | AC88: 16.58455484 | AD88: 17.07762599 | AE88: 17.57243961 | AF88: 18.06898973 | AG88: 18.56726892 | AH88: 19.0672691 | AI88: 19.56898128 | AJ88: 20.07239555 | AK88: 20.57750102 | AL88: 21.0842858 | AM88: 21.59273696 | AN88: 22.10284049 | AO88: 22.61458132 | AP88: 23.1279432 | AQ88: 23.64290876
B89: 11.3 | C89: 4.340780155 | D89: 4.783813773 | E89: 5.228494584 | F89: 5.674826934 | G89: 6.122815018 | H89: 6.572462858 | I89: 7.023774297 | J89: 7.476752971 | K89: 7.931402302 | L89: 8.387725473 | M89: 8.845725413 | N89: 9.305404776 | O89: 9.766765919 | P89: 10.22981088 | Q89: 10.69454138 | R89: 11.16095874 | S89: 11.62906392 | T89: 12.09885749 | U89: 12.57033954 | V89: 13.04350975 | W89: 13.51836728 | X89: 13.9949108 | Y89: 14.47313843 | Z89: 14.95304772 | AA89: 15.43463564 | AB89: 15.91789852 | AC89: 16.40283205 | AD89: 16.88943103 | AE89: 17.37769018 | AF89: 17.8676028 | AG89: 18.35916167 | AH89: 18.85235875 | AI89: 19.34718518 | AJ89: 19.84363123 | AK89: 20.34168628 | AL89: 20.84133879 | AM89: 21.34257626 | AN89: 21.8453852 | AO89: 22.34975113 | AP89: 22.85565853 | AQ89: 23.36309082
B90: 11.4 | C90: 4.300385675 | D90: 4.739034273 | E90: 5.179264619 | F90: 5.621080403 | G90: 6.064485163 | H90: 6.509482269 | I90: 6.956074909 | J90: 7.404266077 | K90: 7.854058552 | L90: 8.305454886 | M90: 8.758457383 | N90: 9.213068082 | O90: 9.66928874 | P90: 10.12712081 | Q90: 10.58656542 | R90: =[1]!HeCalc($D$9,0,1,R$11*10^5,2,$B90,1) -> 11.04762337 | S90: 11.51029507 | T90: 11.97458056 | U90: 12.44047947 | V90: 12.90799099 | W90: 13.37711386 | X90: 13.84784633 | Y90: 14.32018618 | Z90: 14.7941306 | AA90: 15.26967628 | AB90: 15.74681929 | AC90: 16.22555512 | AD90: 16.7058786 | AE90: 17.18778392 | AF90: 17.67126455 | AG90: 18.15631317 | AH90: 18.64292205 | AI90: 19.13108231 | AJ90: 19.62078443 | AK90: 20.11201803 | AL90: 20.60477191 | AM90: 21.09903398 | AN90: 21.59479125 | AO90: 22.0920298 | AP90: 22.59073478 | AQ90: 23.09089033
B91: 11.5 | C91: =[1]!HeCalc($D$9,0,1,C$11*10^5,2,$B91,1) -> 4.260765141 | D91: 4.695120844 | E91: 5.130995758 | F91: 5.568392973 | G91: 6.00731543 | H91: 6.447765907 | I91: 6.889747002 | J91: 7.333261124 | K91: 7.778310473 | L91: 8.22489703 | M91: 8.673022536 | N91: 9.122688479 | O91: 9.573896074 | P91: 10.02664625 | Q91: 10.48093962 | R91: 10.93677649 | S91: 11.39415679 | T91: 11.85308011 | U91: 12.31354564 | V91: 12.77555217 | W91: 13.23909805 | X91: 13.70418119 | Y91: 14.17079902 | Z91: 14.63894848 | AA91: 15.10862598 | AB91: 15.57982739 | AC91: 16.05254802 | AD91: 16.52678259 | AE91: 17.00252518 | AF91: 17.47976927 | AG91: 17.95850764 | AH91: 18.4387324 | AI91: 18.92043495 | AJ91: 19.40360594 | AK91: 19.88823526 | AL91: 20.37431203 | AM91: 20.86182456 | AN91: 21.35076031 | AO91: 21.84110591 | AP91: 22.33284711 | AQ91: 22.82596868
B92: 11.6 | C92: 4.221895771 | D92: 4.652047681 | E92: 5.083659015 | F92: 5.516732319 | G92: 5.951269991 | H92: 6.387274271 | I92: 6.824747223 | J92: 7.263690726 | K92: 7.704106459 | L92: 8.145995886 | M92: 8.589360243 | N92: 9.03420052 | O92: 9.480517448 | P92: 9.928311484 | Q92: 10.37758279 | R92: 10.82833121 | S92: 11.28055627 | T92: 11.73425715 | U92: 12.18943267 | V92: 12.64608123 | W92: 13.10420087 | X92: 13.56378919 | Y92: 14.02484333 | Z92: 14.48735999 | AA92: 14.95133537 | AB92: 15.41676516 | AC92: 15.88364453 | AD92: 16.35196809 | AE92: 16.82172989 | AF92: 17.29292336 | AG92: 17.76554136 | AH92: 18.23957606 | AI92: 18.715019 | AJ92: 19.19186103 | AK92: 19.6700923 | AL92: 20.14970223 | AM92: 20.6306795 | AN92: 21.11301202 | AO92: 21.59668692 | AP92: 22.08169053 | AQ92: 22.56800833
B93: 11.7 | C93: 4.183755692 | D93: 4.609790024 | E93: 5.037226598 | F93: 5.466067465 | G93: 5.896314533 | H93: 6.327969551 | I93: 6.761034102 | J93: 7.195509584 | K93: 7.631397205 | L93: 8.068697965 | M93: 8.507412644 | N93: 8.947541786 | O93: 9.389085689 | P93: 9.832044384 | Q93: 10.27641763 | R93: 10.72220487 | S93: 11.16940527 | T93: 11.61801763 | U93: 12.06804044 | V93: 12.5194718 | W93: 12.97230944 | X93: 13.42655069 | Y93: 13.88219247 | Z93: 14.33923125 | AA93: 14.79766306 | AB93: 15.25748344 | AC93: 15.71868745 | AD93: 16.18126962 | AE93: 16.64522397 | AF93: 17.11054395 | AG93: 17.57722245 | AH93: 18.04525174 | AI93: 18.51462351 | AJ93: 18.9853288 | AK93: 19.45735801 | AL93: 19.93070086 | AM93: 20.40534639 | AN93: 20.88128292 | AO93: 21.35849807 | AP93: 21.83697869 | AQ93: 22.31671088
B94: 11.8 | C94: 4.146323899 | D94: 4.568324107 | E94: 4.991671844 | F94: 5.416368713 | G94: 5.842416176 | H94: 6.269815538 | I94: 6.698567945 | J94: 7.128674363 | K94: 7.560135574 | L94: 7.992952159 | M94: 8.427124488 | N94: 8.862652707 | O94: 9.299536722 | P94: 9.737776189 | Q94: 10.1773705 | R94: 10.61831876 | S94: 11.06061978 | T94: 11.50427206 | U94: 11.94927379 | V94: 12.39562279 | W94: 12.84331655 | X94: 13.29235215 | Y94: 13.74272631 | Z94: 14.19443533 | AA94: 14.64747507 | AB94: 15.10184098 | AC94: 15.55752801 | AD94: 16.01453065 | AE94: 16.4728429 | AF94: 16.93245822 | AG94: 17.39336958 | AH94: 17.85556934 | AI94: 18.31904936 | AJ94: 18.78380085 | AK94: 19.24981446 | AL94: 19.71708021 | AM94: 20.18558746 | AN94: 20.65532496 | AO94: 21.12628075 | AP94: 21.59844221 | AQ94: 22.07179601
B95: 11.9 | C95: 4.109580207 | D95: 4.527627105 | E95: 4.946969162 | F95: 5.367607574 | G95: 5.789543396 | H95: 6.212777536 | I95: 6.637310741 | J95: 7.063143588 | K95: 7.490276474 | L95: 7.918709604 | M95: 8.348442981 | N95: 8.779476391 | O95: 9.211809393 | P95: 9.645441306 | Q95: 10.08037119 | R95: 10.51659786 | S95: 10.95411982 | T95: 11.39293529 | U95: 11.8330422 | V95: 12.27443813 | W95: 12.71712034 | X95: 13.16108573 | Y95: 13.60633084 | Z95: 14.05285181 | AA95: 14.50064439 | AB95: 14.94970391 | AC95: 15.40002529 | AD95: 15.85160297 | AE95: 16.30443094 | AF95: 16.75850272 | AG95: 17.21381132 | AH95: 17.67034924 | AI95: 18.12810847 | AJ95: 18.58708043 | AK95: 19.047256 | AL95: 19.50862548 | AM95: 19.97117857 | AN95: 20.43490438 | AO95: 20.89979139 | AP95: 21.36582745 | AQ95: 21.83299977
B96: 12 | C96: 4.073505214 | D96: 4.487677089 | E96: 4.903093978 | F96: 5.319756704 | G96: 5.737665958 | H96: 6.156822283 | I96: 6.577226068 | J96: 6.998877538 | K96: 7.421776746 | L96: 7.845923558 | M96: 8.271317646 | N96: 8.697958475 | O96: 9.125845294 | P96: 9.554977122 | Q96: 9.985352735 | R96: 10.41697066 | S96: 10.84982915 | T96: 11.28392619 | U96: 11.71925947 | V96: 12.15582636 | W96: 12.59362394 | X96: 13.03264893 | Y96: 13.47289772 | Z96: 13.91436634 | AA96: 14.35705043 | AB96: 14.80094525 | AC96: 15.24604567 | AD96: 15.69234611 | AE96: 16.1398406 | AF96: 16.58852267 | AG96: 17.03838544 | AH96: 17.48942152 | AI96: 17.94162305 | AJ96: 18.39498163 | AK96: 18.84948839 | AL96: 19.30513389 | AM96: 19.76190815 | AN96: 20.21980065 | AO96: 20.67880026 | AP96: 21.13889531 | AQ96: 21.60007349
B97: 12.1 | C97: 4.038080257 | D97: 4.448452981 | E97: 4.860022683 | F97: 5.272789851 | G97: 5.686754842 | H97: 6.101917872 | I97: 6.518279008 | J97: 6.935838157 | K97: 7.35459506 | L97: 7.77454928 | M97: 8.195700193 | N97: 8.618046978 | O97: 9.041588606 | P97: 9.466323828 | Q97: 9.892251168 | R97: 10.31936891 | S97: 10.74767508 | T97: 11.17716744 | U97: 11.60784349 | V97: 12.03970042 | W97: 12.47273514 | X97: 12.90694423 | Y97: 13.34232396 | Z97: 13.77887025 | AA97: 14.21657867 | AB97: 14.65544443 | AC97: 15.09546235 | AD97: 15.53662687 | AE97: 15.97893203 | AF97: 16.42237145 | AG97: 16.8669383 | AH97: 17.31262533 | AI97: 17.75942482 | AJ97: 18.20732858 | AK97: 18.65632796 | AL97: 19.10641377 | AM97: 19.55757636 | AN97: 20.00980553 | AO97: 20.46309055 | AP97: 20.91742017 | AQ97: 21.37278257
B98: 12.2 | C98: 4.003287383 | D98: 4.409934511 | E98: 4.817732587 | F98: 5.226681793 | G98: 5.636782187 | H98: 6.048033687 | I98: 6.46043607 | J98: 6.873988957 | K98: 7.28869181 | L98: 7.70454392 | M98: 8.121544398 | N98: 8.539692167 | O98: 8.95898595 | P98: 9.379424264 | Q98: 9.801005407 | R98: 10.22372745 | S98: 10.64758821 | T98: 11.07258528 | U98: 11.49871597 | V98: 11.92597733 | W98: 12.35436612 | X98: 12.7838788 | Y98: 13.21451155 | Z98: 13.64626019 | AA98: 14.07912024 | AB98: 14.51308687 | AC98: 14.9481549 | AD98: 15.38431878 | AE98: 15.82157257 | AF98: 16.25990995 | AG98: 16.69932422 | AH98: 17.13980822 | AI98: 17.58135441 | AJ98: 18.02395478 | AK98: 18.46760088 | AL98: 18.91228381 | AM98: 19.3579942 | AN98: 19.80472216 | AO98: 20.25245737 | AP98: 20.70118895 | AQ98: 21.15090554
B99: 12.3 | C99: 3.96910931 | D99: 4.372102179 | E99: 4.77620187 | F99: 5.181408291 | G99: 5.587721226 | H99: 5.995140329 | I99: 6.403665113 | J99: 6.813294942 | K99: 7.224029029 | L99: 7.635866419 | M99: 8.048805988 | N99: 8.462846432 | O99: 8.877986254 | P99: 9.294223762 | Q99: 9.711557054 | R99: 10.12998401 | S99: 10.54950229 | T99: 10.9701093 | U99: 11.39180222 | V99: 11.81457796 | W99: 12.23843317 | X99: 12.6633642 | Y99: 13.08936715 | Z99: 13.51643778 | AA99: 13.94457157 | AB99: 14.37376366 | AC99: 14.80400887 | AD99: 15.23530167 | AE99: 15.66763619 | AF99: 16.10100616 | AG99: 16.53540498 | AH99: 16.97082564 | AI99: 17.40726072 | AJ99: 17.84470243 | AK99: 18.28314252 | AL99: 18.72257233 | AM99: 19.16298278 | AN99: 19.60436431 | AO99: 20.04670693 | AP99: 20.49000016 | AQ99: 20.93423306
B100: 12.4 | C100: 3.935529397 | D100: 4.334937216 | E100: 4.735409542 | F100: 5.136946037 | G100: 5.539546239 | H100: 5.943209561 | I100: 6.347935278 | J100: 6.753722528 | K100: 7.160570296 | L100: 7.568477412 | M100: 7.97744254 | N100: 8.387464173 | O100: 8.798540622 | P100: 9.210670009 | Q100: 9.623850259 | R100: 10.03807909 | S100: 10.453354 | T100: 10.86967227 | U100: 11.28703094 | V100: 11.70542682 | W100: 12.12485645 | X100: 12.54531611 | Y100: 12.96680182 | Z100: 13.38930932 | AA100: 13.81283403 | AB100: 14.2373711 | AC100: 14.66291536 | AD100: 15.08946131 | AE100: 15.51700313 | AF100: 15.94553464 | AG100: 16.37504934 | AH100: 16.80554034 | AI100: 17.23700039 | AJ100: 17.66942187 | AK100: 18.10279675 | AL100: 18.53711662 | AM100: 18.97237265 | AN100: 19.40855559 | AO100: 19.84565579 | AP100: 20.28366314 | AQ100: 20.72256709
B101: 12.5 | C101: 3.902531614 | D101: 4.29842155 | E101: 4.695335405 | F101: 5.093272613 | G101: 5.492232494 | H101: 5.892214243 | I101: 6.293216924 | J101: 6.695239468 | K101: 7.098280661 | L101: 7.502339137 | M101: 7.907413376 | N101: 8.313501688 | O101: 8.720602216 | P101: 9.128712919 | Q101: 9.537831568 | R101: 9.947955738 | S101: 10.3590828 | T101: 10.77120991 | U101: 11.18433401 | V101: 11.5984518 | W101: 12.01355976 | X101: 12.42965409 | Y101: 12.84673076 | Z101: 13.26478549 | AA101: 13.68381367 | AB101: 14.10381047 | AC101: 14.52477072 | AD101: 14.94668898 | AE101: 15.36955948 | AF101: 15.79337614 | AG101: 16.21813255 | AH101: 16.64382196 | AI101: 17.07043727 | AJ101: 17.49797104 | AK101: 17.92641546 | AL101: 18.35576233 | AM101: 18.7860031 | AN101: 19.21712882 | AO101: 19.64913013 | AP101: 20.08199729 | AQ101: 20.51572013
B102: 12.6 | C102: 3.870100513 | D102: 4.262537776 | E102: 4.655960009 | F102: 5.050366444 | G102: 5.445756202 | H102: 5.842128283 | I102: 6.239481564 | J102: 6.637814789 | K102: 7.037126565 | L102: 7.437415357 | M102: 7.838679475 | N102: 8.240917075 | O102: 8.644126146 | P102: 9.048304507 | Q102: 9.453449795 | R102: 9.859559464 | S102: 10.26663077 | T102: 10.67466077 | U102: 11.08364632 | V102: 11.49358403 | W102: 11.90447031 | X102: 12.31630134 | Y102: 12.72907304 | Z102: 13.14278109 | AA102: 13.55742091 | AB102: 13.97298766 | AC102: 14.38947621 | AD102: 14.80688116 | AE102: 15.22519681 | AF102: 15.64441718 | AG102: 16.06453596 | AH102: 16.48554653 | AI102: 16.90744196 | AJ102: 17.33021497 | AK102: 17.75385796 | AL102: 18.17836295 | AM102: 18.60372165 | AN102: 19.02992539 | AO102: 19.45696511 | AP102: 19.8848314 | AQ102: 20.31351446
B103: 12.7 | C103: 3.838221202 | D103: 4.22726912 | E103: 4.617264622 | F103: 5.008206758 | G103: 5.400094469 | H103: 5.792926584 | I103: 6.186701807 | J103: 6.581418721 | K103: 6.977075773 | L103: 7.373671273 | M103: 7.771203388 | N103: 8.169670133 | O103: 8.569069365 | P103: 8.96939878 | Q103: 9.370655902 | R103: 9.772838076 | S103: 10.17594247 | T103: 10.57996604 | U103: 10.98490557 | V103: 11.39075763 | W103: 11.79751857 | X103: 12.20518451 | Y103: 12.61375138 | Z103: 13.02321482 | AA103: 13.43357028 | AB103: 13.84481293 | AC103: 14.25693768 | AD103: 14.66993918 | AE103: 15.08381183 | AF103: 15.49854971 | AG103: 15.91414664 | AH103: 16.33059613 | AI103: 16.74789139 | AJ103: 17.16602533 | AK103: 17.58499054 | AL103: 18.00477927 | AM103: 18.42538346 | AN103: 18.8467947 | AO103: 19.26900425 | AP103: 19.692003 | AQ103: 20.11578151
B104: 12.8 | C104: 3.806879319 | D104: 4.192599414 | E104: 4.579231195 | F104: 4.966773549 | G104: 5.355225258 | H104: 5.744584994 | I104: 6.134851311 | J104: 6.526022645 | K104: 6.918097302 | L104: 7.311073459 | M104: 7.704949152 | N104: 8.099722276 | O104: 8.495390573 | P104: 8.891951632 | Q104: 9.289402876 | R104: 9.687741564 | S104: 10.08696478 | T104: 10.48706941 | U104: 10.88805219 | V104: 11.28990961 | W104: 11.69263801 | X104: 12.09623348 | Y104: 12.50069193 | Z104: 12.90600901 | AA104: 13.31218017 | AB104: 13.71920062 | AC104: 14.12706532 | AD104: 14.53576899 | AE104: 14.94530607 | AF104: 15.35567077 | AG104: 15.76685701 | AH104: 16.17885844 | AI104: 16.59166841 | AJ104: 17.00528002 | AK104: 17.41968603 | AL104: 17.83487891 | AM104: 18.25085085 | AN104: 18.66759368 | AO104: 19.08509894 | AP104: 19.50335784 | AQ104: 19.92236126
B105: 12.9 | C105: 3.776061007 | D105: 4.158513065 | E105: 4.54184233 | F105: 4.926047542 | G105: 5.311127342 | H105: 5.697080262 | I105: 6.083904723 | J105: 6.471599029 | K105: 6.860161365 | L105: 7.249589787 | M105: 7.63988222 | N105: 8.031036452 | O105: 8.423050126 | P105: 8.815920738 | Q105: 9.209645629 | R105: 9.604221981 | S105: 9.999646807 | T105: 10.39591695 | U105: 10.79302908 | V105: 11.19097966 | W105: 11.589765 | X105: 11.98938118 | Y105: 12.3898241 | Z105: 12.79108942 | AA105: 13.19317263 | AB105: 13.59606895 | AC105: 13.99977341 | AD105: 14.40428078 | AE105: 14.80958561 | AF105: 15.21568218 | AG105: 15.62256453 | AH105: 16.03022645 | AI105: 16.43866144 | AJ105: 16.84786275 | AK105: 17.25782335 | AL105: 17.66853592 | AM105: 18.07999284 | AN105: 18.49218623 | AO105: 18.90510788 | AP105: 19.3187493 | AQ105: 19.73310166
B106: 13 | C106: 3.745752895 | D106: 4.124995032 | E106: 4.505081249 | F106: 4.886010158 | G106: 5.267780271 | H106: 5.650389996 | I106: 6.033837636 | J106: 6.418121382 | K106: 6.803239308 | L106: 7.189189367 | M106: 7.575969386 | N106: 7.963577061 | O106: 8.352009949 | P106: 8.741265469 | Q106: 9.131340892 | R106: =[1]!HeCalc($D$9,0,1,R$11*10^5,2,$B106,1) -> 9.522233334 | S106: 9.913939756 | T106: 10.30645696 | U106: 10.69978156 | V106: 11.09391002 | W106: 11.48883862 | X106: 11.88456343 | Y106: 12.28108035 | Z106: 12.67838508 | AA106: 13.07647312 | AB106: 13.47533976 | AC106: 13.87498005 | AD106: 14.27538885 | AE106: 14.67656078 | AF106: 15.07849025 | AG106: 15.48117139 | AH106: 15.88459812 | AI106: 16.2887641 | AJ106: 16.69366274 | AK106: 17.09928719 | AL106: 17.50563033 | AM106: 17.91268478 | AN106: 18.32044286 | AO106: 18.72889665 | AP106: 19.13803792 | AQ106: 19.54785816
B107: 13.1 | C107: =[1]!HeCalc($D$9,0,1,C$11*10^5,2,$B107,1) -> 3.715942074 | D107: 4.092030799 | E107: 4.46893177 | F107: 4.846643482 | G107: 5.225164332 | H107: 5.604492621 | I107: 5.984626546 | J107: 6.365564199 | K107: 6.747303557 | L107: 7.129842484 | M107: 7.513178721 | N107: 7.897309884 | O107: 8.282233462 | P107: 8.667946804 | Q107: 9.054447122 | R107: 9.441731484 | S107: 9.829796805 | T107: 10.21863985 | U107: 10.60825721 | V107: 10.99864534 | W107: 11.38980049 | X107: 11.78171875 | Y107: 12.17439604 | Z107: 12.56782807 | AA107: 12.96201038 | AB107: 13.3569383 | AC107: 13.75260695 | AD107: 14.14901127 | AE107: 14.54614596 | AF107: 14.94400552 | AG107: 15.34258421 | AH107: 15.74187608 | AI107: 16.14187493 | AJ107: 16.54257433 | AK107: 16.94396761 | AL107: 17.34604785 | AM107: 17.74880787 | AN107: 18.15224024 | AO107: 18.55633727 | AP107: 18.961091 | AQ107: 19.3664932
B108: 13.2 | C108: 3.686616074 | D108: 4.059606354 | E108: 4.433378276 | F108: 4.807930231 | G108: 5.183260518 | H108: 5.559367342 | I108: 5.936248806 | J108: 6.313902915 | K108: 6.692327565 | L108: 7.071520538 | M108: 7.451479506 | N108: 7.832202017 | O108: 8.213685497 | P108: 8.595927243 | Q108: 8.978924418 | R108: 9.362674048 | S108: 9.747173016 | T108: 10.13241806 | U108: 10.51840576 | V108: 10.90513255 | W108: 11.29259469 | X108: 11.68078828 | Y108: 12.06970925 | Z108: 12.45935336 | AA108: 12.84971617 | AB108: 13.24079308 | AC108: 13.63257926 | AD108: 14.02506974 | AE108: 14.41825929 | AF108: 14.81214253 | AG108: 15.20671383 | AH108: 15.60196736 | AI108: 15.99789707 | AJ108: 16.3944967 | AK108: 16.79175974 | AL108: 17.18967945 | AM108: =[1]!HeCalc($D$9,0,1,AM$11*10^5,2,$B108,1) -> 17.58824888 | AN108: 17.9874608 | AO108: 18.38730777 | AP108: 18.78778209 | AQ108: 19.18887579
B109: 13.3 | C109: 3.657762853 | D109: 4.027708164 | E109: 4.398405691 | F109: 4.769853731 | G109: 5.142050497 | H109: 5.514994107 | I109: 5.888682587 | J109: 6.263113864 | K109: 6.638285762 | L109: 7.014195998 | M109: 7.39084218 | N109: 7.768221802 | O109: 8.146332237 | P109: 8.525170738 | Q109: 8.904734431 | R109: 9.285020309 | S109: 9.666025232 | T109: 10.04774592 | U109: 10.43017895 | V109: 10.81332074 | W109: 11.19716757 | X109: 11.58171556 | Y109: 11.96696066 | Z109: 12.35289865 | AA109: 12.73952517 | AB109: 13.12683564 | AC109: 13.51482533 | AD109: 13.90348932 | AE109: 14.29282249 | AF109: 14.68281956 | AG109: 15.073475 | AH109: =[1]!HeCalc($D$9,0,1,AH$11*10^5,2,$B109,1) -> 15.46478313 | AI109: 15.85673803 | AJ109: 16.24933359 | AK109: 16.64256347 | AL109: 17.03642113 | AM109: 17.43089979 | AN109: 17.82599246 | AO109: 18.22169192 | AP109: 18.6179907 | AQ109: 19.01488112
B110: 13.4 | C110: 3.62937077 | D110: 3.996323158 | E110: 4.363999457 | F110: 4.732397885 | G110: 5.101516576 | H110: 5.471353576 | I110: 5.841906842 | J110: 6.213174233 | K110: 6.585153514 | L110: 6.957842344 | M110: 7.33123828 | N110: 7.705338768 | O110: 8.080141142 | P110: 8.455642618 | Q110: 8.831840292 | R110: 9.208731136 | S110: 9.586311992 | T110: 9.964579571 | U110: 10.34353045 | V110: 10.72316105 | W110: 11.10346767 | X110: 11.48444644 | Y110: 11.86609336 | Z110: 12.24840424 | AA110: 12.63137476 | AB110: 13.01500042 | AC110: 13.39927654 | AD110: 13.7841983 | AE110: 14.16976066 | AF110: 14.55595843 | AG110: 14.94278623 | AH110: 15.33023847 | AI110: 15.71830938 | AJ110: 16.10699301 | AK110: 16.49628319 | AL110: 16.88617353 | AM110: 17.27665748 | AN110: 17.66772822 | AO110: 18.05937877 | AP110: 18.45160189 | AQ110: 18.84439015
B111: 13.5 | C111: 3.601428573 | D111: 3.965438703 | E111: 4.330145511 | F111: 4.695547148 | G111: 5.061641678 | H111: 5.428427086 | I111: 5.795901267 | J111: 6.164062025 | K111: 6.532907073 | L111: 6.902434023 | M111: 7.272640388 | N111: 7.643523577 | O111: 8.015080891 | P111: 8.387309519 | Q111: 8.760206537 | R111: 9.133768899 | S111: 9.507993441 | T111: 9.882876868 | U111: 10.25841576 | V111: 10.63460656 | W111: 11.01144558 | X111: 11.38892898 | Y111: 11.76705278 | Z111: 12.14581286 | AA111: 12.52520494 | AB111: 12.90522458 | AC111: 13.28586718 | AD111: 13.66712799 | AE111: 14.04900207 | AF111: 14.43148434 | AG111: 14.81456951 | AH111: 15.19825214 | AI111: 15.58252659 | AJ111: 15.96738705 | AK111: 16.35282751 | AL111: 16.73884176 | AM111: 17.12542343 | AN111: 17.51256591 | AO111: 17.90026242 | AP111: 18.28850595 | AQ111: 18.67728931
B112: 13.6 | C112: 3.573925382 | D112: 3.935042587 | E112: 4.296830266 | F112: 4.659286505 | G112: 5.022409314 | H112: 5.386196621 | I112: 5.750646272 | J112: 6.115756022 | K112: 6.481523541 | L112: 6.847946402 | M112: 7.215022084 | N112: 7.582747967 | O112: 7.951121325 | P112: 8.320139328 | Q112: 8.689799038 | R112: 9.060097401 | S112: 9.431031249 | T112: 9.802597294 | U112: 10.17479212 | V112: 10.5476122 | W112: 10.92105385 | X112: 11.29511329 | Y112: 11.66978655 | Z112: 12.04506958 | AA112: 12.42095814 | AB112: 12.79744786 | AC112: 13.17453423 | AD112: 13.55221256 | AE112: 13.93047801 | AF112: 14.30932561 | AG112: 14.68875017 | AH112: 15.06874638 | AI112: 15.44930874 | AJ112: 15.83043157 | AK112: 16.21210902 | AL112: 16.59433507 | AM112: 16.9771035 | AN112: 17.3604079 | AO112: 17.7442417 | AP112: 18.12859811 | AQ112: 18.51347016
B113: 13.7 | C113: 3.546850671 | D113: 3.905123004 | E113: 4.264040585 | F113: 4.623601449 | G113: 4.983803555 | H113: 5.344644787 | I113: 5.706122945 | J113: 6.068235748 | K113: 6.430980829 | L113: 6.794355729 | M113: 7.158357902 | N113: 7.522984702 | O113: 7.888233388 | P113: 8.254101116 | Q113: 8.62058494 | R113: 8.987681804 | S113: 9.355388544 | T113: 9.72370188 | U113: 10.09261842 | V113: 10.46213464 | W113: 10.8322469 | X113: 11.20295144 | Y113: 11.57424437 | Z113: 11.94612165 | AA113: 12.31857912 | AB113: 12.69161247 | AC113: 13.06521726 | AD113: 13.43938889 | AE113: 13.81412263 | AF113: 14.18941357 | AG113: 14.56525668 | AH113: 14.94164673 | AI113: 15.31857837 | AJ113: 15.69604606 | AK113: 16.07404411 | AL113: 16.45256665 | AM113: 16.83160763 | AN113: 17.21116085 | AO113: 17.5912199 | AP113: 17.97177823 | AQ113: 18.35282908
B114: 13.8 | C114: 3.520194258 | D114: 3.875668532 | E114: 4.231763767 | F114: 4.588477954 | G114: 4.94580901 | H114: 5.303754779 | I114: 5.662313027 | J114: 6.021481439 | K114: 6.381257621 | L114: 6.741639091 | M114: 7.102623279 | N114: 7.464207526 | O114: 7.826389078 | P114: 8.189165086 | Q114: 8.552532599 | R114: 8.916488566 | S114: 9.281029832 | T114: 9.64615313 | U114: 10.01185509 | V114: 10.37813221 | W114: 10.74498089 | X114: 11.11239741 | Y114: 11.48037791 | Z114: 11.84891842 | AA114: 12.21801483 | AB114: 12.58766291 | AC114: 12.95785829 | AD114: 13.32859645 | AE114: 13.69987275 | AF114: 14.0716824 | AG114: 14.44402045 | AH114: 14.81688182 | AI114: 15.19026128 | AJ114: 15.56415341 | AK114: 15.93855269 | AL114: 16.31345339 | AM114: 16.68884965 | AN114: 17.06473542 | AO114: 17.44110452 | AP114: 17.81795056 | AQ114: 18.19526701
B115: 13.9 | C115: 3.493946285 | D115: 3.846668121 | E115: 4.199987529 | F115: 4.553902461 | G115: 4.908410802 | H115: 5.263510361 | I115: 5.619198876 | J115: 5.975474009 | K115: 6.332333341 | L115: 6.689774373 | M115: 7.047794522 | N115: 7.406391118 | O115: 7.7655614 | P115: 8.125302518 | Q115: 8.485611525 | R115: 8.846485379 | S115: 9.207920935 | T115: 9.569914949 | U115: 9.932464068 | V115: 10.29556483 | W115: 10.65921367 | X115: 11.0234069 | Y115: 11.38814072 | Z115: 11.7534112 | AA115: 12.11921432 | AB115: 12.48554589 | AC115: 12.85240163 | AD115: 13.2197771 | AE115: 13.58766777 | AF115: 13.95606892 | AG115: 14.32497573 | AH115: 14.69438324 | AI115: 15.06428632 | AJ115: 15.43467973 | AK115: 15.80555804 | AL115: 16.17691571 | AM115: 16.54874704 | AN115: 16.92104614 | AO115: 17.29380702 | AP115: 17.66702348 | AQ115: 18.04068919
B116: 14 | C116: 3.468097209 | D116: 3.818111075 | E116: 4.168699983 | F116: 4.519861855 | G116: 4.871594544 | H116: 5.223895837 | I116: 5.576763449 | J116: 5.93019502 | K116: 6.284188118 | L116: 6.63874023 | M116: 6.993848764 | N116: 7.349511045 | O116: 7.705724314 | P116: 8.062485721 | Q116: 8.419792329 | R116: 8.777641108 | S116: 9.136028932 | T116: 9.494952576 | U116: 9.854408718 | V116: 10.21439393 | W116: 10.57490468 | X116: 10.93593733 | Y116: 11.29748813 | Z116: 11.65955321 | AA116: 12.02212861 | AB116: 12.38521021 | AC116: 12.7487938 | AD116: 13.11287505 | AE116: 13.47744949 | AF116: 13.84251252 | AG116: 14.20805943 | AH116: 14.57408535 | AI116: 14.9405853 | AJ116: 15.30755415 | AK116: 15.67498664 | AL116: 16.04287735 | AM116: 16.41122074 | AN116: 16.78001111 | AO116: 17.14924262 | AP116: 17.51890927 | AQ116: 17.88900493
B117: 14.1 | C117: 3.44263779 | D117: 3.789987041 | E117: 4.137889628 | F117: 4.486343445 | G117: 4.835346325 | H117: 5.184896033 | I117: 5.534990268 | J117: 5.885626657 | K117: 6.236802756 | L117: 6.588516045 | M117: 6.940763928 | N117: 7.293543731 | O117: 7.646852697 | P117: 8.000687986 | Q117: 8.355046673 | R117: 8.709925743 | S117: 9.065322091 | T117: 9.421232521 | U117: 9.777653739 | V117: 10.13458236 | W117: 10.49201488 | X117: 10.84994772 | Y117: 11.20837717 | Z117: 11.56729944 | AA117: 11.92671061 | AB117: 12.28660665 | AC117: 12.64698342 | AD117: 13.00783667 | AE117: 13.36916203 | AF117: 13.730955 | AG117: 14.09321096 | AH117: 14.45592517 | AI117: 14.81909276 | AJ117: 15.18270873 | AK117: 15.54676795 | AL117: 15.91126517 | AM117: 16.27619497 | AN117: 16.64155184 | AO117: 17.00733009 | AP117: 17.37352392 | AQ117: 17.74012736
B118: 14.2 | C118: 3.417559075 | D118: 3.762285992 | E118: 4.107545326 | F118: 4.453334952 | G118: 4.799652683 | H118: 5.146496272 | I118: 5.493863404 | J118: 5.841751699 | K118: 6.190158705 | L118: 6.539081902 | M118: 6.888518693 | N118: 7.238466409 | O118: 7.5889223 | P118: 7.939883539 | Q118: 8.291347217 | R118: 8.643310339 | S118: 8.995769824 | T118: 9.348722506 | U118: 9.702165123 | V118: 10.05609433 | W118: 10.41050666 | X118: 10.7653986 | Y118: 11.12076648 | Z118: 11.47660657 | AA118: 11.83291502 | AB118: 12.18968787 | AC118: 12.54692107 | AD118: 12.90461043 | AE118: 13.26275168 | AF118: 13.62134042 | AG118: 13.98037214 | AH118: 14.3398422 | AI118: 14.69974585 | AJ118: 15.06007822 | AK118: 15.42083432 | AL118: 15.78200901 | AM118: 16.14359706 | AN118: 16.50559308 | AO118: 16.86799157 | AP118: 17.23078688 | AQ118: 17.59397325
B119: 14.3 | C119: 3.392852389 | D119: 3.734998215 | E119: 4.077656294 | F119: 4.420824485 | G119: 4.76450059 | H119: 5.108682352 | I119: 5.453367448 | J119: 5.798553493 | K119: 6.144238035 | L119: 6.490418555 | M119: 6.837092461 | N119: 7.184257091 | O119: 7.53190971 | P119: 7.880047503 | Q119: 8.228667582 | R119: 8.577766974 | S119: 8.927342628 | T119: 9.277391406 | U119: 9.627910086 | V119: 9.978895356 | W119: 10.33034382 | X119: 10.68225197 | Y119: 11.03461623 | Z119: 11.38743292 | AA119: 11.74069825 | AB119: 12.09440834 | AC119: 12.44855921 | AD119: 12.80314676 | AE119: 13.1581668 | AF119: 13.51361504 | AG119: 13.86948706 | AH119: 14.22577834 | AI119: 14.58248423 | AJ119: 14.9396 | AK119: 15.29712077 | AL119: 15.65504156 | AM119: 16.01335726 | AN119: 16.37206264 | AO119: 16.73115236 | AP119: 17.09062094 | AQ119: 17.45046278
B120: 14.4 | C120: 3.368509325 | D120: 3.708114299 | E120: 4.048212084 | F120: 4.388800532 | G120: 4.729877435 | H120: 5.071440529 | I120: 5.41348749 | J120: 5.756015933 | K120: 6.099023407 | L120: 6.442507398 | M120: 6.786465325 | N120: 7.130894536 | O120: 7.47579231 | P120: 7.821155854 | Q120: 8.1669823 | R120: 8.513268701 | S120: 8.860012037 | T120: 9.207209203 | U120: 9.554857015 | V120: 9.902952205 | W120: 10.25149142 | X120: 10.60047121 | Y120: 10.94988806 | Z120: 11.29973833 | AA120: 11.65001832 | AB120: 12.00072421 | AC120: 12.3518521 | AD120: 12.70339797 | AE120: 13.05535773 | AF120: 13.40772717 | AG120: 13.76050198 | AH120: 14.11367773 | AI120: 14.46724991 | AJ120: 14.82121389 | AK120: 15.17556492 | AL120: 15.53029814 | AM120: 15.88540861 | AN120: 16.24089122 | AO120: 16.59674079 | AP120: 16.952952 | AQ120: 17.30951943
B121: 14.5 | C121: 3.344521732 | D121: 3.681625122 | E121: 4.019202577 | F121: 4.357251941 | G121: 4.695771003 | H121: 5.034757498 | I121: 5.374209103 | J121: 5.714123434 | K121: 6.054498048 | L121: 6.39533044 | M121: 6.736618039 | N121: 7.078358211 | O121: 7.420548251 | P121: 7.763185387 | Q121: 8.106266777 | R121: 8.449789502 | S121: 8.793750575 | T121: 9.138146926 | U121: 9.482975412 | V121: 9.828232809 | W121: 10.17391581 | X121: 10.52002103 | Y121: 10.86654499 | Z121: 11.21348413 | AA121: 11.5608348 | AB121: 11.90859327 | AC121: 12.2567557 | AD121: 12.60531818 | AE121: 12.95427668 | AF121: 13.30362708 | AG121: 13.65336518 | AH121: 14.00348667 | AI121: 14.35398713 | AJ121: 14.70486204 | AK121: 15.05610679 | AL121: 15.40771665 | AM121: 15.75968679 | AN121: 16.11201227 | AO121: 16.46468804 | AP121: 16.81770894 | AQ121: 17.17106971
B122: 14.6 | C122: 3.320881706 | D122: 3.655521842 | E122: 3.990617961 | F122: 4.326167906 | G122: 4.662169465 | H122: 4.998620375 | I122: 5.335518316 | J122: 5.672860913 | K122: 6.010645731 | L122: 6.348870276 | M122: 6.687531994 | N122: 7.026628266 | O122: 7.36615641 | P122: 7.706113678 | Q122: 8.046497254 | R122: =[1]!HeCalc($D$9,0,1,R$11*10^5,2,$B122,1) -> 8.387304251 | S122: 8.728531714 | T122: 9.070176613 | U122: 9.412235846 | V122: 9.754706234 | W122: 10.09758452 | X122: 10.44086737 | Y122: 10.78455137 | Z122: 11.12863301 | AA122: 11.47310873 | AB122: 11.81797484 | AC122: 12.16322761 | AD122: 12.50886318 | AE122: 12.85487762 | AF122: 13.20126691 | AG122: 13.54802693 | AH122: 13.89515349 | AI122: 14.24264226 | AJ122: 14.59048884 | AK122: 14.93868874 | AL122: 15.28723736 | AM122: 15.63612999 | AN122: 15.98536184 | AO122: 16.334928 | AP122: 16.68482345 | AQ122: 17.03504309
B123: 14.7 | C123: =[1]!HeCalc($D$9,0,1,C$11*10^5,2,$B123,1) -> 3.29758158 | D123: 3.629795883 | E123: 3.962448727 | F123: 4.295537955 | G123: 4.629061359 | H123: 4.963016679 | I123: 5.297401604 | J123: 5.632213768 | K123: 5.967450748 | L123: 6.303110066 | M123: 6.639189184 | N123: 6.975685504 | O123: 7.312596368 | P123: 7.649919053 | Q123: 7.987650771 | R123: 8.325788671 | S123: 8.664329831 | T123: 9.003271262 | U123: 9.342609904 | V123: 9.682342625 | W123: 10.02246622 | X123: 10.3629774 | Y123: 10.70387282 | Z123: 11.04514904 | AA123: 11.38680255 | AB123: 11.72882974 | AC123: 12.07122694 | AD123: 12.41399039 | AE123: 12.75711624 | AF123: 13.10060057 | AG123: 13.44443934 | AH123: 13.78862844 | AI123: 14.13316369 | AJ123: 14.47804078 | AK123: 14.82325533 | AL123: 15.16880286 | AM123: 15.5146788 | AN123: 15.86087848 | AO123: 16.20739713 | AP123: 16.55422989 | AQ123: 16.90137179
B124: 14.8 | C124: 3.274613915 | D124: 3.604438928 | E124: 3.934685653 | F124: 4.265351936 | G124: 4.596435574 | H124: 4.927934317 | I124: 5.259845862 | J124: 5.592167856 | K124: 5.924897893 | L124: 6.258033509 | M124: 6.591572188 | N124: 6.925511354 | O124: 7.259848373 | P124: 7.594580552 | Q124: 7.929705134 | R124: 8.2652193 | S124: 8.601120168 | T124: 8.937404789 | U124: 9.274070146 | V124: 9.611113154 | W124: 9.94853066 | X124: 10.28631944 | Y124: 10.62447618 | Z124: 10.96299753 | AA124: 11.30188003 | AB124: 11.64112016 | AC124: 11.98071431 | AD124: 12.32065879 | AE124: 12.66094986 | AF124: 13.00158366 | AG124: 13.34255626 | AH124: 13.68386366 | AI124: 14.02550175 | AJ124: 14.36746635 | AK124: 14.70975319 | AL124: 15.05235791 | AM124: 15.39527605 | AN124: 15.73850308 | AO124: 16.08203436 | AP124: 16.42586516 | AQ124: 16.76999068
B125: 14.9 | C125: 3.251971491 | D125: 3.579442908 | E125: 3.907319795 | F125: 4.235600003 | G125: 4.564281341 | H125: 4.893361568 | I125: 5.222838394 | J125: 5.55270948 | K125: 5.882972437 | L125: 6.213624823 | M125: 6.544664141 | N125: 6.876087842 | O125: 7.207893317 | P125: 7.540077904 | Q125: 7.872638878 | R125: 8.205573457 | S125: 8.538878796 | T125: 8.872551988 | U125: 9.206590061 | V125: 9.54098998 | W125: 9.87574864 | X125: 10.21086287 | Y125: 10.54632944 | Z125: 10.88214502 | AA125: 11.21830624 | AB125: 11.55480965 | AC125: 11.89165171 | AD125: 12.22882883 | AE125: 12.56633731 | AF125: 12.90417341 | AG125: 13.24233328 | AH125: 13.58081301 | AI125: 13.9196086 | AJ125: 14.25871597 | AK125: 14.59813096 | AL125: 14.93784933 | AM125: 15.27786673 | AN125: 15.61817876 | AO125: 15.95878091 | AP125: 16.29966859 | AQ125: 16.64083712
B126: 15 | C126: 3.229647302 | D126: 3.554799991 | E126: 3.880342473 | F126: 4.206272609 | G126: 4.532588217 | H126: 4.85928707 | I126: 5.186366893 | J126: 5.513825365 | K126: 5.841660115 | L126: 6.169868723 | M126: 6.498448716 | N126: 6.82739757 | O126: 7.156712707 | P126: 7.486391494 | Q126: 7.816431242 | R126: 8.146829204 | S126: 8.477582576 | T126: 8.808688494 | U126: 9.140144031 | V126: 9.471946199 | W126: 9.804091949 | X126: 10.13657816 | Y126: 10.46940166 | Z126: 10.8025592 | AA126: 11.13604745 | AB126: 11.46986304 | AC126: 11.80400251 | AD126: 12.13846233 | AE126: 12.4732389 | AF126: 12.80832856 | AG126: 13.14372754 | AH126: 13.47943203 | AI126: 13.81543813 | AJ126: 14.15174187 | AK126: 14.48833917 | AL126: 14.82522592 | AM126: 15.16239789 | AN126: 15.49985079 | AO126: 15.83758024 | AP126: 16.17558178 | AQ126: 16.51385086

Sheet Saturation
B2: Fluid | C2: Helium | D2: =VLOOKUP(C2,Fluids_table,2,FALSE) -> 11
B3: Pressure step | C3: 0.05
B4: Critical pressure | C4: =IF($D$2=11,[1]!HeConst(5)/10^5,FConstant($D$2,5)/10^2) -> 2.274623
B5: Max scale | C5: =MIN(B49,C4) -> 2.274623
B8: Saturated pressure | C8: Saturated temperature | D8: Liquid density | E8: Gas density | F8: Latent Heat
B9: 1 | C9: =IF($D$2=11,[1]!HeCalc(2,0,1,$B9*10^5,43,0,1),FluidProperties($D$2,1,$B9*10^5,10,0,2,2,1)) -> 4.208136535 | D9: =IF($D$2=11,[1]!HeCalc(3,0,1,$B9*10^5,43,0,1),FluidProperties($D$2,1,$B9*10^5,10,0,3,1,1)) -> 125.2167239 | E9: =IF($D$2=11,[1]!HeCalc(3,0,1,$B9*10^5,44,0,1),FluidProperties($D$2,1,$B9*10^5,10,0,3,2,1)) -> 16.61735983 | F9: =IF($D$2=11,[1]!HeCalc(7,0,1,$B9*10^5,43,0,1),FluidProperties($D$2,1,$B9*10^5,10,0,29,1,1))/1000 -> 20.74544737
B10: =B9+$C$3 -> 1.05 | C10: =IF($D$2=11,[1]!HeCalc(2,0,1,$B10*10^5,43,0,1),FluidProperties($D$2,1,$B10*10^5,10,0,2,2,1)) -> 4.260194356 | D10: =IF($D$2=11,[1]!HeCalc(3,0,1,$B10*10^5,43,0,1),FluidProperties($D$2,1,$B10*10^5,10,0,3,1,1)) -> 124.1991399 | E10: =IF($D$2=11,[1]!HeCalc(3,0,1,$B10*10^5,44,0,1),FluidProperties($D$2,1,$B10*10^5,10,0,3,2,1)) -> 17.47917452 | F10: =IF($D$2=11,[1]!HeCalc(7,0,1,$B10*10^5,43,0,1),FluidProperties($D$2,1,$B10*10^5,10,0,29,1,1))/1000 -> 20.45050543
B11: =B10+$C$3 -> 1.1 | C11: =IF($D$2=11,[1]!HeCalc(2,0,1,$B11*10^5,43,0,1),FluidProperties($D$2,1,$B11*10^5,10,0,2,2,1)) -> 4.31058661 | D11: =IF($D$2=11,[1]!HeCalc(3,0,1,$B11*10^5,43,0,1),FluidProperties($D$2,1,$B11*10^5,10,0,3,1,1)) -> 123.1748119 | E11: =IF($D$2=11,[1]!HeCalc(3,0,1,$B11*10^5,44,0,1),FluidProperties($D$2,1,$B11*10^5,10,0,3,2,1)) -> 18.35730527 | F11: =IF($D$2=11,[1]!HeCalc(7,0,1,$B11*10^5,43,0,1),FluidProperties($D$2,1,$B11*10^5,10,0,29,1,1))/1000 -> 20.14283856
B12: 1.15 | C12: =IF($D$2=11,[1]!HeCalc(2,0,1,$B12*10^5,43,0,1),FluidProperties($D$2,1,$B12*10^5,10,0,2,2,1)) -> 4.359433663 | D12: =IF($D$2=11,[1]!HeCalc(3,0,1,$B12*10^5,43,0,1),FluidProperties($D$2,1,$B12*10^5,10,0,3,1,1)) -> 122.1418618 | E12: =IF($D$2=11,[1]!HeCalc(3,0,1,$B12*10^5,44,0,1),FluidProperties($D$2,1,$B12*10^5,10,0,3,2,1)) -> 19.25356598 | F12: =IF($D$2=11,[1]!HeCalc(7,0,1,$B12*10^5,43,0,1),FluidProperties($D$2,1,$B12*10^5,10,0,29,1,1))/1000 -> 19.82190347
B13: 1.2 | C13: =IF($D$2=11,[1]!HeCalc(2,0,1,$B13*10^5,43,0,1),FluidProperties($D$2,1,$B13*10^5,10,0,2,2,1)) -> 4.406842338 | D13: =IF($D$2=11,[1]!HeCalc(3,0,1,$B13*10^5,43,0,1),FluidProperties($D$2,1,$B13*10^5,10,0,3,1,1)) -> 121.0983171 | E13: =IF($D$2=11,[1]!HeCalc(3,0,1,$B13*10^5,44,0,1),FluidProperties($D$2,1,$B13*10^5,10,0,3,2,1)) -> 20.16995392 | F13: =IF($D$2=11,[1]!HeCalc(7,0,1,$B13*10^5,43,0,1),FluidProperties($D$2,1,$B13*10^5,10,0,29,1,1))/1000 -> 19.48699441
B14: 1.25 | C14: =IF($D$2=11,[1]!HeCalc(2,0,1,$B14*10^5,43,0,1),FluidProperties($D$2,1,$B14*10^5,10,0,2,2,1)) -> 4.452908091 | D14: =IF($D$2=11,[1]!HeCalc(3,0,1,$B14*10^5,43,0,1),FluidProperties($D$2,1,$B14*10^5,10,0,3,1,1)) -> 120.0420715 | E14: =IF($D$2=11,[1]!HeCalc(3,0,1,$B14*10^5,44,0,1),FluidProperties($D$2,1,$B14*10^5,10,0,3,2,1)) -> 21.10868795 | F14: =IF($D$2=11,[1]!HeCalc(7,0,1,$B14*10^5,43,0,1),FluidProperties($D$2,1,$B14*10^5,10,0,29,1,1))/1000 -> 19.13726082
B15: 1.3 | C15: =IF($D$2=11,[1]!HeCalc(2,0,1,$B15*10^5,43,0,1),FluidProperties($D$2,1,$B15*10^5,10,0,2,2,1)) -> 4.497716815 | D15: =IF($D$2=11,[1]!HeCalc(3,0,1,$B15*10^5,43,0,1),FluidProperties($D$2,1,$B15*10^5,10,0,3,1,1)) -> 118.9708407 | E15: =IF($D$2=11,[1]!HeCalc(3,0,1,$B15*10^5,44,0,1),FluidProperties($D$2,1,$B15*10^5,10,0,3,2,1)) -> 22.07225673 | F15: =IF($D$2=11,[1]!HeCalc(7,0,1,$B15*10^5,43,0,1),FluidProperties($D$2,1,$B15*10^5,10,0,29,1,1))/1000 -> 18.77171942
B16: 1.35 | C16: =IF($D$2=11,[1]!HeCalc(2,0,1,$B16*10^5,43,0,1),FluidProperties($D$2,1,$B16*10^5,10,0,2,2,1)) -> 4.541346151 | D16: =IF($D$2=11,[1]!HeCalc(3,0,1,$B16*10^5,43,0,1),FluidProperties($D$2,1,$B16*10^5,10,0,3,1,1)) -> 117.8821137 | E16: =IF($D$2=11,[1]!HeCalc(3,0,1,$B16*10^5,44,0,1),FluidProperties($D$2,1,$B16*10^5,10,0,3,2,1)) -> 23.06347595 | F16: =IF($D$2=11,[1]!HeCalc(7,0,1,$B16*10^5,43,0,1),FluidProperties($D$2,1,$B16*10^5,10,0,29,1,1))/1000 -> 18.38926072
B17: 1.4 | C17: =IF($D$2=11,[1]!HeCalc(2,0,1,$B17*10^5,43,0,1),FluidProperties($D$2,1,$B17*10^5,10,0,2,2,1)) -> 4.583866648 | D17: =IF($D$2=11,[1]!HeCalc(3,0,1,$B17*10^5,43,0,1),FluidProperties($D$2,1,$B17*10^5,10,0,3,1,1)) -> 116.7730942 | E17: =IF($D$2=11,[1]!HeCalc(3,0,1,$B17*10^5,44,0,1),FluidProperties($D$2,1,$B17*10^5,10,0,3,2,1)) -> 24.08556379 | F17: =IF($D$2=11,[1]!HeCalc(7,0,1,$B17*10^5,43,0,1),FluidProperties($D$2,1,$B17*10^5,10,0,29,1,1))/1000 -> 17.98864661
B18: 1.45 | C18: =IF($D$2=11,[1]!HeCalc(2,0,1,$B18*10^5,43,0,1),FluidProperties($D$2,1,$B18*10^5,10,0,2,2,1)) -> 4.625342631 | D18: =IF($D$2=11,[1]!HeCalc(3,0,1,$B18*10^5,43,0,1),FluidProperties($D$2,1,$B18*10^5,10,0,3,1,1)) -> 115.6406303 | E18: =IF($D$2=11,[1]!HeCalc(3,0,1,$B18*10^5,44,0,1),FluidProperties($D$2,1,$B18*10^5,10,0,3,2,1)) -> 25.14223703 | F18: =IF($D$2=11,[1]!HeCalc(7,0,1,$B18*10^5,43,0,1),FluidProperties($D$2,1,$B18*10^5,10,0,29,1,1))/1000 -> 17.56849809
B19: 1.5 | C19: =IF($D$2=11,[1]!HeCalc(2,0,1,$B19*10^5,43,0,1),FluidProperties($D$2,1,$B19*10^5,10,0,2,2,1)) -> 4.665832897 | D19: =IF($D$2=11,[1]!HeCalc(3,0,1,$B19*10^5,43,0,1),FluidProperties($D$2,1,$B19*10^5,10,0,3,1,1)) -> 114.4811279 | E19: =IF($D$2=11,[1]!HeCalc(3,0,1,$B19*10^5,44,0,1),FluidProperties($D$2,1,$B19*10^5,10,0,3,2,1)) -> 26.23783747 | F19: =IF($D$2=11,[1]!HeCalc(7,0,1,$B19*10^5,43,0,1),FluidProperties($D$2,1,$B19*10^5,10,0,29,1,1))/1000 -> 17.12727006
B20: 1.55 | C20: =IF($D$2=11,[1]!HeCalc(2,0,1,$B20*10^5,43,0,1),FluidProperties($D$2,1,$B20*10^5,10,0,2,2,1)) -> 4.70539125 | D20: =IF($D$2=11,[1]!HeCalc(3,0,1,$B20*10^5,43,0,1),FluidProperties($D$2,1,$B20*10^5,10,0,3,1,1)) -> 113.2904419 | E20: =IF($D$2=11,[1]!HeCalc(3,0,1,$B20*10^5,44,0,1),FluidProperties($D$2,1,$B20*10^5,10,0,3,2,1)) -> 27.37750096 | F20: =IF($D$2=11,[1]!HeCalc(7,0,1,$B20*10^5,43,0,1),FluidProperties($D$2,1,$B20*10^5,10,0,29,1,1))/1000 -> 16.66320912
B21: 1.6 | C21: =IF($D$2=11,[1]!HeCalc(2,0,1,$B21*10^5,43,0,1),FluidProperties($D$2,1,$B21*10^5,10,0,2,2,1)) -> 4.744066917 | D21: =IF($D$2=11,[1]!HeCalc(3,0,1,$B21*10^5,43,0,1),FluidProperties($D$2,1,$B21*10^5,10,0,3,1,1)) -> 112.0637352 | E21: =IF($D$2=11,[1]!HeCalc(3,0,1,$B21*10^5,44,0,1),FluidProperties($D$2,1,$B21*10^5,10,0,3,2,1)) -> 28.56738793 | F21: =IF($D$2=11,[1]!HeCalc(7,0,1,$B21*10^5,43,0,1),FluidProperties($D$2,1,$B21*10^5,10,0,29,1,1))/1000 -> 16.17428865
B22: 1.65 | C22: =IF($D$2=11,[1]!HeCalc(2,0,1,$B22*10^5,43,0,1),FluidProperties($D$2,1,$B22*10^5,10,0,2,2,1)) -> 4.78190484 | D22: =IF($D$2=11,[1]!HeCalc(3,0,1,$B22*10^5,43,0,1),FluidProperties($D$2,1,$B22*10^5,10,0,3,1,1)) -> 110.7952945 | E22: =IF($D$2=11,[1]!HeCalc(3,0,1,$B22*10^5,44,0,1),FluidProperties($D$2,1,$B22*10^5,10,0,3,2,1)) -> 29.81500524 | F22: =IF($D$2=11,[1]!HeCalc(7,0,1,$B22*10^5,43,0,1),FluidProperties($D$2,1,$B22*10^5,10,0,29,1,1))/1000 -> 15.65811194
B23: 1.7 | C23: =IF($D$2=11,[1]!HeCalc(2,0,1,$B23*10^5,43,0,1),FluidProperties($D$2,1,$B23*10^5,10,0,2,2,1)) -> 4.81894587 | D23: =IF($D$2=11,[1]!HeCalc(3,0,1,$B23*10^5,43,0,1),FluidProperties($D$2,1,$B23*10^5,10,0,3,1,1)) -> 109.4583398 | E23: =IF($D$2=11,[1]!HeCalc(3,0,1,$B23*10^5,44,0,1),FluidProperties($D$2,1,$B23*10^5,10,0,3,2,1)) -> 31.12584211 | F23: =IF($D$2=11,[1]!HeCalc(7,0,1,$B23*10^5,43,0,1),FluidProperties($D$2,1,$B23*10^5,10,0,29,1,1))/1000 -> 15.11326985
B24: 1.75 | C24: =IF($D$2=11,[1]!HeCalc(2,0,1,$B24*10^5,43,0,1),FluidProperties($D$2,1,$B24*10^5,10,0,2,2,1)) -> 4.855226873 | D24: =IF($D$2=11,[1]!HeCalc(3,0,1,$B24*10^5,43,0,1),FluidProperties($D$2,1,$B24*10^5,10,0,3,1,1)) -> 108.0231873 | E24: =IF($D$2=11,[1]!HeCalc(3,0,1,$B24*10^5,44,0,1),FluidProperties($D$2,1,$B24*10^5,10,0,3,2,1)) -> 32.50424864 | F24: =IF($D$2=11,[1]!HeCalc(7,0,1,$B24*10^5,43,0,1),FluidProperties($D$2,1,$B24*10^5,10,0,29,1,1))/1000 -> 14.53902431
B25: 1.8 | C25: =IF($D$2=11,[1]!HeCalc(2,0,1,$B25*10^5,43,0,1),FluidProperties($D$2,1,$B25*10^5,10,0,2,2,1)) -> 4.890780731 | D25: =IF($D$2=11,[1]!HeCalc(3,0,1,$B25*10^5,43,0,1),FluidProperties($D$2,1,$B25*10^5,10,0,3,1,1)) -> 106.5018364 | E25: =IF($D$2=11,[1]!HeCalc(3,0,1,$B25*10^5,44,0,1),FluidProperties($D$2,1,$B25*10^5,10,0,3,2,1)) -> 33.96548077 | F25: =IF($D$2=11,[1]!HeCalc(7,0,1,$B25*10^5,43,0,1),FluidProperties($D$2,1,$B25*10^5,10,0,29,1,1))/1000 -> 13.93039563
B26: 1.85 | C26: =IF($D$2=11,[1]!HeCalc(2,0,1,$B26*10^5,43,0,1),FluidProperties($D$2,1,$B26*10^5,10,0,2,2,1)) -> 4.925636261 | D26: =IF($D$2=11,[1]!HeCalc(3,0,1,$B26*10^5,43,0,1),FluidProperties($D$2,1,$B26*10^5,10,0,3,1,1)) -> 104.8805262 | E26: =IF($D$2=11,[1]!HeCalc(3,0,1,$B26*10^5,44,0,1),FluidProperties($D$2,1,$B26*10^5,10,0,3,2,1)) -> 35.52184536 | F26: =IF($D$2=11,[1]!HeCalc(7,0,1,$B26*10^5,43,0,1),FluidProperties($D$2,1,$B26*10^5,10,0,29,1,1))/1000 -> 13.28421767
B27: 1.9 | C27: =IF($D$2=11,[1]!HeCalc(2,0,1,$B27*10^5,43,0,1),FluidProperties($D$2,1,$B27*10^5,10,0,2,2,1)) -> 4.959817997 | D27: =IF($D$2=11,[1]!HeCalc(3,0,1,$B27*10^5,43,0,1),FluidProperties($D$2,1,$B27*10^5,10,0,3,1,1)) -> 103.1448434 | E27: =IF($D$2=11,[1]!HeCalc(3,0,1,$B27*10^5,44,0,1),FluidProperties($D$2,1,$B27*10^5,10,0,3,2,1)) -> 37.18421669 | F27: =IF($D$2=11,[1]!HeCalc(7,0,1,$B27*10^5,43,0,1),FluidProperties($D$2,1,$B27*10^5,10,0,29,1,1))/1000 -> 12.59886774
B28: 1.95 | C28: =IF($D$2=11,[1]!HeCalc(2,0,1,$B28*10^5,43,0,1),FluidProperties($D$2,1,$B28*10^5,10,0,2,2,1)) -> 4.993345843 | D28: =IF($D$2=11,[1]!HeCalc(3,0,1,$B28*10^5,43,0,1),FluidProperties($D$2,1,$B28*10^5,10,0,3,1,1)) -> 101.2805392 | E28: =IF($D$2=11,[1]!HeCalc(3,0,1,$B28*10^5,44,0,1),FluidProperties($D$2,1,$B28*10^5,10,0,3,2,1)) -> 38.95808714 | F28: =IF($D$2=11,[1]!HeCalc(7,0,1,$B28*10^5,43,0,1),FluidProperties($D$2,1,$B28*10^5,10,0,29,1,1))/1000 -> 11.87578786
B29: 2 | C29: =IF($D$2=11,[1]!HeCalc(2,0,1,$B29*10^5,43,0,1),FluidProperties($D$2,1,$B29*10^5,10,0,2,2,1)) -> 5.0262345 | D29: =IF($D$2=11,[1]!HeCalc(3,0,1,$B29*10^5,43,0,1),FluidProperties($D$2,1,$B29*10^5,10,0,3,1,1)) -> 99.27392386 | E29: =IF($D$2=11,[1]!HeCalc(3,0,1,$B29*10^5,44,0,1),FluidProperties($D$2,1,$B29*10^5,10,0,3,2,1)) -> 40.83896448 | F29: =IF($D$2=11,[1]!HeCalc(7,0,1,$B29*10^5,43,0,1),FluidProperties($D$2,1,$B29*10^5,10,0,29,1,1))/1000 -> 11.1205048
B30: 2.05 | C30: =IF($D$2=11,[1]!HeCalc(2,0,1,$B30*10^5,43,0,1),FluidProperties($D$2,1,$B30*10^5,10,0,2,2,1)) -> 5.058492564 | D30: =IF($D$2=11,[1]!HeCalc(3,0,1,$B30*10^5,43,0,1),FluidProperties($D$2,1,$B30*10^5,10,0,3,1,1)) -> 97.10689323 | E30: =IF($D$2=11,[1]!HeCalc(3,0,1,$B30*10^5,44,0,1),FluidProperties($D$2,1,$B30*10^5,10,0,3,2,1)) -> 42.82178255 | F30: =IF($D$2=11,[1]!HeCalc(7,0,1,$B30*10^5,43,0,1),FluidProperties($D$2,1,$B30*10^5,10,0,29,1,1))/1000 -> 10.33641192
B31: 2.1 | C31: =IF($D$2=11,[1]!HeCalc(2,0,1,$B31*10^5,43,0,1),FluidProperties($D$2,1,$B31*10^5,10,0,2,2,1)) -> 5.090121051 | D31: =IF($D$2=11,[1]!HeCalc(3,0,1,$B31*10^5,43,0,1),FluidProperties($D$2,1,$B31*10^5,10,0,3,1,1)) -> 94.71693813 | E31: =IF($D$2=11,[1]!HeCalc(3,0,1,$B31*10^5,44,0,1),FluidProperties($D$2,1,$B31*10^5,10,0,3,2,1)) -> 45.02979209 | F31: =IF($D$2=11,[1]!HeCalc(7,0,1,$B31*10^5,43,0,1),FluidProperties($D$2,1,$B31*10^5,10,0,29,1,1))/1000 -> 9.469099987
B32: 2.15 | C32: =IF($D$2=11,[1]!HeCalc(2,0,1,$B32*10^5,43,0,1),FluidProperties($D$2,1,$B32*10^5,10,0,2,2,1)) -> 5.121110606 | D32: =IF($D$2=11,[1]!HeCalc(3,0,1,$B32*10^5,43,0,1),FluidProperties($D$2,1,$B32*10^5,10,0,3,1,1)) -> 91.9081495 | E32: =IF($D$2=11,[1]!HeCalc(3,0,1,$B32*10^5,44,0,1),FluidProperties($D$2,1,$B32*10^5,10,0,3,2,1)) -> 47.89486965 | F32: =IF($D$2=11,[1]!HeCalc(7,0,1,$B32*10^5,43,0,1),FluidProperties($D$2,1,$B32*10^5,10,0,29,1,1))/1000 -> 8.349379765
B33: 2.2 | C33: =IF($D$2=11,[1]!HeCalc(2,0,1,$B33*10^5,43,0,1),FluidProperties($D$2,1,$B33*10^5,10,0,2,2,1)) -> 5.151435668 | D33: =IF($D$2=11,[1]!HeCalc(3,0,1,$B33*10^5,43,0,1),FluidProperties($D$2,1,$B33*10^5,10,0,3,1,1)) -> 88.3301153 | E33: =IF($D$2=11,[1]!HeCalc(3,0,1,$B33*10^5,44,0,1),FluidProperties($D$2,1,$B33*10^5,10,0,3,2,1)) -> 51.38925843 | F33: =IF($D$2=11,[1]!HeCalc(7,0,1,$B33*10^5,43,0,1),FluidProperties($D$2,1,$B33*10^5,10,0,29,1,1))/1000 -> 6.992386976
B34: 2.25 | C34: =IF($D$2=11,[1]!HeCalc(2,0,1,$B34*10^5,43,0,1),FluidProperties($D$2,1,$B34*10^5,10,0,2,2,1)) -> 5.181036869 | D34: =IF($D$2=11,[1]!HeCalc(3,0,1,$B34*10^5,43,0,1),FluidProperties($D$2,1,$B34*10^5,10,0,3,1,1)) -> 82.49265436 | E34: =IF($D$2=11,[1]!HeCalc(3,0,1,$B34*10^5,44,0,1),FluidProperties($D$2,1,$B34*10^5,10,0,3,2,1)) -> 57.09025422 | F34: =IF($D$2=11,[1]!HeCalc(7,0,1,$B34*10^5,43,0,1),FluidProperties($D$2,1,$B34*10^5,10,0,29,1,1))/1000 -> 4.785284411
B35: 2.3 | C35: =IF($D$2=11,[1]!HeCalc(2,0,1,$B35*10^5,43,0,1),FluidProperties($D$2,1,$B35*10^5,10,0,2,2,1)) -> NUM | D35: =IF($D$2=11,[1]!HeCalc(3,0,1,$B35*10^5,43,0,1),FluidProperties($D$2,1,$B35*10^5,10,0,3,1,1)) -> NUM | E35: =IF($D$2=11,[1]!HeCalc(3,0,1,$B35*10^5,44,0,1),FluidProperties($D$2,1,$B35*10^5,10,0,3,2,1)) -> NUM | F35: =IF($D$2=11,[1]!HeCalc(7,0,1,$B35*10^5,43,0,1),FluidProperties($D$2,1,$B35*10^5,10,0,29,1,1))/1000 -> 
B36: 2.35 | C36: =IF($D$2=11,[1]!HeCalc(2,0,1,$B36*10^5,43,0,1),FluidProperties($D$2,1,$B36*10^5,10,0,2,2,1)) -> NUM | D36: =IF($D$2=11,[1]!HeCalc(3,0,1,$B36*10^5,43,0,1),FluidProperties($D$2,1,$B36*10^5,10,0,3,1,1)) -> NUM | E36: =IF($D$2=11,[1]!HeCalc(3,0,1,$B36*10^5,44,0,1),FluidProperties($D$2,1,$B36*10^5,10,0,3,2,1)) -> NUM | F36: =IF($D$2=11,[1]!HeCalc(7,0,1,$B36*10^5,43,0,1),FluidProperties($D$2,1,$B36*10^5,10,0,29,1,1))/1000 -> 
B37: 2.4 | C37: =IF($D$2=11,[1]!HeCalc(2,0,1,$B37*10^5,43,0,1),FluidProperties($D$2,1,$B37*10^5,10,0,2,2,1)) -> NUM | D37: =IF($D$2=11,[1]!HeCalc(3,0,1,$B37*10^5,43,0,1),FluidProperties($D$2,1,$B37*10^5,10,0,3,1,1)) -> NUM | E37: =IF($D$2=11,[1]!HeCalc(3,0,1,$B37*10^5,44,0,1),FluidProperties($D$2,1,$B37*10^5,10,0,3,2,1)) -> NUM | F37: =IF($D$2=11,[1]!HeCalc(7,0,1,$B37*10^5,43,0,1),FluidProperties($D$2,1,$B37*10^5,10,0,29,1,1))/1000 -> 
B38: 2.45 | C38: =IF($D$2=11,[1]!HeCalc(2,0,1,$B38*10^5,43,0,1),FluidProperties($D$2,1,$B38*10^5,10,0,2,2,1)) -> NUM | D38: =IF($D$2=11,[1]!HeCalc(3,0,1,$B38*10^5,43,0,1),FluidProperties($D$2,1,$B38*10^5,10,0,3,1,1)) -> NUM | E38: =IF($D$2=11,[1]!HeCalc(3,0,1,$B38*10^5,44,0,1),FluidProperties($D$2,1,$B38*10^5,10,0,3,2,1)) -> NUM | F38: =IF($D$2=11,[1]!HeCalc(7,0,1,$B38*10^5,43,0,1),FluidProperties($D$2,1,$B38*10^5,10,0,29,1,1))/1000 -> 
B39: 2.5 | C39: =IF($D$2=11,[1]!HeCalc(2,0,1,$B39*10^5,43,0,1),FluidProperties($D$2,1,$B39*10^5,10,0,2,2,1)) -> NUM | D39: =IF($D$2=11,[1]!HeCalc(3,0,1,$B39*10^5,43,0,1),FluidProperties($D$2,1,$B39*10^5,10,0,3,1,1)) -> NUM | E39: =IF($D$2=11,[1]!HeCalc(3,0,1,$B39*10^5,44,0,1),FluidProperties($D$2,1,$B39*10^5,10,0,3,2,1)) -> NUM | F39: =IF($D$2=11,[1]!HeCalc(7,0,1,$B39*10^5,43,0,1),FluidProperties($D$2,1,$B39*10^5,10,0,29,1,1))/1000 -> 
B40: 2.55 | C40: =IF($D$2=11,[1]!HeCalc(2,0,1,$B40*10^5,43,0,1),FluidProperties($D$2,1,$B40*10^5,10,0,2,2,1)) -> NUM | D40: =IF($D$2=11,[1]!HeCalc(3,0,1,$B40*10^5,43,0,1),FluidProperties($D$2,1,$B40*10^5,10,0,3,1,1)) -> NUM | E40: =IF($D$2=11,[1]!HeCalc(3,0,1,$B40*10^5,44,0,1),FluidProperties($D$2,1,$B40*10^5,10,0,3,2,1)) -> NUM | F40: =IF($D$2=11,[1]!HeCalc(7,0,1,$B40*10^5,43,0,1),FluidProperties($D$2,1,$B40*10^5,10,0,29,1,1))/1000 -> 
B41: 2.6 | C41: =IF($D$2=11,[1]!HeCalc(2,0,1,$B41*10^5,43,0,1),FluidProperties($D$2,1,$B41*10^5,10,0,2,2,1)) -> NUM | D41: =IF($D$2=11,[1]!HeCalc(3,0,1,$B41*10^5,43,0,1),FluidProperties($D$2,1,$B41*10^5,10,0,3,1,1)) -> NUM | E41: =IF($D$2=11,[1]!HeCalc(3,0,1,$B41*10^5,44,0,1),FluidProperties($D$2,1,$B41*10^5,10,0,3,2,1)) -> NUM | F41: =IF($D$2=11,[1]!HeCalc(7,0,1,$B41*10^5,43,0,1),FluidProperties($D$2,1,$B41*10^5,10,0,29,1,1))/1000 -> 
B42: 2.65 | C42: =IF($D$2=11,[1]!HeCalc(2,0,1,$B42*10^5,43,0,1),FluidProperties($D$2,1,$B42*10^5,10,0,2,2,1)) -> NUM | D42: =IF($D$2=11,[1]!HeCalc(3,0,1,$B42*10^5,43,0,1),FluidProperties($D$2,1,$B42*10^5,10,0,3,1,1)) -> NUM | E42: =IF($D$2=11,[1]!HeCalc(3,0,1,$B42*10^5,44,0,1),FluidProperties($D$2,1,$B42*10^5,10,0,3,2,1)) -> NUM | F42: =IF($D$2=11,[1]!HeCalc(7,0,1,$B42*10^5,43,0,1),FluidProperties($D$2,1,$B42*10^5,10,0,29,1,1))/1000 -> 
B43: 2.7 | C43: =IF($D$2=11,[1]!HeCalc(2,0,1,$B43*10^5,43,0,1),FluidProperties($D$2,1,$B43*10^5,10,0,2,2,1)) -> NUM | D43: =IF($D$2=11,[1]!HeCalc(3,0,1,$B43*10^5,43,0,1),FluidProperties($D$2,1,$B43*10^5,10,0,3,1,1)) -> NUM | E43: =IF($D$2=11,[1]!HeCalc(3,0,1,$B43*10^5,44,0,1),FluidProperties($D$2,1,$B43*10^5,10,0,3,2,1)) -> NUM | F43: =IF($D$2=11,[1]!HeCalc(7,0,1,$B43*10^5,43,0,1),FluidProperties($D$2,1,$B43*10^5,10,0,29,1,1))/1000 -> 
B44: 2.75 | C44: =IF($D$2=11,[1]!HeCalc(2,0,1,$B44*10^5,43,0,1),FluidProperties($D$2,1,$B44*10^5,10,0,2,2,1)) -> NUM | D44: =IF($D$2=11,[1]!HeCalc(3,0,1,$B44*10^5,43,0,1),FluidProperties($D$2,1,$B44*10^5,10,0,3,1,1)) -> NUM | E44: =IF($D$2=11,[1]!HeCalc(3,0,1,$B44*10^5,44,0,1),FluidProperties($D$2,1,$B44*10^5,10,0,3,2,1)) -> NUM | F44: =IF($D$2=11,[1]!HeCalc(7,0,1,$B44*10^5,43,0,1),FluidProperties($D$2,1,$B44*10^5,10,0,29,1,1))/1000 -> 
B45: 2.8 | C45: =IF($D$2=11,[1]!HeCalc(2,0,1,$B45*10^5,43,0,1),FluidProperties($D$2,1,$B45*10^5,10,0,2,2,1)) -> NUM | D45: =IF($D$2=11,[1]!HeCalc(3,0,1,$B45*10^5,43,0,1),FluidProperties($D$2,1,$B45*10^5,10,0,3,1,1)) -> NUM | E45: =IF($D$2=11,[1]!HeCalc(3,0,1,$B45*10^5,44,0,1),FluidProperties($D$2,1,$B45*10^5,10,0,3,2,1)) -> NUM | F45: =IF($D$2=11,[1]!HeCalc(7,0,1,$B45*10^5,43,0,1),FluidProperties($D$2,1,$B45*10^5,10,0,29,1,1))/1000 -> 
B46: 2.85 | C46: =IF($D$2=11,[1]!HeCalc(2,0,1,$B46*10^5,43,0,1),FluidProperties($D$2,1,$B46*10^5,10,0,2,2,1)) -> NUM | D46: =IF($D$2=11,[1]!HeCalc(3,0,1,$B46*10^5,43,0,1),FluidProperties($D$2,1,$B46*10^5,10,0,3,1,1)) -> NUM | E46: =IF($D$2=11,[1]!HeCalc(3,0,1,$B46*10^5,44,0,1),FluidProperties($D$2,1,$B46*10^5,10,0,3,2,1)) -> NUM | F46: =IF($D$2=11,[1]!HeCalc(7,0,1,$B46*10^5,43,0,1),FluidProperties($D$2,1,$B46*10^5,10,0,29,1,1))/1000 -> 
B47: 2.9 | C47: =IF($D$2=11,[1]!HeCalc(2,0,1,$B47*10^5,43,0,1),FluidProperties($D$2,1,$B47*10^5,10,0,2,2,1)) -> NUM | D47: =IF($D$2=11,[1]!HeCalc(3,0,1,$B47*10^5,43,0,1),FluidProperties($D$2,1,$B47*10^5,10,0,3,1,1)) -> NUM | E47: =IF($D$2=11,[1]!HeCalc(3,0,1,$B47*10^5,44,0,1),FluidProperties($D$2,1,$B47*10^5,10,0,3,2,1)) -> NUM | F47: =IF($D$2=11,[1]!HeCalc(7,0,1,$B47*10^5,43,0,1),FluidProperties($D$2,1,$B47*10^5,10,0,29,1,1))/1000 -> 
B48: 2.95 | C48: =IF($D$2=11,[1]!HeCalc(2,0,1,$B48*10^5,43,0,1),FluidProperties($D$2,1,$B48*10^5,10,0,2,2,1)) -> NUM | D48: =IF($D$2=11,[1]!HeCalc(3,0,1,$B48*10^5,43,0,1),FluidProperties($D$2,1,$B48*10^5,10,0,3,1,1)) -> NUM | E48: =IF($D$2=11,[1]!HeCalc(3,0,1,$B48*10^5,44,0,1),FluidProperties($D$2,1,$B48*10^5,10,0,3,2,1)) -> NUM | F48: =IF($D$2=11,[1]!HeCalc(7,0,1,$B48*10^5,43,0,1),FluidProperties($D$2,1,$B48*10^5,10,0,29,1,1))/1000 -> 
B49: 3 | C49: =IF($D$2=11,[1]!HeCalc(2,0,1,$B49*10^5,43,0,1),FluidProperties($D$2,1,$B49*10^5,10,0,2,2,1)) -> NUM | D49: =IF($D$2=11,[1]!HeCalc(3,0,1,$B49*10^5,43,0,1),FluidProperties($D$2,1,$B49*10^5,10,0,3,1,1)) -> NUM | E49: =IF($D$2=11,[1]!HeCalc(3,0,1,$B49*10^5,44,0,1),FluidProperties($D$2,1,$B49*10^5,10,0,3,2,1)) -> NUM | F49: =IF($D$2=11,[1]!HeCalc(7,0,1,$B49*10^5,43,0,1),FluidProperties($D$2,1,$B49*10^5,10,0,29,1,1))/1000 -> 

Sheet Vapour_fraction
B2: Fluid | C2: Nitrogen 73 | D2: =VLOOKUP(C2,Fluids_table,2) -> 21
B3: Saturated pressure | C3: 2
B4: Saturated temperature | C4: =IF($D$2=11,[1]!HeCalc(2,0,1,$C$3*10^5,43,0,1),FluidProperties($D$2,1,$C$3*10^5,10,0,2,2,1)) -> 83.64402281
B5: Liquid density | C5: =IF($D$2=11,[1]!HeCalc(3,0,1,$C$3*10^5,43,0,1),FluidProperties($D$2,1,$C$3*10^5,10,0,3,1,1)) -> 778.6187696
B6: Gas density | C6: =IF($D$2=11,[1]!HeCalc(3,0,1,$C$3*10^5,44,0,1),FluidProperties($D$2,1,$C$3*10^5,10,0,3,2,1)) -> 8.656857959
B8: Vapour mass fraction x | C8: 0.15 | D8: => | E8: Density | F8: =1/(C8/$C$6+(1-C8)/$C$5) -> 54.29182396 | G8: => | H8: Vapour fraction volume | I8: =C8*F8/$C$6 -> 0.9407308786
B10: Vapour volume fraction α | C10: 0.15 | D10: => | E10: Density | F10: =C10*$C$6+(1-C10)*$C$5 -> 663.1244829 | G10: => | H10: Vapour fraction mass | I10: =C10*$C$6/F10 -> 0.001958197484

Sheet Density
B2: Fluid | C2: Helium | D2: =VLOOKUP(C2,Fluids_table,2,FALSE) -> 11
B3: Critical pressure | C3: =IF($D$2=11,[1]!HeConst(5)/10^5,FConstant($D$2,5)/10^2) -> 2.274623
B4: Max scale | C4: =B49 -> 21
B6: Pressure step | C6: 0.5 | F6: Temperature step | G6: 1
B8: Pressure | C8: 5 | D8: 10 | F8: Temperature | G8: 5 | H8: 15
B9: 1 | C9: =IF($D$2=11,[1]!HeCalc(3,0,1,$B9*10^5,2,C$8,1),FluidProperties($D$2,1,$B9*10^5,2,C$8,3,0,1)) -> 11.78029773 | D9: =IF($D$2=11,[1]!HeCalc(3,0,1,$B9*10^5,2,D$8,1),FluidProperties($D$2,1,$B9*10^5,2,D$8,3,0,1)) -> 4.948713981 | F9: 4.5 | G9: =IF($D$2=11,[1]!HeCalc(3,0,1,G$8*10^5,2,$F9,1),FluidProperties($D$2,1,G$8*10^5,2,$F9,3,0,1)) -> 136.8006636 | H9: =IF($D$2=11,[1]!HeCalc(3,0,1,H$8*10^5,2,$F9,1),FluidProperties($D$2,1,H$8*10^5,2,$F9,3,0,1)) -> 156.005463
B10: =B9+$C$6 -> 1.5 | C10: =IF($D$2=11,[1]!HeCalc(3,0,1,$B10*10^5,2,C$8,1),FluidProperties($D$2,1,$B10*10^5,2,C$8,3,0,1)) -> 20.86098275 | D10: =IF($D$2=11,[1]!HeCalc(3,0,1,$B10*10^5,2,D$8,1),FluidProperties($D$2,1,$B10*10^5,2,D$8,3,0,1)) -> 7.528028928 | F10: =F9+$G$6 -> 5.5 | G10: =IF($D$2=11,[1]!HeCalc(3,0,1,G$8*10^5,2,$F10,1),FluidProperties($D$2,1,G$8*10^5,2,$F10,3,0,1)) -> 118.3472824 | H10: =IF($D$2=11,[1]!HeCalc(3,0,1,H$8*10^5,2,$F10,1),FluidProperties($D$2,1,H$8*10^5,2,$F10,3,0,1)) -> 147.8103546
B11: 2 | C11: =IF($D$2=11,[1]!HeCalc(3,0,1,$B11*10^5,2,C$8,1),FluidProperties($D$2,1,$B11*10^5,2,C$8,3,0,1)) -> 102.8490854 | D11: =IF($D$2=11,[1]!HeCalc(3,0,1,$B11*10^5,2,D$8,1),FluidProperties($D$2,1,$B11*10^5,2,D$8,3,0,1)) -> 10.18094258 | F11: =F10+$G$6 -> 6.5 | G11: =IF($D$2=11,[1]!HeCalc(3,0,1,G$8*10^5,2,$F11,1),FluidProperties($D$2,1,G$8*10^5,2,$F11,3,0,1)) -> 78.17607309 | H11: =IF($D$2=11,[1]!HeCalc(3,0,1,H$8*10^5,2,$F11,1),FluidProperties($D$2,1,H$8*10^5,2,$F11,3,0,1)) -> 137.6130673
B12: 2.5 | C12: =IF($D$2=11,[1]!HeCalc(3,0,1,$B12*10^5,2,C$8,1),FluidProperties($D$2,1,$B12*10^5,2,C$8,3,0,1)) -> 112.3949206 | D12: =IF($D$2=11,[1]!HeCalc(3,0,1,$B12*10^5,2,D$8,1),FluidProperties($D$2,1,$B12*10^5,2,D$8,3,0,1)) -> 12.91009166 | F12: 7.5 | G12: =IF($D$2=11,[1]!HeCalc(3,0,1,G$8*10^5,2,$F12,1),FluidProperties($D$2,1,G$8*10^5,2,$F12,3,0,1)) -> 48.33826675 | H12: =IF($D$2=11,[1]!HeCalc(3,0,1,H$8*10^5,2,$F12,1),FluidProperties($D$2,1,H$8*10^5,2,$F12,3,0,1)) -> 125.34455
B13: 3 | C13: =IF($D$2=11,[1]!HeCalc(3,0,1,$B13*10^5,2,C$8,1),FluidProperties($D$2,1,$B13*10^5,2,C$8,3,0,1)) -> 117.5293732 | D13: =IF($D$2=11,[1]!HeCalc(3,0,1,$B13*10^5,2,D$8,1),FluidProperties($D$2,1,$B13*10^5,2,D$8,3,0,1)) -> 15.7178425 | F13: 8.5 | G13: =IF($D$2=11,[1]!HeCalc(3,0,1,G$8*10^5,2,$F13,1),FluidProperties($D$2,1,G$8*10^5,2,$F13,3,0,1)) -> 36.48439359 | H13: =IF($D$2=11,[1]!HeCalc(3,0,1,H$8*10^5,2,$F13,1),FluidProperties($D$2,1,H$8*10^5,2,$F13,3,0,1)) -> 111.2665322
B14: 3.5 | C14: =IF($D$2=11,[1]!HeCalc(3,0,1,$B14*10^5,2,C$8,1),FluidProperties($D$2,1,$B14*10^5,2,C$8,3,0,1)) -> 121.2554979 | D14: =IF($D$2=11,[1]!HeCalc(3,0,1,$B14*10^5,2,D$8,1),FluidProperties($D$2,1,$B14*10^5,2,D$8,3,0,1)) -> 18.60604448 | F14: 9.5 | G14: =IF($D$2=11,[1]!HeCalc(3,0,1,G$8*10^5,2,$F14,1),FluidProperties($D$2,1,G$8*10^5,2,$F14,3,0,1)) -> 30.04810623 | H14: =IF($D$2=11,[1]!HeCalc(3,0,1,H$8*10^5,2,$F14,1),FluidProperties($D$2,1,H$8*10^5,2,$F14,3,0,1)) -> 96.74804247
B15: 4 | C15: =IF($D$2=11,[1]!HeCalc(3,0,1,$B15*10^5,2,C$8,1),FluidProperties($D$2,1,$B15*10^5,2,C$8,3,0,1)) -> 124.2452543 | D15: =IF($D$2=11,[1]!HeCalc(3,0,1,$B15*10^5,2,D$8,1),FluidProperties($D$2,1,$B15*10^5,2,D$8,3,0,1)) -> 21.57570964 | F15: 10.5 | G15: =IF($D$2=11,[1]!HeCalc(3,0,1,G$8*10^5,2,$F15,1),FluidProperties($D$2,1,G$8*10^5,2,$F15,3,0,1)) -> 25.8487368 | H15: =IF($D$2=11,[1]!HeCalc(3,0,1,H$8*10^5,2,$F15,1),FluidProperties($D$2,1,H$8*10^5,2,$F15,3,0,1)) -> 83.76821757
B16: 4.5 | C16: =IF($D$2=11,[1]!HeCalc(3,0,1,$B16*10^5,2,C$8,1),FluidProperties($D$2,1,$B16*10^5,2,C$8,3,0,1)) -> 126.7727125 | D16: =IF($D$2=11,[1]!HeCalc(3,0,1,$B16*10^5,2,D$8,1),FluidProperties($D$2,1,$B16*10^5,2,D$8,3,0,1)) -> 24.62662161 | F16: 11.5 | G16: =IF($D$2=11,[1]!HeCalc(3,0,1,G$8*10^5,2,$F16,1),FluidProperties($D$2,1,G$8*10^5,2,$F16,3,0,1)) -> 22.82596868 | H16: =IF($D$2=11,[1]!HeCalc(3,0,1,H$8*10^5,2,$F16,1),FluidProperties($D$2,1,H$8*10^5,2,$F16,3,0,1)) -> 73.19851278
B17: 5 | C17: =IF($D$2=11,[1]!HeCalc(3,0,1,$B17*10^5,2,C$8,1),FluidProperties($D$2,1,$B17*10^5,2,C$8,3,0,1)) -> 128.979272 | D17: =IF($D$2=11,[1]!HeCalc(3,0,1,$B17*10^5,2,D$8,1),FluidProperties($D$2,1,$B17*10^5,2,D$8,3,0,1)) -> 27.75689392 | F17: 12.5 | G17: =IF($D$2=11,[1]!HeCalc(3,0,1,G$8*10^5,2,$F17,1),FluidProperties($D$2,1,G$8*10^5,2,$F17,3,0,1)) -> 20.51572013 | H17: =IF($D$2=11,[1]!HeCalc(3,0,1,H$8*10^5,2,$F17,1),FluidProperties($D$2,1,H$8*10^5,2,$F17,3,0,1)) -> 64.83788987
B18: 5.5 | C18: =IF($D$2=11,[1]!HeCalc(3,0,1,$B18*10^5,2,C$8,1),FluidProperties($D$2,1,$B18*10^5,2,C$8,3,0,1)) -> 130.948299 | D18: =IF($D$2=11,[1]!HeCalc(3,0,1,$B18*10^5,2,D$8,1),FluidProperties($D$2,1,$B18*10^5,2,D$8,3,0,1)) -> 30.96251836 | F18: 13.5 | G18: =IF($D$2=11,[1]!HeCalc(3,0,1,G$8*10^5,2,$F18,1),FluidProperties($D$2,1,G$8*10^5,2,$F18,3,0,1)) -> 18.67728931 | H18: =IF($D$2=11,[1]!HeCalc(3,0,1,H$8*10^5,2,$F18,1),FluidProperties($D$2,1,H$8*10^5,2,$F18,3,0,1)) -> 58.20413024
B19: 6 | C19: =IF($D$2=11,[1]!HeCalc(3,0,1,$B19*10^5,2,C$8,1),FluidProperties($D$2,1,$B19*10^5,2,C$8,3,0,1)) -> 132.7334342 | D19: =IF($D$2=11,[1]!HeCalc(3,0,1,$B19*10^5,2,D$8,1),FluidProperties($D$2,1,$B19*10^5,2,D$8,3,0,1)) -> 34.23697527 | F19: 14.5 | G19: =IF($D$2=11,[1]!HeCalc(3,0,1,G$8*10^5,2,$F19,1),FluidProperties($D$2,1,G$8*10^5,2,$F19,3,0,1)) -> 17.17106971 | H19: =IF($D$2=11,[1]!HeCalc(3,0,1,H$8*10^5,2,$F19,1),FluidProperties($D$2,1,H$8*10^5,2,$F19,3,0,1)) -> 52.86317048
B20: 6.5 | C20: =IF($D$2=11,[1]!HeCalc(3,0,1,$B20*10^5,2,C$8,1),FluidProperties($D$2,1,$B20*10^5,2,C$8,3,0,1)) -> 134.3714021 | D20: =IF($D$2=11,[1]!HeCalc(3,0,1,$B20*10^5,2,D$8,1),FluidProperties($D$2,1,$B20*10^5,2,D$8,3,0,1)) -> 37.57099296 | F20: 15.5 | G20: =IF($D$2=11,[1]!HeCalc(3,0,1,G$8*10^5,2,$F20,1),FluidProperties($D$2,1,G$8*10^5,2,$F20,3,0,1)) -> 15.90947257 | H20: =IF($D$2=11,[1]!HeCalc(3,0,1,H$8*10^5,2,$F20,1),FluidProperties($D$2,1,H$8*10^5,2,$F20,3,0,1)) -> 48.48673088
B21: 7 | C21: =IF($D$2=11,[1]!HeCalc(3,0,1,$B21*10^5,2,C$8,1),FluidProperties($D$2,1,$B21*10^5,2,C$8,3,0,1)) -> 135.8885433 | D21: =IF($D$2=11,[1]!HeCalc(3,0,1,$B21*10^5,2,D$8,1),FluidProperties($D$2,1,$B21*10^5,2,D$8,3,0,1)) -> 40.95255027 | F21: 16.5 | G21: =IF($D$2=11,[1]!HeCalc(3,0,1,G$8*10^5,2,$F21,1),FluidProperties($D$2,1,G$8*10^5,2,$F21,3,0,1)) -> 14.83425647 | H21: =IF($D$2=11,[1]!HeCalc(3,0,1,H$8*10^5,2,$F21,1),FluidProperties($D$2,1,H$8*10^5,2,$F21,3,0,1)) -> 44.83825489
B22: 7.5 | C22: =IF($D$2=11,[1]!HeCalc(3,0,1,$B22*10^5,2,C$8,1),FluidProperties($D$2,1,$B22*10^5,2,C$8,3,0,1)) -> 137.3044475 | D22: =IF($D$2=11,[1]!HeCalc(3,0,1,$B22*10^5,2,D$8,1),FluidProperties($D$2,1,$B22*10^5,2,D$8,3,0,1)) -> 44.36718484 | F22: 17.5 | G22: =IF($D$2=11,[1]!HeCalc(3,0,1,G$8*10^5,2,$F22,1),FluidProperties($D$2,1,G$8*10^5,2,$F22,3,0,1)) -> 13.90492205 | H22: =IF($D$2=11,[1]!HeCalc(3,0,1,H$8*10^5,2,$F22,1),FluidProperties($D$2,1,H$8*10^5,2,$F22,3,0,1)) -> 41.74859274
B23: 8 | C23: =IF($D$2=11,[1]!HeCalc(3,0,1,$B23*10^5,2,C$8,1),FluidProperties($D$2,1,$B23*10^5,2,C$8,3,0,1)) -> 138.6341133 | D23: =IF($D$2=11,[1]!HeCalc(3,0,1,$B23*10^5,2,D$8,1),FluidProperties($D$2,1,$B23*10^5,2,D$8,3,0,1)) -> 47.79860811 | F23: 18.5 | G23: =IF($D$2=11,[1]!HeCalc(3,0,1,G$8*10^5,2,$F23,1),FluidProperties($D$2,1,G$8*10^5,2,$F23,3,0,1)) -> 13.0922885 | H23: =IF($D$2=11,[1]!HeCalc(3,0,1,H$8*10^5,2,$F23,1),FluidProperties($D$2,1,H$8*10^5,2,$F23,3,0,1)) -> 39.09575056
B24: 8.5 | C24: =IF($D$2=11,[1]!HeCalc(3,0,1,$B24*10^5,2,C$8,1),FluidProperties($D$2,1,$B24*10^5,2,C$8,3,0,1)) -> 139.8893008 | D24: =IF($D$2=11,[1]!HeCalc(3,0,1,$B24*10^5,2,D$8,1),FluidProperties($D$2,1,$B24*10^5,2,D$8,3,0,1)) -> 51.2295481 | F24: 19.5 | G24: =IF($D$2=11,[1]!HeCalc(3,0,1,G$8*10^5,2,$F24,1),FluidProperties($D$2,1,G$8*10^5,2,$F24,3,0,1)) -> 12.37471308 | H24: =IF($D$2=11,[1]!HeCalc(3,0,1,H$8*10^5,2,$F24,1),FluidProperties($D$2,1,H$8*10^5,2,$F24,3,0,1)) -> 36.7903952
B25: 9 | C25: =IF($D$2=11,[1]!HeCalc(3,0,1,$B25*10^5,2,C$8,1),FluidProperties($D$2,1,$B25*10^5,2,C$8,3,0,1)) -> 141.079416 | D25: =IF($D$2=11,[1]!HeCalc(3,0,1,$B25*10^5,2,D$8,1),FluidProperties($D$2,1,$B25*10^5,2,D$8,3,0,1)) -> 54.64267945 | F25: 20.5 | G25: =IF($D$2=11,[1]!HeCalc(3,0,1,G$8*10^5,2,$F25,1),FluidProperties($D$2,1,G$8*10^5,2,$F25,3,0,1)) -> 11.73575342 | H25: =IF($D$2=11,[1]!HeCalc(3,0,1,H$8*10^5,2,$F25,1),FluidProperties($D$2,1,H$8*10^5,2,$F25,3,0,1)) -> 34.76596108
B26: 9.5 | C26: =IF($D$2=11,[1]!HeCalc(3,0,1,$B26*10^5,2,C$8,1),FluidProperties($D$2,1,$B26*10^5,2,C$8,3,0,1)) -> 142.2121106 | D26: =IF($D$2=11,[1]!HeCalc(3,0,1,$B26*10^5,2,D$8,1),FluidProperties($D$2,1,$B26*10^5,2,D$8,3,0,1)) -> 58.02148085 | F26: 21.5 | G26: =IF($D$2=11,[1]!HeCalc(3,0,1,G$8*10^5,2,$F26,1),FluidProperties($D$2,1,G$8*10^5,2,$F26,3,0,1)) -> 11.16266179 | H26: =IF($D$2=11,[1]!HeCalc(3,0,1,H$8*10^5,2,$F26,1),FluidProperties($D$2,1,H$8*10^5,2,$F26,3,0,1)) -> 32.97197019
B27: 10 | C27: =IF($D$2=11,[1]!HeCalc(3,0,1,$B27*10^5,2,C$8,1),FluidProperties($D$2,1,$B27*10^5,2,C$8,3,0,1)) -> 143.2936998 | D27: =IF($D$2=11,[1]!HeCalc(3,0,1,$B27*10^5,2,D$8,1),FluidProperties($D$2,1,$B27*10^5,2,D$8,3,0,1)) -> 61.35089052 | F27: 22.5 | G27: =IF($D$2=11,[1]!HeCalc(3,0,1,G$8*10^5,2,$F27,1),FluidProperties($D$2,1,G$8*10^5,2,$F27,3,0,1)) -> 10.64538153 | H27: =IF($D$2=11,[1]!HeCalc(3,0,1,H$8*10^5,2,$F27,1),FluidProperties($D$2,1,H$8*10^5,2,$F27,3,0,1)) -> 31.36949863
B28: 10.5 | C28: =IF($D$2=11,[1]!HeCalc(3,0,1,$B28*10^5,2,C$8,1),FluidProperties($D$2,1,$B28*10^5,2,C$8,3,0,1)) -> 144.329462 | D28: =IF($D$2=11,[1]!HeCalc(3,0,1,$B28*10^5,2,D$8,1),FluidProperties($D$2,1,$B28*10^5,2,D$8,3,0,1)) -> 64.61771774 | F28: 23.5 | G28: =IF($D$2=11,[1]!HeCalc(3,0,1,G$8*10^5,2,$F28,1),FluidProperties($D$2,1,G$8*10^5,2,$F28,3,0,1)) -> 10.17585853 | H28: =IF($D$2=11,[1]!HeCalc(3,0,1,H$8*10^5,2,$F28,1),FluidProperties($D$2,1,H$8*10^5,2,$F28,3,0,1)) -> 29.92806244
B29: 11 | C29: =IF($D$2=11,[1]!HeCalc(3,0,1,$B29*10^5,2,C$8,1),FluidProperties($D$2,1,$B29*10^5,2,C$8,3,0,1)) -> 145.3238579 | D29: =IF($D$2=11,[1]!HeCalc(3,0,1,$B29*10^5,2,D$8,1),FluidProperties($D$2,1,$B29*10^5,2,D$8,3,0,1)) -> 67.81081233 | F29: 24.5 | G29: =IF($D$2=11,[1]!HeCalc(3,0,1,G$8*10^5,2,$F29,1),FluidProperties($D$2,1,G$8*10^5,2,$F29,3,0,1)) -> 9.747556847 | H29: =IF($D$2=11,[1]!HeCalc(3,0,1,H$8*10^5,2,$F29,1),FluidProperties($D$2,1,H$8*10^5,2,$F29,3,0,1)) -> 28.62344552
B30: 11.5 | C30: =IF($D$2=11,[1]!HeCalc(3,0,1,$B30*10^5,2,C$8,1),FluidProperties($D$2,1,$B30*10^5,2,C$8,3,0,1)) -> 146.2806944 | D30: =IF($D$2=11,[1]!HeCalc(3,0,1,$B30*10^5,2,D$8,1),FluidProperties($D$2,1,$B30*10^5,2,D$8,3,0,1)) -> 70.92106174 | F30: 25.5 | G30: =IF($D$2=11,[1]!HeCalc(3,0,1,G$8*10^5,2,$F30,1),FluidProperties($D$2,1,G$8*10^5,2,$F30,3,0,1)) -> 9.355110357 | H30: =IF($D$2=11,[1]!HeCalc(3,0,1,H$8*10^5,2,$F30,1),FluidProperties($D$2,1,H$8*10^5,2,$F30,3,0,1)) -> 27.43616013
B31: 12 | C31: =IF($D$2=11,[1]!HeCalc(3,0,1,$B31*10^5,2,C$8,1),FluidProperties($D$2,1,$B31*10^5,2,C$8,3,0,1)) -> 147.2032485 | D31: =IF($D$2=11,[1]!HeCalc(3,0,1,$B31*10^5,2,D$8,1),FluidProperties($D$2,1,$B31*10^5,2,D$8,3,0,1)) -> 73.94128535 | F31: 26.5 | G31: =IF($D$2=11,[1]!HeCalc(3,0,1,G$8*10^5,2,$F31,1),FluidProperties($D$2,1,G$8*10^5,2,$F31,3,0,1)) -> 8.994067504 | H31: =IF($D$2=11,[1]!HeCalc(3,0,1,H$8*10^5,2,$F31,1),FluidProperties($D$2,1,H$8*10^5,2,$F31,3,0,1)) -> 26.35033798
B32: 12.5 | C32: =IF($D$2=11,[1]!HeCalc(3,0,1,$B32*10^5,2,C$8,1),FluidProperties($D$2,1,$B32*10^5,2,C$8,3,0,1)) -> 148.0943638 | D32: =IF($D$2=11,[1]!HeCalc(3,0,1,$B32*10^5,2,D$8,1),FluidProperties($D$2,1,$B32*10^5,2,D$8,3,0,1)) -> 76.86608592 | F32: 27.5 | G32: =IF($D$2=11,[1]!HeCalc(3,0,1,G$8*10^5,2,$F32,1),FluidProperties($D$2,1,G$8*10^5,2,$F32,3,0,1)) -> 8.660700958 | H32: =IF($D$2=11,[1]!HeCalc(3,0,1,H$8*10^5,2,$F32,1),FluidProperties($D$2,1,H$8*10^5,2,$F32,3,0,1)) -> 25.35291913
B33: 13 | C33: =IF($D$2=11,[1]!HeCalc(3,0,1,$B33*10^5,2,C$8,1),FluidProperties($D$2,1,$B33*10^5,2,C$8,3,0,1)) -> 148.9565238 | D33: =IF($D$2=11,[1]!HeCalc(3,0,1,$B33*10^5,2,D$8,1),FluidProperties($D$2,1,$B33*10^5,2,D$8,3,0,1)) -> 79.69169389 | F33: 28.5 | G33: =IF($D$2=11,[1]!HeCalc(3,0,1,G$8*10^5,2,$F33,1),FluidProperties($D$2,1,G$8*10^5,2,$F33,3,0,1)) -> 8.351863561 | H33: =IF($D$2=11,[1]!HeCalc(3,0,1,H$8*10^5,2,$F33,1),FluidProperties($D$2,1,H$8*10^5,2,$F33,3,0,1)) -> 24.43305
B34: 13.5 | C34: =IF($D$2=11,[1]!HeCalc(3,0,1,$B34*10^5,2,C$8,1),FluidProperties($D$2,1,$B34*10^5,2,C$8,3,0,1)) -> 149.7919136 | D34: =IF($D$2=11,[1]!HeCalc(3,0,1,$B34*10^5,2,D$8,1),FluidProperties($D$2,1,$B34*10^5,2,D$8,3,0,1)) -> 82.41581723 | F34: 29.5 | G34: =IF($D$2=11,[1]!HeCalc(3,0,1,G$8*10^5,2,$F34,1),FluidProperties($D$2,1,G$8*10^5,2,$F34,3,0,1)) -> 8.06487779 | H34: =IF($D$2=11,[1]!HeCalc(3,0,1,H$8*10^5,2,$F34,1),FluidProperties($D$2,1,H$8*10^5,2,$F34,3,0,1)) -> 23.58163032
B35: 14 | C35: =IF($D$2=11,[1]!HeCalc(3,0,1,$B35*10^5,2,C$8,1),FluidProperties($D$2,1,$B35*10^5,2,C$8,3,0,1)) -> 150.6024651 | D35: =IF($D$2=11,[1]!HeCalc(3,0,1,$B35*10^5,2,D$8,1),FluidProperties($D$2,1,$B35*10^5,2,D$8,3,0,1)) -> 85.0375002 | F35: 30.5 | G35: =IF($D$2=11,[1]!HeCalc(3,0,1,G$8*10^5,2,$F35,1),FluidProperties($D$2,1,G$8*10^5,2,$F35,3,0,1)) -> 7.797449884 | H35: =IF($D$2=11,[1]!HeCalc(3,0,1,H$8*10^5,2,$F35,1),FluidProperties($D$2,1,H$8*10^5,2,$F35,3,0,1)) -> 22.7909679
B36: 14.5 | C36: =IF($D$2=11,[1]!HeCalc(3,0,1,$B36*10^5,2,C$8,1),FluidProperties($D$2,1,$B36*10^5,2,C$8,3,0,1)) -> 151.3898959 | D36: =IF($D$2=11,[1]!HeCalc(3,0,1,$B36*10^5,2,D$8,1),FluidProperties($D$2,1,$B36*10^5,2,D$8,3,0,1)) -> 87.55697279 | F36: 31.5 | G36: =IF($D$2=11,[1]!HeCalc(3,0,1,G$8*10^5,2,$F36,1),FluidProperties($D$2,1,G$8*10^5,2,$F36,3,0,1)) -> 7.547602392 | H36: =IF($D$2=11,[1]!HeCalc(3,0,1,H$8*10^5,2,$F36,1),FluidProperties($D$2,1,H$8*10^5,2,$F36,3,0,1)) -> 22.05451239
B37: 15 | C37: =IF($D$2=11,[1]!HeCalc(3,0,1,$B37*10^5,2,C$8,1),FluidProperties($D$2,1,$B37*10^5,2,C$8,3,0,1)) -> 152.1557412 | D37: =IF($D$2=11,[1]!HeCalc(3,0,1,$B37*10^5,2,D$8,1),FluidProperties($D$2,1,$B37*10^5,2,D$8,3,0,1)) -> 89.97550309 | F37: 32.5 | G37: =IF($D$2=11,[1]!HeCalc(3,0,1,G$8*10^5,2,$F37,1),FluidProperties($D$2,1,G$8*10^5,2,$F37,3,0,1)) -> 7.313620635 | H37: =IF($D$2=11,[1]!HeCalc(3,0,1,H$8*10^5,2,$F37,1),FluidProperties($D$2,1,H$8*10^5,2,$F37,3,0,1)) -> 21.36664771
B38: 15.5 | C38: =IF($D$2=11,[1]!HeCalc(3,0,1,$B38*10^5,2,C$8,1),FluidProperties($D$2,1,$B38*10^5,2,C$8,3,0,1)) -> 152.9013784 | D38: =IF($D$2=11,[1]!HeCalc(3,0,1,$B38*10^5,2,D$8,1),FluidProperties($D$2,1,$B38*10^5,2,D$8,3,0,1)) -> 92.29523675 | F38: 33.5 | G38: =IF($D$2=11,[1]!HeCalc(3,0,1,G$8*10^5,2,$F38,1),FluidProperties($D$2,1,G$8*10^5,2,$F38,3,0,1)) -> 7.094009815 | H38: =IF($D$2=11,[1]!HeCalc(3,0,1,H$8*10^5,2,$F38,1),FluidProperties($D$2,1,H$8*10^5,2,$F38,3,0,1)) -> 20.72252865
B39: 16 | C39: =IF($D$2=11,[1]!HeCalc(3,0,1,$B39*10^5,2,C$8,1),FluidProperties($D$2,1,$B39*10^5,2,C$8,3,0,1)) -> 153.6280491 | D39: =IF($D$2=11,[1]!HeCalc(3,0,1,$B39*10^5,2,D$8,1),FluidProperties($D$2,1,$B39*10^5,2,D$8,3,0,1)) -> 94.51903347 | F39: 34.5 | G39: =IF($D$2=11,[1]!HeCalc(3,0,1,G$8*10^5,2,$F39,1),FluidProperties($D$2,1,G$8*10^5,2,$F39,3,0,1)) -> 6.887460364 | H39: =IF($D$2=11,[1]!HeCalc(3,0,1,H$8*10^5,2,$F39,1),FluidProperties($D$2,1,H$8*10^5,2,$F39,3,0,1)) -> 20.11795016
B40: 16.5 | C40: =IF($D$2=11,[1]!HeCalc(3,0,1,$B40*10^5,2,C$8,1),FluidProperties($D$2,1,$B40*10^5,2,C$8,3,0,1)) -> 154.3368766 | D40: =IF($D$2=11,[1]!HeCalc(3,0,1,$B40*10^5,2,D$8,1),FluidProperties($D$2,1,$B40*10^5,2,D$8,3,0,1)) -> 96.65030536 | F40: 35.5 | G40: =IF($D$2=11,[1]!HeCalc(3,0,1,G$8*10^5,2,$F40,1),FluidProperties($D$2,1,G$8*10^5,2,$F40,3,0,1)) -> 6.692819714 | H40: =IF($D$2=11,[1]!HeCalc(3,0,1,H$8*10^5,2,$F40,1),FluidProperties($D$2,1,H$8*10^5,2,$F40,3,0,1)) -> 19.5492444
B41: 17 | C41: =IF($D$2=11,[1]!HeCalc(3,0,1,$B41*10^5,2,C$8,1),FluidProperties($D$2,1,$B41*10^5,2,C$8,3,0,1)) -> 155.0288808 | D41: =IF($D$2=11,[1]!HeCalc(3,0,1,$B41*10^5,2,D$8,1),FluidProperties($D$2,1,$B41*10^5,2,D$8,3,0,1)) -> 98.692864 | F41: 36.5 | G41: =IF($D$2=11,[1]!HeCalc(3,0,1,G$8*10^5,2,$F41,1),FluidProperties($D$2,1,G$8*10^5,2,$F41,3,0,1)) -> 6.509069141 | H41: =IF($D$2=11,[1]!HeCalc(3,0,1,H$8*10^5,2,$F41,1),FluidProperties($D$2,1,H$8*10^5,2,$F41,3,0,1)) -> 19.01319506
B42: 17.5 | C42: =IF($D$2=11,[1]!HeCalc(3,0,1,$B42*10^5,2,C$8,1),FluidProperties($D$2,1,$B42*10^5,2,C$8,3,0,1)) -> 155.704991 | D42: =IF($D$2=11,[1]!HeCalc(3,0,1,$B42*10^5,2,D$8,1),FluidProperties($D$2,1,$B42*10^5,2,D$8,3,0,1)) -> 100.6507818 | F42: 37.5 | G42: =IF($D$2=11,[1]!HeCalc(3,0,1,G$8*10^5,2,$F42,1),FluidProperties($D$2,1,G$8*10^5,2,$F42,3,0,1)) -> 6.335304631 | H42: =IF($D$2=11,[1]!HeCalc(3,0,1,H$8*10^5,2,$F42,1),FluidProperties($D$2,1,H$8*10^5,2,$F42,3,0,1)) -> 18.50696921
B43: 18 | C43: =IF($D$2=11,[1]!HeCalc(3,0,1,$B43*10^5,2,C$8,1),FluidProperties($D$2,1,$B43*10^5,2,C$8,3,0,1)) -> 156.3660562 | D43: =IF($D$2=11,[1]!HeCalc(3,0,1,$B43*10^5,2,D$8,1),FluidProperties($D$2,1,$B43*10^5,2,D$8,3,0,1)) -> 102.528272 | F43: 38.5 | G43: =IF($D$2=11,[1]!HeCalc(3,0,1,G$8*10^5,2,$F43,1),FluidProperties($D$2,1,G$8*10^5,2,$F43,3,0,1)) -> 6.170720972 | H43: =IF($D$2=11,[1]!HeCalc(3,0,1,H$8*10^5,2,$F43,1),FluidProperties($D$2,1,H$8*10^5,2,$F43,3,0,1)) -> 18.02806077
B44: 18.5 | C44: =IF($D$2=11,[1]!HeCalc(3,0,1,$B44*10^5,2,C$8,1),FluidProperties($D$2,1,$B44*10^5,2,C$8,3,0,1)) -> 157.0128548 | D44: =IF($D$2=11,[1]!HeCalc(3,0,1,$B44*10^5,2,D$8,1),FluidProperties($D$2,1,$B44*10^5,2,D$8,3,0,1)) -> 104.3295886 | F44: 39.5 | G44: =IF($D$2=11,[1]!HeCalc(3,0,1,G$8*10^5,2,$F44,1),FluidProperties($D$2,1,G$8*10^5,2,$F44,3,0,1)) -> 6.014598452 | H44: =IF($D$2=11,[1]!HeCalc(3,0,1,H$8*10^5,2,$F44,1),FluidProperties($D$2,1,H$8*10^5,2,$F44,3,0,1)) -> 17.57424388
B45: 19 | C45: =IF($D$2=11,[1]!HeCalc(3,0,1,$B45*10^5,2,C$8,1),FluidProperties($D$2,1,$B45*10^5,2,C$8,3,0,1)) -> 157.6461021 | D45: =IF($D$2=11,[1]!HeCalc(3,0,1,$B45*10^5,2,D$8,1),FluidProperties($D$2,1,$B45*10^5,2,D$8,3,0,1)) -> 106.0589447 | F45: 40.5 | G45: =IF($D$2=11,[1]!HeCalc(3,0,1,G$8*10^5,2,$F45,1),FluidProperties($D$2,1,G$8*10^5,2,$F45,3,0,1)) -> 5.86629167 | H45: =IF($D$2=11,[1]!HeCalc(3,0,1,H$8*10^5,2,$F45,1),FluidProperties($D$2,1,H$8*10^5,2,$F45,3,0,1)) -> 17.14353406
B46: 19.5 | C46: =IF($D$2=11,[1]!HeCalc(3,0,1,$B46*10^5,2,C$8,1),FluidProperties($D$2,1,$B46*10^5,2,C$8,3,0,1)) -> 158.266457 | D46: =IF($D$2=11,[1]!HeCalc(3,0,1,$B46*10^5,2,D$8,1),FluidProperties($D$2,1,$B46*10^5,2,D$8,3,0,1)) -> 107.7204564 | F46: 41.5 | G46: =IF($D$2=11,[1]!HeCalc(3,0,1,G$8*10^5,2,$F46,1),FluidProperties($D$2,1,G$8*10^5,2,$F46,3,0,1)) -> 5.725220076 | H46: =IF($D$2=11,[1]!HeCalc(3,0,1,H$8*10^5,2,$F46,1),FluidProperties($D$2,1,H$8*10^5,2,$F46,3,0,1)) -> 16.73415583
B47: 20 | C47: =IF($D$2=11,[1]!HeCalc(3,0,1,$B47*10^5,2,C$8,1),FluidProperties($D$2,1,$B47*10^5,2,C$8,3,0,1)) -> 158.8745285 | D47: =IF($D$2=11,[1]!HeCalc(3,0,1,$B47*10^5,2,D$8,1),FluidProperties($D$2,1,$B47*10^5,2,D$8,3,0,1)) -> 109.318093 | F47: 42.5 | G47: =IF($D$2=11,[1]!HeCalc(3,0,1,G$8*10^5,2,$F47,1),FluidProperties($D$2,1,G$8*10^5,2,$F47,3,0,1)) -> 5.590859936 | H47: =IF($D$2=11,[1]!HeCalc(3,0,1,H$8*10^5,2,$F47,1),FluidProperties($D$2,1,H$8*10^5,2,$F47,3,0,1)) -> 16.3445154
B48: 20.5 | C48: =IF($D$2=11,[1]!HeCalc(3,0,1,$B48*10^5,2,C$8,1),FluidProperties($D$2,1,$B48*10^5,2,C$8,3,0,1)) -> 159.4708802 | D48: =IF($D$2=11,[1]!HeCalc(3,0,1,$B48*10^5,2,D$8,1),FluidProperties($D$2,1,$B48*10^5,2,D$8,3,0,1)) -> 110.8556494 | F48: 43.5 | G48: =IF($D$2=11,[1]!HeCalc(3,0,1,G$8*10^5,2,$F48,1),FluidProperties($D$2,1,G$8*10^5,2,$F48,3,0,1)) -> 5.462737473 | H48: =IF($D$2=11,[1]!HeCalc(3,0,1,H$8*10^5,2,$F48,1),FluidProperties($D$2,1,H$8*10^5,2,$F48,3,0,1)) -> 15.97317761
B49: 21 | C49: =IF($D$2=11,[1]!HeCalc(3,0,1,$B49*10^5,2,C$8,1),FluidProperties($D$2,1,$B49*10^5,2,C$8,3,0,1)) -> 160.0560351 | D49: =IF($D$2=11,[1]!HeCalc(3,0,1,$B49*10^5,2,D$8,1),FluidProperties($D$2,1,$B49*10^5,2,D$8,3,0,1)) -> 112.3367269 | F49: 44.5 | G49: =IF($D$2=11,[1]!HeCalc(3,0,1,G$8*10^5,2,$F49,1),FluidProperties($D$2,1,G$8*10^5,2,$F49,3,0,1)) -> 5.340422984 | H49: =IF($D$2=11,[1]!HeCalc(3,0,1,H$8*10^5,2,$F49,1),FluidProperties($D$2,1,H$8*10^5,2,$F49,3,0,1)) -> 15.61884633

Sheet Cp
B2: Fluid | C2: Helium | D2: =VLOOKUP(C2,Fluids_table,2,FALSE) -> 11
B3: Critical pressure | C3: =IF($D$2=11,[1]!HeConst(5)/10^5,FConstant($D$2,5)/10^2) -> 2.274623
B4: Max scale | C4: =B48 -> 40
B6: Pressure step | C6: 1 | F6: Temperature step | G6: 0.3
B8: Pressure | C8: 8 | D8: 20 | F8: Temperature | G8: 1 | H8: 5
B9: 1 | C9: =IF($D$2=11,[1]!HeCalc(14,0,1,$B9*10^5,2,C$8,1),FluidProperties($D$2,1,$B9*10^5,2,C$8,10,0,1)) -> 5574.92035 | D9: =IF($D$2=11,[1]!HeCalc(14,0,1,$B9*10^5,2,D$8,1),FluidProperties($D$2,1,$B9*10^5,2,D$8,10,0,1)) -> 5249.997087 | F9: 4.5 | G9: =IF($D$2=11,[1]!HeCalc(14,0,1,G$8*10^5,2,$F9,1),FluidProperties($D$2,1,G$8*10^5,2,$F9,10,0,1)) -> 7710.104402 | H9: =IF($D$2=11,[1]!HeCalc(14,0,1,H$8*10^5,2,$F9,1),FluidProperties($D$2,1,H$8*10^5,2,$F9,10,0,1)) -> 3954.627628
B10: =B9+$C$6 -> 2 | C10: =IF($D$2=11,[1]!HeCalc(14,0,1,$B10*10^5,2,C$8,1),FluidProperties($D$2,1,$B10*10^5,2,C$8,10,0,1)) -> 6064.200967 | D10: =IF($D$2=11,[1]!HeCalc(14,0,1,$B10*10^5,2,D$8,1),FluidProperties($D$2,1,$B10*10^5,2,D$8,10,0,1)) -> 5306.442426 | F10: =F9+$G$6 -> 4.8 | G10: =IF($D$2=11,[1]!HeCalc(14,0,1,G$8*10^5,2,$F10,1),FluidProperties($D$2,1,G$8*10^5,2,$F10,10,0,1)) -> 7027.073965 | H10: =IF($D$2=11,[1]!HeCalc(14,0,1,H$8*10^5,2,$F10,1),FluidProperties($D$2,1,H$8*10^5,2,$F10,10,0,1)) -> 4440.046612
B11: 3 | C11: =IF($D$2=11,[1]!HeCalc(14,0,1,$B11*10^5,2,C$8,1),FluidProperties($D$2,1,$B11*10^5,2,C$8,10,0,1)) -> 6712.338908 | D11: =IF($D$2=11,[1]!HeCalc(14,0,1,$B11*10^5,2,D$8,1),FluidProperties($D$2,1,$B11*10^5,2,D$8,10,0,1)) -> 5362.326875 | F11: =F10+$G$6 -> 5.1 | G11: =IF($D$2=11,[1]!HeCalc(14,0,1,G$8*10^5,2,$F11,1),FluidProperties($D$2,1,G$8*10^5,2,$F11,10,0,1)) -> 6618.678675 | H11: =IF($D$2=11,[1]!HeCalc(14,0,1,H$8*10^5,2,$F11,1),FluidProperties($D$2,1,H$8*10^5,2,$F11,10,0,1)) -> 5084.33663
B12: 4 | C12: =IF($D$2=11,[1]!HeCalc(14,0,1,$B12*10^5,2,C$8,1),FluidProperties($D$2,1,$B12*10^5,2,C$8,10,0,1)) -> 7554.89447 | D12: =IF($D$2=11,[1]!HeCalc(14,0,1,$B12*10^5,2,D$8,1),FluidProperties($D$2,1,$B12*10^5,2,D$8,10,0,1)) -> 5417.561129 | F12: 5.4 | G12: =IF($D$2=11,[1]!HeCalc(14,0,1,G$8*10^5,2,$F12,1),FluidProperties($D$2,1,G$8*10^5,2,$F12,10,0,1)) -> 6347.006827 | H12: =IF($D$2=11,[1]!HeCalc(14,0,1,H$8*10^5,2,$F12,1),FluidProperties($D$2,1,H$8*10^5,2,$F12,10,0,1)) -> 6017.983161
B13: 5 | C13: =IF($D$2=11,[1]!HeCalc(14,0,1,$B13*10^5,2,C$8,1),FluidProperties($D$2,1,$B13*10^5,2,C$8,10,0,1)) -> 8505.251561 | D13: =IF($D$2=11,[1]!HeCalc(14,0,1,$B13*10^5,2,D$8,1),FluidProperties($D$2,1,$B13*10^5,2,D$8,10,0,1)) -> 5472.03797 | F13: 5.7 | G13: =IF($D$2=11,[1]!HeCalc(14,0,1,G$8*10^5,2,$F13,1),FluidProperties($D$2,1,G$8*10^5,2,$F13,10,0,1)) -> 6154.152056 | H13: =IF($D$2=11,[1]!HeCalc(14,0,1,H$8*10^5,2,$F13,1),FluidProperties($D$2,1,H$8*10^5,2,$F13,10,0,1)) -> 7513.693354
B14: 6 | C14: =IF($D$2=11,[1]!HeCalc(14,0,1,$B14*10^5,2,C$8,1),FluidProperties($D$2,1,$B14*10^5,2,C$8,10,0,1)) -> 9248.960995 | D14: =IF($D$2=11,[1]!HeCalc(14,0,1,$B14*10^5,2,D$8,1),FluidProperties($D$2,1,$B14*10^5,2,D$8,10,0,1)) -> 5525.633325 | F14: 6 | G14: =IF($D$2=11,[1]!HeCalc(14,0,1,G$8*10^5,2,$F14,1),FluidProperties($D$2,1,G$8*10^5,2,$F14,10,0,1)) -> 6010.948527 | H14: =IF($D$2=11,[1]!HeCalc(14,0,1,H$8*10^5,2,$F14,1),FluidProperties($D$2,1,H$8*10^5,2,$F14,10,0,1)) -> 10042.4818
B15: 7 | C15: =IF($D$2=11,[1]!HeCalc(14,0,1,$B15*10^5,2,C$8,1),FluidProperties($D$2,1,$B15*10^5,2,C$8,10,0,1)) -> 9507.259542 | D15: =IF($D$2=11,[1]!HeCalc(14,0,1,$B15*10^5,2,D$8,1),FluidProperties($D$2,1,$B15*10^5,2,D$8,10,0,1)) -> 5578.208197 | F15: 6.3 | G15: =IF($D$2=11,[1]!HeCalc(14,0,1,G$8*10^5,2,$F15,1),FluidProperties($D$2,1,G$8*10^5,2,$F15,10,0,1)) -> 5900.965537 | H15: =IF($D$2=11,[1]!HeCalc(14,0,1,H$8*10^5,2,$F15,1),FluidProperties($D$2,1,H$8*10^5,2,$F15,10,0,1)) -> 12973.55814
B16: 8 | C16: =IF($D$2=11,[1]!HeCalc(14,0,1,$B16*10^5,2,C$8,1),FluidProperties($D$2,1,$B16*10^5,2,C$8,10,0,1)) -> 9323.601598 | D16: =IF($D$2=11,[1]!HeCalc(14,0,1,$B16*10^5,2,D$8,1),FluidProperties($D$2,1,$B16*10^5,2,D$8,10,0,1)) -> 5629.611447 | F16: 6.6 | G16: =IF($D$2=11,[1]!HeCalc(14,0,1,G$8*10^5,2,$F16,1),FluidProperties($D$2,1,G$8*10^5,2,$F16,10,0,1)) -> 5814.216278 | H16: =IF($D$2=11,[1]!HeCalc(14,0,1,H$8*10^5,2,$F16,1),FluidProperties($D$2,1,H$8*10^5,2,$F16,10,0,1)) -> 13314.83204
B17: 9 | C17: =IF($D$2=11,[1]!HeCalc(14,0,1,$B17*10^5,2,C$8,1),FluidProperties($D$2,1,$B17*10^5,2,C$8,10,0,1)) -> 8852.45835 | D17: =IF($D$2=11,[1]!HeCalc(14,0,1,$B17*10^5,2,D$8,1),FluidProperties($D$2,1,$B17*10^5,2,D$8,10,0,1)) -> 5679.683307 | F17: 6.9 | G17: =IF($D$2=11,[1]!HeCalc(14,0,1,G$8*10^5,2,$F17,1),FluidProperties($D$2,1,G$8*10^5,2,$F17,10,0,1)) -> 5744.285915 | H17: =IF($D$2=11,[1]!HeCalc(14,0,1,H$8*10^5,2,$F17,1),FluidProperties($D$2,1,H$8*10^5,2,$F17,10,0,1)) -> 12101.05213
B18: 10 | C18: =IF($D$2=11,[1]!HeCalc(14,0,1,$B18*10^5,2,C$8,1),FluidProperties($D$2,1,$B18*10^5,2,C$8,10,0,1)) -> 8248.19656 | D18: =IF($D$2=11,[1]!HeCalc(14,0,1,$B18*10^5,2,D$8,1),FluidProperties($D$2,1,$B18*10^5,2,D$8,10,0,1)) -> 5728.259499 | F18: 7.2 | G18: =IF($D$2=11,[1]!HeCalc(14,0,1,G$8*10^5,2,$F18,1),FluidProperties($D$2,1,G$8*10^5,2,$F18,10,0,1)) -> 5686.875749 | H18: =IF($D$2=11,[1]!HeCalc(14,0,1,H$8*10^5,2,$F18,1),FluidProperties($D$2,1,H$8*10^5,2,$F18,10,0,1)) -> 10792.55126
B19: 11 | C19: =IF($D$2=11,[1]!HeCalc(14,0,1,$B19*10^5,2,C$8,1),FluidProperties($D$2,1,$B19*10^5,2,C$8,10,0,1)) -> 7645.417108 | D19: =IF($D$2=11,[1]!HeCalc(14,0,1,$B19*10^5,2,D$8,1),FluidProperties($D$2,1,$B19*10^5,2,D$8,10,0,1)) -> 5775.175753 | F19: 7.5 | G19: =IF($D$2=11,[1]!HeCalc(14,0,1,G$8*10^5,2,$F19,1),FluidProperties($D$2,1,G$8*10^5,2,$F19,10,0,1)) -> 5639.005976 | H19: =IF($D$2=11,[1]!HeCalc(14,0,1,H$8*10^5,2,$F19,1),FluidProperties($D$2,1,H$8*10^5,2,$F19,10,0,1)) -> 9727.423154
B20: 12 | C20: =IF($D$2=11,[1]!HeCalc(14,0,1,$B20*10^5,2,C$8,1),FluidProperties($D$2,1,$B20*10^5,2,C$8,10,0,1)) -> 7114.635453 | D20: =IF($D$2=11,[1]!HeCalc(14,0,1,$B20*10^5,2,D$8,1),FluidProperties($D$2,1,$B20*10^5,2,D$8,10,0,1)) -> 5820.272455 | F20: 7.8 | G20: =IF($D$2=11,[1]!HeCalc(14,0,1,G$8*10^5,2,$F20,1),FluidProperties($D$2,1,G$8*10^5,2,$F20,10,0,1)) -> 5598.552512 | H20: =IF($D$2=11,[1]!HeCalc(14,0,1,H$8*10^5,2,$F20,1),FluidProperties($D$2,1,H$8*10^5,2,$F20,10,0,1)) -> 8923.952181
B21: 13 | C21: =IF($D$2=11,[1]!HeCalc(14,0,1,$B21*10^5,2,C$8,1),FluidProperties($D$2,1,$B21*10^5,2,C$8,10,0,1)) -> 6671.394094 | D21: =IF($D$2=11,[1]!HeCalc(14,0,1,$B21*10^5,2,D$8,1),FluidProperties($D$2,1,$B21*10^5,2,D$8,10,0,1)) -> 5863.399281 | F21: 8.1 | G21: =IF($D$2=11,[1]!HeCalc(14,0,1,G$8*10^5,2,$F21,1),FluidProperties($D$2,1,G$8*10^5,2,$F21,10,0,1)) -> 5563.964998 | H21: =IF($D$2=11,[1]!HeCalc(14,0,1,H$8*10^5,2,$F21,1),FluidProperties($D$2,1,H$8*10^5,2,$F21,10,0,1)) -> 8324.02593
B22: 14 | C22: =IF($D$2=11,[1]!HeCalc(14,0,1,$B22*10^5,2,C$8,1),FluidProperties($D$2,1,$B22*10^5,2,C$8,10,0,1)) -> 6306.848557 | D22: =IF($D$2=11,[1]!HeCalc(14,0,1,$B22*10^5,2,D$8,1),FluidProperties($D$2,1,$B22*10^5,2,D$8,10,0,1)) -> 5904.419377 | F22: 8.4 | G22: =IF($D$2=11,[1]!HeCalc(14,0,1,G$8*10^5,2,$F22,1),FluidProperties($D$2,1,G$8*10^5,2,$F22,10,0,1)) -> 5534.088466 | H22: =IF($D$2=11,[1]!HeCalc(14,0,1,H$8*10^5,2,$F22,1),FluidProperties($D$2,1,H$8*10^5,2,$F22,10,0,1)) -> 7869.753901
B23: 15 | C23: =IF($D$2=11,[1]!HeCalc(14,0,1,$B23*10^5,2,C$8,1),FluidProperties($D$2,1,$B23*10^5,2,C$8,10,0,1)) -> 6006.3027 | D23: =IF($D$2=11,[1]!HeCalc(14,0,1,$B23*10^5,2,D$8,1),FluidProperties($D$2,1,$B23*10^5,2,D$8,10,0,1)) -> 5943.213043 | F23: 8.7 | G23: =IF($D$2=11,[1]!HeCalc(14,0,1,G$8*10^5,2,$F23,1),FluidProperties($D$2,1,G$8*10^5,2,$F23,10,0,1)) -> 5508.046927 | H23: =IF($D$2=11,[1]!HeCalc(14,0,1,H$8*10^5,2,$F23,1),FluidProperties($D$2,1,H$8*10^5,2,$F23,10,0,1)) -> 7518.446021
B24: 16 | C24: =IF($D$2=11,[1]!HeCalc(14,0,1,$B24*10^5,2,C$8,1),FluidProperties($D$2,1,$B24*10^5,2,C$8,10,0,1)) -> 5756.09443 | D24: =IF($D$2=11,[1]!HeCalc(14,0,1,$B24*10^5,2,D$8,1),FluidProperties($D$2,1,$B24*10^5,2,D$8,10,0,1)) -> 5979.680628 | F24: 9 | G24: =IF($D$2=11,[1]!HeCalc(14,0,1,G$8*10^5,2,$F24,1),FluidProperties($D$2,1,G$8*10^5,2,$F24,10,0,1)) -> 5485.165308 | H24: =IF($D$2=11,[1]!HeCalc(14,0,1,H$8*10^5,2,$F24,1),FluidProperties($D$2,1,H$8*10^5,2,$F24,10,0,1)) -> 7240.825011
B25: 17 | C25: =IF($D$2=11,[1]!HeCalc(14,0,1,$B25*10^5,2,C$8,1),FluidProperties($D$2,1,$B25*10^5,2,C$8,10,0,1)) -> 5545.231204 | D25: =IF($D$2=11,[1]!HeCalc(14,0,1,$B25*10^5,2,D$8,1),FluidProperties($D$2,1,$B25*10^5,2,D$8,10,0,1)) -> 6013.744538 | F25: 9.3 | G25: =IF($D$2=11,[1]!HeCalc(14,0,1,G$8*10^5,2,$F25,1),FluidProperties($D$2,1,G$8*10^5,2,$F25,10,0,1)) -> 5464.915881 | H25: =IF($D$2=11,[1]!HeCalc(14,0,1,H$8*10^5,2,$F25,1),FluidProperties($D$2,1,H$8*10^5,2,$F25,10,0,1)) -> 7017.006835
B26: 18 | C26: =IF($D$2=11,[1]!HeCalc(14,0,1,$B26*10^5,2,C$8,1),FluidProperties($D$2,1,$B26*10^5,2,C$8,10,0,1)) -> 5365.286538 | D26: =IF($D$2=11,[1]!HeCalc(14,0,1,$B26*10^5,2,D$8,1),FluidProperties($D$2,1,$B26*10^5,2,D$8,10,0,1)) -> 6045.350312 | F26: 9.6 | G26: =IF($D$2=11,[1]!HeCalc(14,0,1,G$8*10^5,2,$F26,1),FluidProperties($D$2,1,G$8*10^5,2,$F26,10,0,1)) -> 5446.880731 | H26: =IF($D$2=11,[1]!HeCalc(14,0,1,H$8*10^5,2,$F26,1),FluidProperties($D$2,1,H$8*10^5,2,$F26,10,0,1)) -> 6833.32724
B27: 19 | C27: =IF($D$2=11,[1]!HeCalc(14,0,1,$B27*10^5,2,C$8,1),FluidProperties($D$2,1,$B27*10^5,2,C$8,10,0,1)) -> 5209.88789 | D27: =IF($D$2=11,[1]!HeCalc(14,0,1,$B27*10^5,2,D$8,1),FluidProperties($D$2,1,$B27*10^5,2,D$8,10,0,1)) -> 6074.466762 | F27: 9.9 | G27: =IF($D$2=11,[1]!HeCalc(14,0,1,G$8*10^5,2,$F27,1),FluidProperties($D$2,1,G$8*10^5,2,$F27,10,0,1)) -> 5430.724994 | H27: =IF($D$2=11,[1]!HeCalc(14,0,1,H$8*10^5,2,$F27,1),FluidProperties($D$2,1,H$8*10^5,2,$F27,10,0,1)) -> 6680.215986
B28: 20 | C28: =IF($D$2=11,[1]!HeCalc(14,0,1,$B28*10^5,2,C$8,1),FluidProperties($D$2,1,$B28*10^5,2,C$8,10,0,1)) -> 5074.209901 | D28: =IF($D$2=11,[1]!HeCalc(14,0,1,$B28*10^5,2,D$8,1),FluidProperties($D$2,1,$B28*10^5,2,D$8,10,0,1)) -> 6101.085267 | F28: 10.2 | G28: =IF($D$2=11,[1]!HeCalc(14,0,1,G$8*10^5,2,$F28,1),FluidProperties($D$2,1,G$8*10^5,2,$F28,10,0,1)) -> 5416.177448 | H28: =IF($D$2=11,[1]!HeCalc(14,0,1,H$8*10^5,2,$F28,1),FluidProperties($D$2,1,H$8*10^5,2,$F28,10,0,1)) -> 6550.829673
B29: 21 | C29: =IF($D$2=11,[1]!HeCalc(14,0,1,$B29*10^5,2,C$8,1),FluidProperties($D$2,1,$B29*10^5,2,C$8,10,0,1)) -> 4954.570024 | D29: =IF($D$2=11,[1]!HeCalc(14,0,1,$B29*10^5,2,D$8,1),FluidProperties($D$2,1,$B29*10^5,2,D$8,10,0,1)) -> 6125.218341 | F29: 10.5 | G29: =IF($D$2=11,[1]!HeCalc(14,0,1,G$8*10^5,2,$F29,1),FluidProperties($D$2,1,G$8*10^5,2,$F29,10,0,1)) -> 5403.016248 | H29: =IF($D$2=11,[1]!HeCalc(14,0,1,H$8*10^5,2,$F29,1),FluidProperties($D$2,1,H$8*10^5,2,$F29,10,0,1)) -> 6440.17446
B30: 22 | C30: =IF($D$2=11,[1]!HeCalc(14,0,1,$B30*10^5,2,C$8,1),FluidProperties($D$2,1,$B30*10^5,2,C$8,10,0,1)) -> 4848.127704 | D30: =IF($D$2=11,[1]!HeCalc(14,0,1,$B30*10^5,2,D$8,1),FluidProperties($D$2,1,$B30*10^5,2,D$8,10,0,1)) -> 6146.897638 | F30: 10.8 | G30: =IF($D$2=11,[1]!HeCalc(14,0,1,G$8*10^5,2,$F30,1),FluidProperties($D$2,1,G$8*10^5,2,$F30,10,0,1)) -> 5391.05827 | H30: =IF($D$2=11,[1]!HeCalc(14,0,1,H$8*10^5,2,$F30,1),FluidProperties($D$2,1,H$8*10^5,2,$F30,10,0,1)) -> 6344.536275
B31: 23 | C31: =IF($D$2=11,[1]!HeCalc(14,0,1,$B31*10^5,2,C$8,1),FluidProperties($D$2,1,$B31*10^5,2,C$8,10,0,1)) -> 4752.666283 | D31: =IF($D$2=11,[1]!HeCalc(14,0,1,$B31*10^5,2,D$8,1),FluidProperties($D$2,1,$B31*10^5,2,D$8,10,0,1)) -> 6166.171569 | F31: 11.1 | G31: =IF($D$2=11,[1]!HeCalc(14,0,1,G$8*10^5,2,$F31,1),FluidProperties($D$2,1,G$8*10^5,2,$F31,10,0,1)) -> 5380.151091 | H31: =IF($D$2=11,[1]!HeCalc(14,0,1,H$8*10^5,2,$F31,1),FluidProperties($D$2,1,H$8*10^5,2,$F31,10,0,1)) -> 6261.104202
B32: 24 | C32: =IF($D$2=11,[1]!HeCalc(14,0,1,$B32*10^5,2,C$8,1),FluidProperties($D$2,1,$B32*10^5,2,C$8,10,0,1)) -> 4666.435529 | D32: =IF($D$2=11,[1]!HeCalc(14,0,1,$B32*10^5,2,D$8,1),FluidProperties($D$2,1,$B32*10^5,2,D$8,10,0,1)) -> 6183.102721 | F32: 11.4 | G32: =IF($D$2=11,[1]!HeCalc(14,0,1,G$8*10^5,2,$F32,1),FluidProperties($D$2,1,G$8*10^5,2,$F32,10,0,1)) -> 5370.166845 | H32: =IF($D$2=11,[1]!HeCalc(14,0,1,H$8*10^5,2,$F32,1),FluidProperties($D$2,1,H$8*10^5,2,$F32,10,0,1)) -> 6187.716741
B33: 25 | C33: =IF($D$2=11,[1]!HeCalc(14,0,1,$B33*10^5,2,C$8,1),FluidProperties($D$2,1,$B33*10^5,2,C$8,10,0,1)) -> 4588.037797 | D33: =IF($D$2=11,[1]!HeCalc(14,0,1,$B33*10^5,2,D$8,1),FluidProperties($D$2,1,$B33*10^5,2,D$8,10,0,1)) -> 6197.765192 | F33: 11.7 | G33: =IF($D$2=11,[1]!HeCalc(14,0,1,G$8*10^5,2,$F33,1),FluidProperties($D$2,1,G$8*10^5,2,$F33,10,0,1)) -> 5360.997497 | H33: =IF($D$2=11,[1]!HeCalc(14,0,1,H$8*10^5,2,$F33,1),FluidProperties($D$2,1,H$8*10^5,2,$F33,10,0,1)) -> 6122.687559
B34: 26 | C34: =IF($D$2=11,[1]!HeCalc(14,0,1,$B34*10^5,2,C$8,1),FluidProperties($D$2,1,$B34*10^5,2,C$8,10,0,1)) -> 4516.344903 | D34: =IF($D$2=11,[1]!HeCalc(14,0,1,$B34*10^5,2,D$8,1),FluidProperties($D$2,1,$B34*10^5,2,D$8,10,0,1)) -> 6210.242037 | F34: 12 | G34: =IF($D$2=11,[1]!HeCalc(14,0,1,G$8*10^5,2,$F34,1),FluidProperties($D$2,1,G$8*10^5,2,$F34,10,0,1)) -> 5352.551156 | H34: =IF($D$2=11,[1]!HeCalc(14,0,1,H$8*10^5,2,$F34,1),FluidProperties($D$2,1,H$8*10^5,2,$F34,10,0,1)) -> 6064.683603
B35: 27 | C35: =IF($D$2=11,[1]!HeCalc(14,0,1,$B35*10^5,2,C$8,1),FluidProperties($D$2,1,$B35*10^5,2,C$8,10,0,1)) -> 4450.436946 | D35: =IF($D$2=11,[1]!HeCalc(14,0,1,$B35*10^5,2,D$8,1),FluidProperties($D$2,1,$B35*10^5,2,D$8,10,0,1)) -> 6220.62289 | F35: 12.3 | G35: =IF($D$2=11,[1]!HeCalc(14,0,1,G$8*10^5,2,$F35,1),FluidProperties($D$2,1,G$8*10^5,2,$F35,10,0,1)) -> 5344.749172 | H35: =IF($D$2=11,[1]!HeCalc(14,0,1,H$8*10^5,2,$F35,1),FluidProperties($D$2,1,H$8*10^5,2,$F35,10,0,1)) -> 6012.63841
B36: 28 | C36: =IF($D$2=11,[1]!HeCalc(14,0,1,$B36*10^5,2,C$8,1),FluidProperties($D$2,1,$B36*10^5,2,C$8,10,0,1)) -> 4389.556769 | D36: =IF($D$2=11,[1]!HeCalc(14,0,1,$B36*10^5,2,D$8,1),FluidProperties($D$2,1,$B36*10^5,2,D$8,10,0,1)) -> 6229.001831 | F36: 12.6 | G36: =IF($D$2=11,[1]!HeCalc(14,0,1,G$8*10^5,2,$F36,1),FluidProperties($D$2,1,G$8*10^5,2,$F36,10,0,1)) -> 5337.52384 | H36: =IF($D$2=11,[1]!HeCalc(14,0,1,H$8*10^5,2,$F36,1),FluidProperties($D$2,1,H$8*10^5,2,$F36,10,0,1)) -> 5965.689398
B37: 29 | C37: =IF($D$2=11,[1]!HeCalc(14,0,1,$B37*10^5,2,C$8,1),FluidProperties($D$2,1,$B37*10^5,2,C$8,10,0,1)) -> 4333.075695 | D37: =IF($D$2=11,[1]!HeCalc(14,0,1,$B37*10^5,2,D$8,1),FluidProperties($D$2,1,$B37*10^5,2,D$8,10,0,1)) -> 6235.475565 | F37: 12.9 | G37: =IF($D$2=11,[1]!HeCalc(14,0,1,G$8*10^5,2,$F37,1),FluidProperties($D$2,1,G$8*10^5,2,$F37,10,0,1)) -> 5330.816559 | H37: =IF($D$2=11,[1]!HeCalc(14,0,1,H$8*10^5,2,$F37,1),FluidProperties($D$2,1,H$8*10^5,2,$F37,10,0,1)) -> 5923.131869
B38: 30 | C38: =IF($D$2=11,[1]!HeCalc(14,0,1,$B38*10^5,2,C$8,1),FluidProperties($D$2,1,$B38*10^5,2,C$8,10,0,1)) -> 4280.467473 | D38: =IF($D$2=11,[1]!HeCalc(14,0,1,$B38*10^5,2,D$8,1),FluidProperties($D$2,1,$B38*10^5,2,D$8,10,0,1)) -> 6240.141894 | F38: 13.2 | G38: =IF($D$2=11,[1]!HeCalc(14,0,1,G$8*10^5,2,$F38,1),FluidProperties($D$2,1,G$8*10^5,2,$F38,10,0,1)) -> 5324.576354 | H38: =IF($D$2=11,[1]!HeCalc(14,0,1,H$8*10^5,2,$F38,1),FluidProperties($D$2,1,H$8*10^5,2,$F38,10,0,1)) -> 5884.384789
B39: 31 | C39: =IF($D$2=11,[1]!HeCalc(14,0,1,$B39*10^5,2,C$8,1),FluidProperties($D$2,1,$B39*10^5,2,C$8,10,0,1)) -> 4231.288258 | D39: =IF($D$2=11,[1]!HeCalc(14,0,1,$B39*10^5,2,D$8,1),FluidProperties($D$2,1,$B39*10^5,2,D$8,10,0,1)) -> 6243.098499 | F39: 13.5 | G39: =IF($D$2=11,[1]!HeCalc(14,0,1,G$8*10^5,2,$F39,1),FluidProperties($D$2,1,G$8*10^5,2,$F39,10,0,1)) -> 5318.758671 | H39: =IF($D$2=11,[1]!HeCalc(14,0,1,H$8*10^5,2,$F39,1),FluidProperties($D$2,1,H$8*10^5,2,$F39,10,0,1)) -> 5848.965016
B40: 32 | C40: =IF($D$2=11,[1]!HeCalc(14,0,1,$B40*10^5,2,C$8,1),FluidProperties($D$2,1,$B40*10^5,2,C$8,10,0,1)) -> 4185.161078 | D40: =IF($D$2=11,[1]!HeCalc(14,0,1,$B40*10^5,2,D$8,1),FluidProperties($D$2,1,$B40*10^5,2,D$8,10,0,1)) -> 6244.441989 | F40: 13.8 | G40: =IF($D$2=11,[1]!HeCalc(14,0,1,G$8*10^5,2,$F40,1),FluidProperties($D$2,1,G$8*10^5,2,$F40,10,0,1)) -> 5313.324399 | H40: =IF($D$2=11,[1]!HeCalc(14,0,1,H$8*10^5,2,$F40,1),FluidProperties($D$2,1,H$8*10^5,2,$F40,10,0,1)) -> 5816.467646
B41: 33 | C41: =IF($D$2=11,[1]!HeCalc(14,0,1,$B41*10^5,2,C$8,1),FluidProperties($D$2,1,$B41*10^5,2,C$8,10,0,1)) -> 4141.763674 | D41: =IF($D$2=11,[1]!HeCalc(14,0,1,$B41*10^5,2,D$8,1),FluidProperties($D$2,1,$B41*10^5,2,D$8,10,0,1)) -> 6244.2672 | F41: 14.1 | G41: =IF($D$2=11,[1]!HeCalc(14,0,1,G$8*10^5,2,$F41,1),FluidProperties($D$2,1,G$8*10^5,2,$F41,10,0,1)) -> 5308.239058 | H41: =IF($D$2=11,[1]!HeCalc(14,0,1,H$8*10^5,2,$F41,1),FluidProperties($D$2,1,H$8*10^5,2,$F41,10,0,1)) -> 5786.550882
B42: 34 | C42: =IF($D$2=11,[1]!HeCalc(14,0,1,$B42*10^5,2,C$8,1),FluidProperties($D$2,1,$B42*10^5,2,C$8,10,0,1)) -> 4100.818867 | D42: =IF($D$2=11,[1]!HeCalc(14,0,1,$B42*10^5,2,D$8,1),FluidProperties($D$2,1,$B42*10^5,2,D$8,10,0,1)) -> 6242.666693 | F42: 14.4 | G42: =IF($D$2=11,[1]!HeCalc(14,0,1,G$8*10^5,2,$F42,1),FluidProperties($D$2,1,G$8*10^5,2,$F42,10,0,1)) -> 5303.472139 | H42: =IF($D$2=11,[1]!HeCalc(14,0,1,H$8*10^5,2,$F42,1),FluidProperties($D$2,1,H$8*10^5,2,$F42,10,0,1)) -> 5758.92425
B43: 35 | C43: =IF($D$2=11,[1]!HeCalc(14,0,1,$B43*10^5,2,C$8,1),FluidProperties($D$2,1,$B43*10^5,2,C$8,10,0,1)) -> 4062.086962 | D43: =IF($D$2=11,[1]!HeCalc(14,0,1,$B43*10^5,2,D$8,1),FluidProperties($D$2,1,$B43*10^5,2,D$8,10,0,1)) -> 6239.730414 | F43: 14.7 | G43: =IF($D$2=11,[1]!HeCalc(14,0,1,G$8*10^5,2,$F43,1),FluidProperties($D$2,1,G$8*10^5,2,$F43,10,0,1)) -> 5298.996539 | H43: =IF($D$2=11,[1]!HeCalc(14,0,1,H$8*10^5,2,$F43,1),FluidProperties($D$2,1,H$8*10^5,2,$F43,10,0,1)) -> 5733.339344
B44: 36 | C44: =IF($D$2=11,[1]!HeCalc(14,0,1,$B44*10^5,2,C$8,1),FluidProperties($D$2,1,$B44*10^5,2,C$8,10,0,1)) -> 4025.359489 | D44: =IF($D$2=11,[1]!HeCalc(14,0,1,$B44*10^5,2,D$8,1),FluidProperties($D$2,1,$B44*10^5,2,D$8,10,0,1)) -> 6235.545488 | F44: 15 | G44: =IF($D$2=11,[1]!HeCalc(14,0,1,G$8*10^5,2,$F44,1),FluidProperties($D$2,1,G$8*10^5,2,$F44,10,0,1)) -> 5294.788107 | H44: =IF($D$2=11,[1]!HeCalc(14,0,1,H$8*10^5,2,$F44,1),FluidProperties($D$2,1,H$8*10^5,2,$F44,10,0,1)) -> 5709.582494
B45: 37 | C45: =IF($D$2=11,[1]!HeCalc(14,0,1,$B45*10^5,2,C$8,1),FluidProperties($D$2,1,$B45*10^5,2,C$8,10,0,1)) -> 3990.454313 | D45: =IF($D$2=11,[1]!HeCalc(14,0,1,$B45*10^5,2,D$8,1),FluidProperties($D$2,1,$B45*10^5,2,D$8,10,0,1)) -> 6230.196096 | F45: 15.3 | G45: =IF($D$2=11,[1]!HeCalc(14,0,1,G$8*10^5,2,$F45,1),FluidProperties($D$2,1,G$8*10^5,2,$F45,10,0,1)) -> 5290.825246 | H45: =IF($D$2=11,[1]!HeCalc(14,0,1,H$8*10^5,2,$F45,1),FluidProperties($D$2,1,H$8*10^5,2,$F45,10,0,1)) -> 5687.468903
B46: 38 | C46: =IF($D$2=11,[1]!HeCalc(14,0,1,$B46*10^5,2,C$8,1),FluidProperties($D$2,1,$B46*10^5,2,C$8,10,0,1)) -> 3957.211545 | D46: =IF($D$2=11,[1]!HeCalc(14,0,1,$B46*10^5,2,D$8,1),FluidProperties($D$2,1,$B46*10^5,2,D$8,10,0,1)) -> 6223.763426 | F46: 15.6 | G46: =IF($D$2=11,[1]!HeCalc(14,0,1,G$8*10^5,2,$F46,1),FluidProperties($D$2,1,G$8*10^5,2,$F46,10,0,1)) -> 5287.088587 | H46: =IF($D$2=11,[1]!HeCalc(14,0,1,H$8*10^5,2,$F46,1),FluidProperties($D$2,1,H$8*10^5,2,$F46,10,0,1)) -> 5666.837931
B47: 39 | C47: =IF($D$2=11,[1]!HeCalc(14,0,1,$B47*10^5,2,C$8,1),FluidProperties($D$2,1,$B47*10^5,2,C$8,10,0,1)) -> 3925.490218 | D47: =IF($D$2=11,[1]!HeCalc(14,0,1,$B47*10^5,2,D$8,1),FluidProperties($D$2,1,$B47*10^5,2,D$8,10,0,1)) -> 6216.325657 | F47: 15.9 | G47: =IF($D$2=11,[1]!HeCalc(14,0,1,G$8*10^5,2,$F47,1),FluidProperties($D$2,1,G$8*10^5,2,$F47,10,0,1)) -> 5283.560708 | H47: =IF($D$2=11,[1]!HeCalc(14,0,1,H$8*10^5,2,$F47,1),FluidProperties($D$2,1,H$8*10^5,2,$F47,10,0,1)) -> 5647.549268
B48: 40 | C48: =IF($D$2=11,[1]!HeCalc(14,0,1,$B48*10^5,2,C$8,1),FluidProperties($D$2,1,$B48*10^5,2,C$8,10,0,1)) -> 3895.165539 | D48: =IF($D$2=11,[1]!HeCalc(14,0,1,$B48*10^5,2,D$8,1),FluidProperties($D$2,1,$B48*10^5,2,D$8,10,0,1)) -> 6207.95798 | F48: 16.2 | G48: =IF($D$2=11,[1]!HeCalc(14,0,1,G$8*10^5,2,$F48,1),FluidProperties($D$2,1,G$8*10^5,2,$F48,10,0,1)) -> 5280.225896 | H48: =IF($D$2=11,[1]!HeCalc(14,0,1,H$8*10^5,2,$F48,1),FluidProperties($D$2,1,H$8*10^5,2,$F48,10,0,1)) -> 5629.479811
F49: 16.5 | G49: =IF($D$2=11,[1]!HeCalc(14,0,1,G$8*10^5,2,$F49,1),FluidProperties($D$2,1,G$8*10^5,2,$F49,10,0,1)) -> 5277.069942 | H49: =IF($D$2=11,[1]!HeCalc(14,0,1,H$8*10^5,2,$F49,1),FluidProperties($D$2,1,H$8*10^5,2,$F49,10,0,1)) -> 5612.521101

Sheet Process_operations
B2: Fluid | C2: Helium | D2: =VLOOKUP(C2,Fluids_table,2,FALSE) -> 11 | J2: Diamètre | K2: Surface
B3: Critical pressure | C3: =IF($D$2=11,[1]!HeConst(5)/10^5,FConstant($D$2,5)/10^2) -> 2.274623 | J3: =33.7-2*1.6 -> 30.5 | K3: =PI()*J3^2/4 -> 730.6166415
J4: 8 | K4: =PI()*J4^2/4 -> 50.26548246
B5: Isenthalpic expansion
B6: Inlet pressure | C6: 3 | E6: Mixing | F6: Fluid 1 | G6: Fluid 2 | H6: Fluid 3
B7: Inlet Temperature | C7: 80.5 | E7: Pressure | F7: 5 | G7: 18 | H7: 18
B8: Outlet pressure | C8: 1.3 | E8: Temperature | F8: 4.55 | G8: 310 | H8: 80
B9: enthalpy | C9: =IF($D$2=11,[1]!HeCalc(9,0,1,$C6*10^5,2,C$7,1),FluidProperties($D$2,1,$C6*10^5,2,C$7,5,0,1)) -> 434065.5637 | E9: Mass flow | F9: 1013.66983 | G9: 195 | H9: 10
B10: Outlet Temperature | C10: =IF($D$2=11,[1]!HeCalc(2,0,1,$C8*10^5,9,C$9,1),FluidProperties($D$2,1,$C8*10^5,5,C$9,2,0,1)) -> 80.5819005 | E10: Enthalpy | F10: =IF($D$2=11,[1]!HeCalc(9,0,1,$F7*10^5,2,F$8,1),FluidProperties($D$2,1,$F7*10^5,2,F$8,5,0,1)) -> 12673.31493 | G10: =IF($D$2=11,[1]!HeCalc(9,0,1,$G7*10^5,2,G$8,1),FluidProperties($D$2,1,$G7*10^5,2,G$8,5,0,1)) -> 1630923.201 | H10: =IF($D$2=11,[1]!HeCalc(9,0,1,$G7*10^5,2,H$8,1),FluidProperties($D$2,1,$G7*10^5,2,H$8,5,0,1)) -> 435200.6735
B11: Outlet vapour fraction | C11: =IF($D$2=11,[1]!HeCalc(0,0,1,$C8*10^5,9,C$9,1),FluidProperties($D$2,1,$C8*10^5,5,C$9,0,0,1)) -> 2
E12: Outlet Pressure | F12: 1.3
E13: enthalpie sortie | F13: =(F9*F10+G9*G10+H9*H10)/(F9+G9+H9) -> 275077.449
E14: Mixing Temperature | F14: =IF($D$2=11,[1]!HeCalc(2,0,1,$F12*10^5,9,F$13,1),FluidProperties($D$2,1,$F12*10^5,5,F$13,2,0,1)) -> 50.00000394
B19: Valeur cible mélange | C19: 50
F25: HX1100 outlet | G25: HX1100 intlet | H25: HX1300 intlet | I25: HX1400 intlet
E26: Pressure | F26: 1.1 | G26: 1.1 | H26: 1.1 | I26: 1.1
E27: Temperature 1 | F27: 4.5 | G27: 300 | H27: 300 | I27: 300
E28: Temperature 2 | F28: 310 | G28: 75 | H28: 30 | I28: 20
E29: Mass flow 1 | F29: 300 | G29: =F29 -> 300 | H29: =G29 -> 300 | I29: 300
E30: Mas flow 2 | F30: 1000 | G30: =F30 -> 1000 | H30: =G30 -> 1000 | I30: 1000
E31: Enthalpy 1 | F31: =IF($D$2=11,[1]!HeCalc(9,0,1,F$26*10^5,2,F27,1),FluidProperties($D$2,1,F$26*10^5,2,F27,5,0,1)) -> 32395.0072 | G31: =IF($D$2=11,[1]!HeCalc(9,0,1,G$26*10^5,2,G27,1),FluidProperties($D$2,1,G$26*10^5,2,G27,5,0,1)) -> 1573546.862 | H31: =IF($D$2=11,[1]!HeCalc(9,0,1,H$26*10^5,2,H27,1),FluidProperties($D$2,1,H$26*10^5,2,H27,5,0,1)) -> 1573546.862 | I31: =IF($D$2=11,[1]!HeCalc(9,0,1,I$26*10^5,2,I27,1),FluidProperties($D$2,1,I$26*10^5,2,I27,5,0,1)) -> 1573546.862
E32: Enthalpy 2 | F32: =IF($D$2=11,[1]!HeCalc(9,0,1,F$26*10^5,2,F28,1),FluidProperties($D$2,1,F$26*10^5,2,F28,5,0,1)) -> 1625476.623 | G32: =IF($D$2=11,[1]!HeCalc(9,0,1,G$26*10^5,2,G28,1),FluidProperties($D$2,1,G$26*10^5,2,G28,5,0,1)) -> 405012.3703 | H32: =IF($D$2=11,[1]!HeCalc(9,0,1,H$26*10^5,2,H28,1),FluidProperties($D$2,1,H$26*10^5,2,H28,5,0,1)) -> 170885.107 | I32: =IF($D$2=11,[1]!HeCalc(9,0,1,I$26*10^5,2,I28,1),FluidProperties($D$2,1,I$26*10^5,2,I28,5,0,1)) -> 118542.431
E33: enthalpie sortie | F33: =(F29*F31+F30*F32)/(F29+F30) -> 1257842.404 | G33: =(G29*G31+G30*G32)/(G29+G30) -> 674674.176 | H33: 494576.2812 | I33: 454312.6843
E34: Mixing Temperature | F34: =IF($D$2=11,[1]!HeCalc(2,0,1,$F26*10^5,9,F$33,1),FluidProperties($D$2,1,$F26*10^5,5,F$33,2,0,1)) -> 239.2057466 | G34: =IF($D$2=11,[1]!HeCalc(2,0,1,$F26*10^5,9,G$33,1),FluidProperties($D$2,1,$F26*10^5,5,G$33,2,0,1)) -> 126.9119799 | H34: =IF($D$2=11,[1]!HeCalc(2,0,1,$F26*10^5,9,H$33,1),FluidProperties($D$2,1,$F26*10^5,5,H$33,2,0,1)) -> 92.23893641 | I34: =IF($D$2=11,[1]!HeCalc(2,0,1,$F26*10^5,9,I$33,1),FluidProperties($D$2,1,$F26*10^5,5,I$33,2,0,1)) -> 84.48860243
E35: Nominal temperature | F35: =F28 -> 310 | G35: =G28 -> 75 | H35: 30 | I35: 20
E36: Delta T | F36: =F35-F34 -> 70.79425337 | G36: =G35-G34 -> -51.91197986 | H36: -62.23893641 | I36: -64.48860243
F38: Ok avec design flex à 223 K | G38: almost ok ALPEMA | H38: pas de contraction différentielle en dessous de 80 K | I38: pas de contraction différentielle en dessous de 80 K
